{"text_format":"3","workbook":"xlsx","n_sheets":20,"sheets":["Rekapitulacija","E9-31","E9-32","E9-33","E9-35","E5-21, 22","E1-16","E1-52, 53","E8-54","E8-55, 56","E8-64","E8-65, 66","E8 67-70","E6-57","E6-58","E3-59","E3-60, 61","E3-62, 63","S-Sanitarije","S-Hodnik"],"not_rendered":{"images":1,"defined_names":3},"read":"whole","date_system":"1900"}

{"sheet":"Rekapitulacija","index":0,"n_rows":39,"n_cols":18,"rows_kept":39,"merged":[[2,14,2,17],[3,8,3,10],[3,11,3,12],[3,14,3,15],[3,16,3,17],[5,1,9,1],[10,1,11,1],[12,1,14,1],[15,1,20,1],[21,1,23,1],[24,1,27,1],[28,1,30,1],[31,1,31,2],[32,14,33,15],[32,16,33,17],[35,1,35,7]]}
[]
[null,"SKUPNA REKAPITULACIJA OBNOVE PROSTOROV , objekt Teslova 30, Ljubljana"]
[{"$nulls":14},"INTERNA RAZDELITEV STROŠKOV IJS"]
[{"$nulls":3},"A","B","C","D","E","Vrednost v EUR",null,null,"Vrednost na enoto površine",null,null,"Delitev stroškov brez DDV",null,"Delitev stroškov z DDV"]
[{"$nulls":3},"GRADBENA DELA","OBRTNIŠKA DELA","STROJNE INŠTALACIJE","ČIŠČENJE","OPREMA","SKUPAJ brez DDV","DDV","SKUPAJ z DDV","m2","EUR/m2",null,"IJS","ODSEK","IJS","ODSEK"]
[null,"E9","31, E9",{"$f":"'E9-31'!F85","v":{"v":0,"d":"0.00"}},{"$f":"'E9-31'!F119","v":{"v":0,"d":"0.00"}},{"$f":"'E9-31'!F144","v":{"v":0,"d":"0.00"}},{"$f":"'E9-31'!F153","v":{"v":0,"d":"0.00"}},null,{"$f":"SUM(D6:G6)","v":{"v":0,"d":"0.00"}},{"$f":"I6*0.22","v":{"v":0,"d":"0.00"}},{"$f":"I6*1.22","v":{"v":0,"d":"0.00"}},34.11,{"$f":"I6/L6","v":{"v":0,"d":"0.00"}},null,{"$f":"I6-P6","v":{"v":0,"d":"0.00"}},{"$f":"'E9-31'!G153","v":{"v":0,"d":"0.00"}},{"$f":"O6*1.22","v":{"v":0,"d":"0.00"}},{"$f":"P6*1.22","v":{"v":0,"d":"0.00"}}]
[null,null,"32, E9",{"$f":"'E9-32'!F52","v":{"v":0,"d":"0.00"}},{"$f":"'E9-32'!F92","v":{"v":0,"d":"0.00"}},{"$f":"'E9-32'!F111","v":{"v":0,"d":"0.00"}},{"$f":"'E9-32'!F122","v":{"v":0,"d":"0.00"}},null,{"$f":"SUM(D7:G7)","v":{"v":0,"d":"0.00"}},{"$f":"I7*0.22","v":{"v":0,"d":"0.00"}},{"$f":"I7*1.22","v":{"v":0,"d":"0.00"}},36,{"$f":"I7/L7","v":{"v":0,"d":"0.00"}},null,{"$f":"I7-P7","v":{"v":0,"d":"0.00"}},{"$f":"'E9-32'!G122","v":{"v":0,"d":"0.00"}},{"$f":"O7*1.22","v":{"v":0,"d":"0.00"}},{"v":0,"d":"0.00"}]
[null,null,"33, E9",{"$f":"'E9-33'!F50","v":{"v":0,"d":"0.00"}},{"$f":"'E9-33'!F92","v":{"v":0,"d":"0.00"}},{"$f":"'E9-33'!F107","v":{"v":0,"d":"0.00"}},{"$f":"'E9-33'!F118","v":{"v":0,"d":"0.00"}},null,{"$f":"SUM(D8:G8)","v":{"v":0,"d":"0.00"}},{"v":0,"d":"0.00"},{"v":0,"d":"0.00"},22.05,{"v":0,"d":"0.00"},null,{"$f":"I8-P8","v":{"v":0,"d":"0.00"}},{"$f":"'E9-33'!G118","v":{"v":0,"d":"0.00"}},{"v":0,"d":"0.00"},{"v":0,"d":"0.00"}]
[null,null,"35, E9",{"$f":"'E9-35'!F28","v":{"v":0,"d":"0.00"}},{"$f":"'E9-35'!F61","v":{"v":0,"d":"0.00"}},{"$f":"'E9-35'!F76","v":{"v":0,"d":"0.00"}},{"$f":"'E9-35'!F87","v":{"v":0,"d":"0.00"}},null,{"v":0,"d":"0.00"},{"v":0,"d":"0.00"},{"v":0,"d":"0.00"},21.41,{"v":0,"d":"0.00"},null,{"$f":"I9-P9","v":{"v":0,"d":"0.00"}},{"$f":"'E9-35'!G87","v":{"v":0,"d":"0.00"}},{"v":0,"d":"0.00"},{"v":0,"d":"0.00"}]
[null,null,"skupaj",{"$f":"SUM(D6:D9)","v":{"v":0,"d":"0.00"}},{"$f":"SUM(E6:E9)","v":{"v":0,"d":"0.00"}},{"v":0,"d":"0.00"},{"v":0,"d":"0.00"},{"v":0,"d":"0.00"},{"v":0,"d":"0.00"},{"v":0,"d":"0.00"},{"v":0,"d":"0.00"},{"$nulls":3},{"$f":"SUM(O6:O9)","v":{"v":0,"d":"0.00"}},{"$f":"SUM(P6:P9)","v":{"v":0,"d":"0.00"}},{"$f":"SUM(Q6:Q9)","v":{"v":0,"d":"0.00"}},{"$f":"SUM(R6:R9)","v":{"v":0,"d":"0.00"}}]
[null,"E5","21, 22, E5",{"$f":"'E5-21, 22'!F62","v":{"v":0,"d":"0.00"}},{"$f":"'E5-21, 22'!F109","v":{"v":0,"d":"0.00"}},{"$f":"'E5-21, 22'!F126","v":{"v":0,"d":"0.00"}},{"$f":"'E5-21, 22'!F137","v":{"v":0,"d":"0.00"}},null,{"v":0,"d":"0.00"},{"v":0,"d":"0.00"},{"v":0,"d":"0.00"},53.47,{"v":0,"d":"0.00"},null,{"$f":"I11-P11","v":{"v":0,"d":"0.00"}},{"$f":"'E5-21, 22'!G137","v":{"v":0,"d":"0.00"}},{"$f":"O11*1.22","v":{"v":0,"d":"0.00"}},{"$f":"P11*1.22","v":{"v":0,"d":"0.00"}}]
[null,null,"skupaj",{"$f":"SUM(D11)","v":{"v":0,"d":"0.00"}},{"$f":"SUM(E11)","v":{"v":0,"d":"0.00"}},{"v":0,"d":"0.00"},{"v":0,"d":"0.00"},{"v":0,"d":"0.00"},{"v":0,"d":"0.00"},{"v":0,"d":"0.00"},{"v":0,"d":"0.00"},{"$nulls":3},{"$f":"SUM(O11)","v":{"v":0,"d":"0.00"}},{"$f":"SUM(P11)","v":{"v":0,"d":"0.00"}},{"$f":"SUM(Q11)","v":{"v":0,"d":"0.00"}},{"$f":"SUM(R11)","v":{"v":0,"d":"0.00"}}]
[null,"E1","16, E1",{"$f":"'E1-16'!F59","v":{"v":0,"d":"0.00"}},{"$f":"'E1-16'!F94","v":{"v":0,"d":"0.00"}},{"$f":"'E1-16'!F109","v":{"v":0,"d":"0.00"}},{"$f":"'E1-16'!F118","v":{"v":0,"d":"0.00"}},null,{"v":0,"d":"0.00"},{"v":0,"d":"0.00"},{"v":0,"d":"0.00"},50.7,{"v":0,"d":"0.00"},null,{"$f":"I13-P13","v":{"v":0,"d":"0.00"}},{"$f":"'E1-16'!G118","v":{"v":0,"d":"0.00"}},{"$f":"O13*1.22","v":{"v":0,"d":"0.00"}},{"$f":"P13*1.22","v":{"v":0,"d":"0.00"}}]
[null,null,"52, 53, E1",{"$f":"'E1-52, 53'!F90","v":{"v":0,"d":"0.00"}},{"$f":"'E1-52, 53'!F141","v":{"v":0,"d":"0.00"}},{"$f":"'E1-52, 53'!F167","v":{"v":0,"d":"0.00"}},{"$f":"'E1-52, 53'!F178","v":{"v":0,"d":"0.00"}},null,{"v":0,"d":"0.00"},{"v":0,"d":"0.00"},{"v":0,"d":"0.00"},85.82,{"v":0,"d":"0.00"},null,{"$f":"I14-P14","v":{"v":0,"d":"0.00"}},{"$f":"'E1-52, 53'!G178","v":{"v":0,"d":"0.00"}},{"v":0,"d":"0.00"},{"v":0,"d":"0.00"}]
[null,null,"skupaj",{"$f":"SUM(D13:D14)","v":{"v":0,"d":"0.00"}},{"$f":"SUM(E13:E14)","v":{"v":0,"d":"0.00"}},{"v":0,"d":"0.00"},{"v":0,"d":"0.00"},{"v":0,"d":"0.00"},{"v":0,"d":"0.00"},{"v":0,"d":"0.00"},{"v":0,"d":"0.00"},{"$nulls":3},{"$f":"SUM(O13:O14)","v":{"v":0,"d":"0.00"}},{"v":0,"d":"0.00"},{"$f":"SUM(Q13:Q14)","v":{"v":0,"d":"0.00"}},{"v":0,"d":"0.00"}]
[null,"E8","54, E8",{"$f":"'E8-54'!F55","v":{"v":0,"d":"0.00"}},{"$f":"'E8-54'!F91","v":{"v":0,"d":"0.00"}},{"$f":"'E8-54'!F108","v":{"v":0,"d":"0.00"}},{"$f":"'E8-54'!F119","v":{"v":0,"d":"0.00"}},null,{"v":0,"d":"0.00"},{"v":0,"d":"0.00"},{"v":0,"d":"0.00"},40.5,{"v":0,"d":"0.00"},null,{"$f":"I16-P16","v":{"v":0,"d":"0.00"}},{"$f":"'E8-54'!G119","v":{"v":0,"d":"0.00"}},{"$f":"O16*1.22","v":{"v":0,"d":"0.00"}},{"$f":"P16*1.22","v":{"v":0,"d":"0.00"}}]
[null,null,"55, 56, E8",{"$f":"'E8-55, 56'!F64","v":{"v":0,"d":"0.00"}},{"$f":"'E8-55, 56'!F110","v":{"v":0,"d":"0.00"}},{"$f":"'E8-55, 56'!F133","v":{"v":0,"d":"0.00"}},{"$f":"'E8-55, 56'!F144","v":{"v":0,"d":"0.00"}},null,{"v":0,"d":"0.00"},{"v":0,"d":"0.00"},{"v":0,"d":"0.00"},58.63,{"v":0,"d":"0.00"},null,{"$f":"I17-P17","v":{"v":0,"d":"0.00"}},{"$f":"'E8-55, 56'!G144","v":{"v":0,"d":"0.00"}},{"v":0,"d":"0.00"},{"v":0,"d":"0.00"}]
[null,null,"64, E8",{"$f":"'E8-64'!F66","v":{"v":0,"d":"0.00"}},{"$f":"'E8-64'!F102","v":{"v":0,"d":"0.00"}},{"$f":"'E8-64'!F121","v":{"v":0,"d":"0.00"}},{"$f":"'E8-64'!F134","v":{"v":0,"d":"0.00"}},null,{"v":0,"d":"0.00"},{"v":0,"d":"0.00"},{"v":0,"d":"0.00"},91.49,{"v":0,"d":"0.00"},null,{"$f":"I18-P18","v":{"v":0,"d":"0.00"}},{"$f":"'E8-64'!G134","v":{"v":0,"d":"0.00"}},{"v":0,"d":"0.00"},{"v":0,"d":"0.00"}]
[null,null,"65, 66, E8",{"$f":"'E8-65, 66'!F66","v":{"v":0,"d":"0.00"}},{"$f":"'E8-65, 66'!F98","v":{"v":0,"d":"0.00"}},{"$f":"'E8-65, 66'!F111","v":{"v":0,"d":"0.00"}},{"$f":"'E8-65, 66'!F123","v":{"v":0,"d":"0.00"}},null,{"v":0,"d":"0.00"},{"v":0,"d":"0.00"},{"v":0,"d":"0.00"},{"v":64.1,"d":"64.10"},{"v":0,"d":"0.00"},null,{"$f":"I19-P19","v":{"v":0,"d":"0.00"}},null,{"v":0,"d":"0.00"},0]
[null,null,"67, 68, 69, 70, E8",{"$f":"'E8 67-70'!F74","v":{"v":0,"d":"0.00"}},{"$f":"'E8 67-70'!F131","v":{"v":0,"d":"0.00"}},{"$f":"'E8 67-70'!F156","v":{"v":0,"d":"0.00"}},{"$f":"'E8 67-70'!F167","v":{"v":0,"d":"0.00"}},null,{"v":0,"d":"0.00"},{"v":0,"d":"0.00"},{"v":0,"d":"0.00"},245.18,{"v":0,"d":"0.00"},null,{"$f":"I20-P20","v":{"v":0,"d":"0.00"}},{"$f":"'E8 67-70'!G167","v":{"v":0,"d":"0.00"}},{"$f":"O20*1.22","v":{"v":0,"d":"0.00"}},{"$f":"P20*1.22","v":{"v":0,"d":"0.00"}}]
[null,null,"skupaj",{"$f":"SUM(D16:D20)","v":{"v":0,"d":"0.00"}},{"$f":"SUM(E16:E20)","v":{"v":0,"d":"0.00"}},{"v":0,"d":"0.00"},{"v":0,"d":"0.00"},{"v":0,"d":"0.00"},{"v":0,"d":"0.00"},{"v":0,"d":"0.00"},{"v":0,"d":"0.00"},{"$nulls":3},{"$f":"SUM(O16:O20)","v":{"v":0,"d":"0.00"}},{"v":0,"d":"0.00"},{"$f":"SUM(Q16:Q20)","v":{"v":0,"d":"0.00"}},{"v":0,"d":"0.00"}]
[null,"E6","57, E6",{"$f":"'E6-57'!F66","v":{"v":0,"d":"0.00"}},{"$f":"'E6-57'!F107","v":{"v":0,"d":"0.00"}},{"$f":"'E6-57'!F130","v":{"v":0,"d":"0.00"}},{"$f":"'E6-57'!F140","v":{"v":0,"d":"0.00"}},null,{"v":0,"d":"0.00"},{"v":0,"d":"0.00"},{"v":0,"d":"0.00"},33.46,{"v":0,"d":"0.00"},null,{"$f":"I22-P22","v":{"v":0,"d":"0.00"}},{"$f":"'E6-57'!G138","v":{"v":0,"d":"0.00"}},{"$f":"O22*1.22","v":{"v":0,"d":"0.00"}},{"$f":"P22*1.22","v":{"v":0,"d":"0.00"}}]
[null,null,"58, E6",{"$f":"'E6-58'!F59","v":{"v":0,"d":"0.00"}},{"$f":"'E6-58'!F99","v":{"v":0,"d":"0.00"}},{"$f":"'E6-58'!F114","v":{"v":0,"d":"0.00"}},{"$f":"'E6-58'!F125","v":{"v":0,"d":"0.00"}},null,{"v":0,"d":"0.00"},{"v":0,"d":"0.00"},{"v":0,"d":"0.00"},38.52,{"v":0,"d":"0.00"},null,{"$f":"I23-P23","v":{"v":0,"d":"0.00"}},{"$f":"'E6-58'!G125","v":{"v":0,"d":"0.00"}},{"v":0,"d":"0.00"},{"v":0,"d":"0.00"}]
[null,null,"skupaj",{"$f":"SUM(D22:D23)","v":{"v":0,"d":"0.00"}},{"$f":"SUM(E22:E23)","v":{"v":0,"d":"0.00"}},{"$f":"SUM(F22:F23)","v":{"v":0,"d":"0.00"}},{"$f":"SUM(G22:G23)","v":{"v":0,"d":"0.00"}},{"$f":"SUM(H22:H23)","v":{"v":0,"d":"0.00"}},{"$f":"SUM(I22:I23)","v":{"v":0,"d":"0.00"}},{"v":0,"d":"0.00"},{"v":0,"d":"0.00"},{"$nulls":3},{"$f":"SUM(O22:O23)","v":{"v":0,"d":"0.00"}},{"$f":"SUM(P22:P23)","v":{"v":0,"d":"0.00"}},{"v":0,"d":"0.00"},{"v":0,"d":"0.00"}]
[null,"E3","59, E3",{"$f":"'E3-59'!F44","v":{"v":0,"d":"0.00"}},{"$f":"'E3-59'!F75","v":{"v":0,"d":"0.00"}},{"$f":"'E3-59'!F88","v":{"v":0,"d":"0.00"}},{"$f":"'E3-59'!F99","v":{"v":0,"d":"0.00"}},null,{"v":0,"d":"0.00"},{"v":0,"d":"0.00"},{"v":0,"d":"0.00"},{"v":18.9,"d":"18.90"},{"v":0,"d":"0.00"},null,{"$f":"I25-P25","v":{"v":0,"d":"0.00"}},{"$f":"'E3-59'!G97","v":{"v":0,"d":"0.00"}},{"$f":"O25*1.22","v":{"v":0,"d":"0.00"}},{"$f":"P25*1.22","v":{"v":0,"d":"0.00"}}]
[null,null,"60, 61, E3",{"$f":"'E3-60, 61'!F60","v":{"v":0,"d":"0.00"}},{"$f":"'E3-60, 61'!F95","v":{"v":0,"d":"0.00"}},{"$f":"'E3-60, 61'!F108","v":{"v":0,"d":"0.00"}},{"$f":"'E3-60, 61'!F119","v":{"v":0,"d":"0.00"}},null,{"v":0,"d":"0.00"},{"v":0,"d":"0.00"},{"v":0,"d":"0.00"},36.6,{"v":0,"d":"0.00"},null,{"$f":"I26-P26","v":{"v":0,"d":"0.00"}},{"$f":"'E3-60, 61'!G117","v":{"v":0,"d":"0.00"}},{"v":0,"d":"0.00"},{"v":0,"d":"0.00"}]
[null,null,"62, 63, E3",{"$f":"'E3-62, 63'!F50","v":{"v":0,"d":"0.00"}},{"$f":"'E3-62, 63'!F86","v":{"v":0,"d":"0.00"}},{"$f":"'E3-62, 63'!F103","v":{"v":0,"d":"0.00"}},{"$f":"'E3-62, 63'!F114","v":{"v":0,"d":"0.00"}},null,{"v":0,"d":"0.00"},{"v":0,"d":"0.00"},{"v":0,"d":"0.00"},57.42,{"v":0,"d":"0.00"},null,{"$f":"I27-P27","v":{"v":0,"d":"0.00"}},{"$f":"'E3-62, 63'!G112","v":{"v":0,"d":"0.00"}},{"v":0,"d":"0.00"},{"v":0,"d":"0.00"}]
[null,null,"skupaj",{"$f":"SUM(D25:D27)","v":{"v":0,"d":"0.00"}},{"$f":"SUM(E25:E27)","v":{"v":0,"d":"0.00"}},{"v":0,"d":"0.00"},{"v":0,"d":"0.00"},{"v":0,"d":"0.00"},{"v":0,"d":"0.00"},{"v":0,"d":"0.00"},{"v":0,"d":"0.00"},{"$nulls":3},{"$f":"SUM(O25:O27)","v":{"v":0,"d":"0.00"}},{"v":0,"d":"0.00"},{"$f":"SUM(Q25:Q27)","v":{"v":0,"d":"0.00"}},{"v":0,"d":"0.00"}]
[null,"S","SKUPNO - Sanitarije",{"$f":"'S-Sanitarije'!F66","v":{"v":0,"d":"0.00"}},{"$f":"'S-Sanitarije'!F100","v":{"v":0,"d":"0.00"}},{"$f":"'S-Sanitarije'!F144","v":{"v":0,"d":"0.00"}},{"$f":"'S-Sanitarije'!F155","v":{"v":0,"d":"0.00"}},{"$f":"'S-Sanitarije'!F179","v":{"v":0,"d":"0.00"}},{"$f":"SUM(D29:H29)","v":{"v":0,"d":"0.00"}},{"v":0,"d":"0.00"},{"v":0,"d":"0.00"},{"$nulls":3},{"$f":"I29","v":{"v":0,"d":"0.00"}},null,{"$f":"O29*1.22","v":{"v":0,"d":"0.00"}},{"$f":"P29*1.22","v":0}]
[null,null,"SKUPNO - Hodnik",{"$f":"'S-Hodnik'!F35","v":{"v":0,"d":"0.00"}},{"$f":"'S-Hodnik'!F69","v":{"v":0,"d":"0.00"}},{"$f":"'S-Hodnik'!F82","v":{"v":0,"d":"0.00"}},{"$f":"'S-Hodnik'!F91","v":{"v":0,"d":"0.00"}},null,{"v":0,"d":"0.00"},{"v":0,"d":"0.00"},{"v":0,"d":"0.00"},{"$nulls":3},{"$f":"I30","v":{"v":0,"d":"0.00"}},null,{"v":0,"d":"0.00"},0]
[null,null,"skupaj",{"$f":"SUM(D29:D30)","v":{"v":0,"d":"0.00"}},{"$f":"SUM(E29:E30)","v":{"v":0,"d":"0.00"}},{"$f":"SUM(F29:F30)","v":{"v":0,"d":"0.00"}},{"$f":"SUM(G29:G30)","v":{"v":0,"d":"0.00"}},{"$f":"SUM(H29:H30)","v":{"v":0,"d":"0.00"}},{"$f":"SUM(I29:I30)","v":{"v":0,"d":"0.00"}},{"v":0,"d":"0.00"},{"v":0,"d":"0.00"},{"$nulls":3},{"$f":"SUM(O29:O30)","v":{"v":0,"d":"0.00"}},{"$f":"SUM(P29:P30)","v":{"v":0,"d":"0.00"}},{"v":0,"d":"0.00"},{"v":0,"d":"0.00"}]
[null,"Skupaj",null,{"$f":"D10+D12+D15+D21+D24+D28+D31","v":{"v":0,"d":"0.00"}},{"v":0,"d":"0.00"},{"v":0,"d":"0.00"},{"v":0,"d":"0.00"},{"v":0,"d":"0.00"},{"v":0,"d":"0.00"},{"v":0,"d":"0.00"},{"v":0,"d":"0.00"},{"$nulls":3},{"$f":"O10+O12+O15+O21+O24+O28+O31","v":{"v":0,"d":"0.00"}},{"$f":"P10+P12+P15+P21+P24+P28+P31","v":{"v":0,"d":"0.00"}},{"$f":"Q10+Q12+Q15+Q21+Q24+Q28+Q31","v":{"v":0,"d":"0.00"}},{"$f":"R10+R12+R15+R21+R24+R28+R31","v":{"v":0,"d":"0.00"}}]
[{"$nulls":14},{"$f":"O32+P32","v":{"v":0,"d":"0.00"}},null,{"$f":"Q32+R32","v":{"v":0,"d":"0.00"}}]
[null,"*Nepredvidena dela 10 %",{"$nulls":6},{"$f":"I32*0.1","v":{"v":0,"d":"0.00"}},{"$f":"J32*0.1","v":{"v":0,"d":"0.00"}},{"v":0,"d":"0.00"}]
[]
[null,"Skupaj z nepredvidenimi deli",{"$nulls":6},{"$f":"I32+I34","v":{"v":0,"d":"0.00"}},{"$f":"J32+J34","v":{"v":0,"d":"0.00"}},{"v":0,"d":"0.00"},{"v":0,"d":"0.00"},{"v":0,"d":"0.00"}]
[]
[]
[null,"* nepredvidena dela se obračunajo po dejanskih stroških, potrjenih s strani nadzora"]

{"sheet":"E9-31","index":1,"n_rows":153,"n_cols":6,"rows_kept":153}
[null,null,"m.e.","količina ","cena na enoto","znesek"]
["A.","GRADBENA DELA"]
[]
["A1.","PRIPRAVLJALNA DELA"]
[]
["1.","Izpraznitev prostorov (kar ni zajeto v postavkah v nadaljevanju), z odvozom. Priprava in ureditev gradbišča z ureditvijo gradbiščnih priključkov, vsakodnevno čiščenje skupnih prostorov in stopnišč, izvedba fizičnih zapor za preprečitev dostopa do gradbišča, postavitev gradbiščnih vrat, gradbiščne table in opozorilnih oznak, premični odri za izvajanje del ter druga pripravljalna in zaključna dela. V ceni zajeti tudi stroške deponije, prevozov in parkirnin glede na lokacijo objekta. V ceni zajeti tudi odstranitev vsega po zaključku del.","zajeto v skupnih delih",{"v":1,"d":"1.00"},null,{"$f":"D6*E6","v":{"v":0,"d":"0.00"}}]
[]
["A2.","RUŠITVENA DELA"]
[]
["2.","Odstranitev elektro instalacij, vsa nadometna napeljava, parapetni kanali 11,7 m1, NIK kanali 12 m1, 4x stropne svetilke,  vsa stikala in vtičnice ter ostali razvod. Prenos, nakladanje in odvoz na trajno deponijo s plačilom takse.","kpl",{"v":1,"d":"1.00"},null,{"$f":"D10*E10","v":{"v":0,"d":"0.00"}}]
[]
["3.","Odstranitev notranjih in zunanjih enot klime z razvodom. Prenos, nakladanje in odvoz na trajno deponijo s plačilom takse.","kos",{"v":1,"d":"1.00"},null,{"$f":"D12*E12","v":{"v":0,"d":"0.00"}}]
[]
["4.","Odstranitev in demontaža korita, bojlerja SE SHRANI V SKLADIŠČE, izlivne armature, hladilnika, sifona. Prenos, nakladanje in odvoz na trajno deponijo s plačilom takse.","kpl",{"v":1,"d":"1.00"},null,{"$f":"D14*E14","v":{"v":0,"d":"0.00"}}]
[]
["5.","Odstranitev radiatorjev z vsemi elementi. Prenos, nakladanje in odvoz na trajno deponijo s plačilom takse.","kos",{"v":2,"d":"2.00"},null,{"$f":"D16*E16","v":{"v":0,"d":"0.00"}}]
[]
["6.","Odstranitev in demontaža kuhinjskega pohištva  - nadpultne omare, spodnji del s pultom vse dolžine 2,4 m. Prenos, nakladanje in odvoz na trajno deponijo s plačilom takse.","kpl",{"v":1,"d":"1.00"},null,{"$f":"D18*E18","v":{"v":0,"d":"0.00"}}]
[]
["7.","Odbijanje stenske keramike. Prenos, nakladanje in odvoz na trajno deponijo s plačilom takse.","m2",{"v":1.2,"d":"1.20"},null,{"$f":"D20*E20","v":{"v":0,"d":"0.00"}}]
[]
["8.","Odstranitev obstoječega poda linolej ter 2 mm izravnalne mase. Prenos, nakladanje in odvoz na trajno deponijo s plačilom takse. ","m2",34.11,null,{"$f":"D22*E22","v":{"v":0,"d":"0.00"}}]
[]
["9.","Odstranitev obstoječega poda linolej na podestu. Prenos, nakladanje in odvoz na trajno deponijo s plačilom takse. ","m2",{"v":5.5,"d":"5.50"},null,{"$f":"D24*E24","v":{"v":0,"d":"0.00"}}]
[]
["10.","Odstranitev podesta v prostoru kompletno s podkonstrukcijo dimenzije 2,7 x 2,6 x 0,5 m, z vgrajenimi predali in stopnicami. Prenos, nakladanje in odvoz na trajno deponijo s plačilom takse.","kpl",{"v":1,"d":"1.00"},null,{"$f":"D26*E26","v":{"v":0,"d":"0.00"}}]
[]
["11.","Demontaža in odstranitev omar šir.2,7 viš 3,1 m globina 0,6 m. Prenos, nakladanje in odvoz na trajno deponijo s plačilom takse.","kpl",{"v":1,"d":"1.00"},null,{"$f":"D28*E28","v":{"v":0,"d":"0.00"}}]
[]
["12.","Demontaža in odstranitev omar šir.2,65 viš 2,65 m globina 0,6 m. Prenos, nakladanje in odvoz na trajno deponijo s plačilom takse.","kpl",{"v":1,"d":"1.00"},null,{"$f":"D30*E30","v":{"v":0,"d":"0.00"}}]
[]
["13.","Rušitev kaskade pod stropom iz mavčnokartonskih plošč s podkonstrukcijo dim 40 x40 cm. Prenos, nakladanje in odvoz na trajno deponijo s plačilom takse.","m1",9.95,null,{"$f":"D32*E32","v":{"v":0,"d":"0.00"}}]
[]
["14.","Demontaža in odstranitev inštalacij v kaskadah - prezračevalni kanali, elektroinštalacije","kpl",{"v":1,"d":"1.00"},null,{"$f":"D34*E34","v":{"v":0,"d":"0.00"}}]
[]
["15.","Demontaža vhodnih vrat, z nadsvetlobo, velikosti 110 x 287 cm, z izbijanjem podboja in odstranitvijo vseh elementov. Prenos, nakladanje in odvoz na trajno deponijo s plačilom takse.","kos",{"v":1,"d":"1.00"},null,{"$f":"D36*E36","v":{"v":0,"d":"0.00"}}]
[]
["16.","Demontaža in odstranitev opreme: tabla, zvočniki, projekcijski pano in sejna miza SE SHRANI V SKLADIŠČE, miza 3x, stoli 3x, zofa 1x Prenos, nakladanje in odvoz na trajno deponijo s plačilom takse.","kpl",{"v":1,"d":"1.00"},null,{"$f":"D38*E38","v":{"v":0,"d":"0.00"}}]
[]
["17.","Izdelava preboja z vrtanjem velikosti fi 12 cm v zidu debeline 30 cm. Prenos, nakladanje in odvoz na trajno deponijo s plačilom takse.","kos",{"v":1,"d":"1.00"},null,{"$f":"D40*E40","v":{"v":0,"d":"0.00"}}]
[null," - za inštalacijo klime","kos",{"v":1,"d":"1.00"},null,{"$f":"D41*E41","v":{"v":0,"d":"0.00"}}]
[]
["18.","Demontaža stekla dim. 1250 x 950 mm pri prehodu cevi za klimatsko napravo skozi obstoječe okno. Prenos, nakladanje in odvoz na trajno deponijo s plačilom takse.","kos",{"v":1,"d":"1.00"},null,{"$f":"D43*E43","v":{"v":0,"d":"0.00"}}]
[]
["19.","Dolbljenje  utorov v zidovih, za razvod instalacij, preseka do 6x6 cm, z odvozom ruševin","m1",{"v":25,"d":"25.00"},null,{"$f":"D45*E45","v":{"v":0,"d":"0.00"}}]
[]
["20.","Dolbljenje  utorov v stropih, za razvod instalacij, preseka do 6x6 cm, z odvozom ruševin","m1",{"v":20,"d":"20.00"},null,{"$f":"D47*E47","v":{"v":0,"d":"0.00"}}]
[]
["21.","Dolbljenje utorov v stenah, za razvod instalacij, preseka do 15x12 cm, z obojestranim rezanjem, z odvozom ruševin","m1",{"v":9,"d":"9.00"},null,{"$f":"D49*E49","v":{"v":0,"d":"0.00"}}]
[null," - za inštalacijo klime","m1",{"v":7,"d":"7.00"},null,{"$f":"D50*E50","v":{"v":0,"d":"0.00"}}]
[]
["22.","Dolbljenje  v stropovih, za razvod instalacij, preseka do 15x6 cm, z odvozom ruševin na trajno deponijo s plačilom takse","m1",{"v":10,"d":"10.00"},null,{"$f":"D52*E52","v":{"v":0,"d":"0.00"}}]
[]
["23.","Dolbljenje utorov v tlakih, za razvod instalacij, preseka do 15x12 cm, z obojestranim rezanjem, z odvozom ruševin","m1",{"v":19,"d":"19.00"},null,{"$f":"D54*E54","v":{"v":0,"d":"0.00"}}]
[]
["24.","Dolbljenje  utorov v tlakih, za talne doze, z rezanjem, z odvozom ruševin","kos",{"v":6,"d":"6.00"},null,{"$f":"D56*E56","v":{"v":0,"d":"0.00"}}]
[]
["A3.","ZIDARSKA DELA"]
[]
[]
["25.","Krpanje stenskih ometov po odstranitvah inštalacij vodovoda, kanalizacije, vrat vratne odprtine, grobi in fini omet","m2",{"v":3.4,"d":"3.40"},null,{"$f":"D61*E61","v":{"v":0,"d":"0.00"}}]
[]
["26.","Obzidava instalacij na prehodu skozi zid ter obojestransko krpanje ometov","kos",{"v":1,"d":"1.00"},null,{"$f":"D63*E63","v":{"v":0,"d":"0.00"}}]
[null," - za inštalacijo klime","kos",{"v":1,"d":"1.00"},null,{"$f":"D64*E64","v":{"v":0,"d":"0.00"}}]
[]
["27.","Krpanje utorov v stenah, za razvod instalacij, preseka do 6x6 cm","m1",{"v":25,"d":"25.00"},null,{"$f":"D66*E66","v":{"v":0,"d":"0.00"}}]
[]
["28.","Krpanje utorov v stropih, za razvod instalacij, preseka do 6x6 cm","m1",{"v":20,"d":"20.00"},null,{"$f":"D68*E68","v":{"v":0,"d":"0.00"}}]
[]
["29.","Krpanje utorov v stenah, za razvod instalacij, preseka do 15x12 cm","m1",{"v":16,"d":"16.00"},null,{"$f":"D70*E70","v":{"v":0,"d":"0.00"}}]
[null," - za inštalacijo klime","m1",{"v":7,"d":"7.00"},null,{"$f":"D71*E71","v":{"v":0,"d":"0.00"}}]
[]
["30.","Krpanje utorov v stenah, za razvod instalacij, preseka do 15x6 cm","m1",{"v":10,"d":"10.00"},null,{"$f":"D73*E73","v":{"v":0,"d":"0.00"}}]
[]
["31.","Krpanje utorov v tlakih, za razvod instalacij, preseka do 15x12 cm","m1",{"v":19,"d":"19.00"},null,{"$f":"D75*E75","v":{"v":0,"d":"0.00"}}]
[]
["32.","Krpanje utorov v tlakih, po montaži talnih doz","kos",{"v":6,"d":"6.00"},null,{"$f":"D77*E77","v":{"v":0,"d":"0.00"}}]
[]
["33.","Krpanje ometov na mestu odstranjene stenske keramike, grobi in fini omet","m2",{"v":1.2,"d":"1.20"},null,{"$f":"D79*E79","v":{"v":0,"d":"0.00"}}]
[]
["34.","Popravilo betonskega tlaka na balkonu s sanirnim betonom","m2",{"v":1,"d":"1.00"},null,{"$f":"D81*E81","v":{"v":0,"d":"0.00"}}]
[]
["35.","Razna manjša in nepredvidena dela, pomoč obrnikom in instalaterjem. Z naročilom in potrditvijo s strani nadzora in gradbenem dnevniku","ur",{"v":5,"d":"5.00"},null,{"$f":"D83*E83","v":{"v":0,"d":"0.00"}}]
[]
[null,"Skupaj gradbena dela :",{"$nulls":3},{"$f":"SUM(F6:F84)","v":{"v":0,"d":"0.00"}}]
[]
[]
["B.","OBRTNIŠKA DELA"]
[]
["B1.","STAVBNO POHIŠTVO"]
[]
["1."," Dobava in montaža novega termopan stekla dimenzije 1250 x 950 mm","kos",{"v":1,"d":"1.00"},null,{"$f":"D92*E92","v":{"v":0,"d":"0.00"}}]
[]
["2.","Po potrebi servis okovja in tesnil obstoječih oken","kpl",{"v":1,"d":"1.00"},null,{"$f":"D94*E94","v":{"v":0,"d":"0.00"}}]
[]
["3.","Dobava in montaža novih vhodnih vrat VhN1 v prostor dimenzije 99 x 287 cm po priloženi shemi","kos",{"v":1,"d":"1.00"},null,{"$f":"D96*E96","v":{"v":0,"d":"0.00"}}]
[]
[]
["B2.","SLIKOPLESKARSKA DELA"]
[]
["4.","Struganje površine, nanos emulzije, kitanje, brušenje in pleskanje sten s poldisperzijsko belo barvo ","m2",{"v":60.3,"d":"60.30"},null,{"$f":"D101*E101","v":{"v":0,"d":"0.00"}}]
[]
["5.","Kitanje, brušenje in pleskanje  stropov s poldisperzijsko belo barvo  ","m2",{"v":34.1,"d":"34.10"},null,{"$f":"D103*E103","v":{"v":0,"d":"0.00"}}]
[]
["6.","Brušenje, grundiranje in lakiranje kovinske balkonske ograje z belim lakom","m2",{"v":8.7,"d":"8.70"},null,{"$f":"D105*E105","v":{"v":0,"d":"0.00"}}]
[]
["7.","Zaščita prostora in elementov med deli","kpl",{"v":1,"d":"1.00"},null,{"$f":"D107*E107","v":{"v":0,"d":"0.00"}}]
[]
["B3.","PODOPOLAGALSKA DELA"]
[]
["8.","Dobava in polaganje izgotovljenega parketa, debeline 15 mm, širine 8 cm, hrast natur, lakiran, s predhodno izvedbo izravnalne mase, z upasovanjem ob talnih dozah. Po potrjenem vzorcu s strani arhitektke.","m2",34.11,null,{"$f":"D111*E111","v":{"v":0,"d":"0.00"}}]
[]
["9.","Dobava in montaža nizkih lesenih stenskih letvic hrast lakirano, po potrditvi vzorca s strani arhitektke.","m1",{"v":24,"d":"24.00"},null,{"$f":"D113*E113","v":{"v":0,"d":"0.00"}}]
[]
["10.","Dobava in vgradnja profila na stiku dveh tlakov pod vrati 110 cm","kos",{"v":1,"d":"1.00"},null,{"$f":"D115*E115","v":{"v":0,"d":"0.00"}}]
[]
["11.","Izvedba nedrsečega epoksi zunanjega tlaka na balkonu na obstoječ teraco s predhodno izravnavo ","m2",{"v":6.9,"d":"6.90"},null,{"$f":"D117*E117","v":{"v":0,"d":"0.00"}}]
[]
[null,"Skupaj obrtniška dela :",{"$nulls":3},{"$f":"SUM(F90:F118)","v":{"v":0,"d":"0.00"}}]
[]
[]
["C.","INSTALACIJSKA DELA"]
[]
["C1.","STROJNE INSTALACIJE"]
[]
["1.","Dobava in montaža nove split klimatske naprave v prostoru in na fasadi","kpl",{"v":1,"d":"1.00"},null,{"$f":"D126*E126","v":{"v":0,"d":"0.00"}}]
[]
["2.","Inštalacija za klimatsko napravo podometno","m1",{"v":7,"d":"7.00"},null,{"$f":"D128*E128","v":{"v":0,"d":"0.00"}}]
[]
["3.","Dobava in montaža prezračevalnega sistema LUNOS s predhodno izvedbo preboja z vrtanjem skozi parapetni zid in pripravo elektroinštalacije","kpl",{"v":1,"d":"1.00"},null,{"$f":"D130*E130","v":{"v":0,"d":"0.00"}}]
[]
["4.","Demontaža obstoječe podometne vodovodne inštalacije, prestavitev vodovodne inštalacije 1/2 ¨ podometno, pod pult za nov priključek umivalnika, s piklopom na obstoječi vodovod  kompletno s fazonskimi kosi, tesnili in ventili","kpl",{"v":1,"d":"1.00"},null,{"$f":"D132*E132","v":{"v":0,"d":"0.00"}}]
[]
["5.","Prestavitev kanalizacijskega priključka za odtok korita","kpl",{"v":1,"d":"1.00"},null,{"$f":"D134*E134","v":{"v":0,"d":"0.00"}}]
[]
["6.","Dobava in montaža popdpultnega grelnika vode ter umivalniške izlivne  armature in odtočnega sifona.","kpl",{"v":1,"d":"1.00"},null,{"$f":"D136*E136","v":{"v":0,"d":"0.00"}}]
[]
["7.","Podometna predelava inštalacije centralne kurjave po ukinitvi radiatorja na steni desno gledano od vhoda ","kpl",{"v":1,"d":"1.00"},null,{"$f":"D138*E138","v":{"v":0,"d":"0.00"}}]
[]
["8.","Izdelava nove podometne inštalacije 7 m1 za priklop radiatorjev od obstoječega mesta radiatorja na levi steni gledano z vhoda, priprava za sredinski priklop radiatorjev","kpl",{"v":1,"d":"1.00"},null,{"$f":"D140*E140","v":{"v":0,"d":"0.00"}}]
[]
["9.","Dobava in montaža radiatorja velikosti 160/50/22 sredinski priklop komplet z ventili, montažo termostatske glave in z nosilci radiatorjev. ","kos",{"v":2,"d":"2.00"},null,{"$f":"D142*E142","v":{"v":0,"d":"0.00"}}]
[]
[null,"Skupaj strojne inštalacije :",{"$nulls":3},{"$f":"SUM(F126:F143)","v":{"v":0,"d":"0.00"}}]
[]
[]
["D.","ČIŠČENJE"]
[]
["1.","Čiščenje prostorov po končanih delih - vse površine, elementi oprema ","m2",{"v":34.1,"d":"34.10"},null,{"$f":"D149*E149","v":{"v":0,"d":"0.00"}}]
[]
["2.","Čiščenje oken in stekel","m2",{"v":28.2,"d":"28.20"},null,{"$f":"D151*E151","v":{"v":0,"d":"0.00"}}]
[]
[null,"Skupaj čiščenje:",{"$nulls":3},{"$f":"SUM(F149:F152)","v":{"v":0,"d":"0.00"}}]

{"sheet":"E9-32","index":2,"n_rows":122,"n_cols":6,"rows_kept":122}
[null,null,"m.e.","količina ","cena na enoto","znesek"]
["A.","GRADBENA DELA"]
[]
["A1.","PRIPRAVLJALNA DELA"]
[]
["1.","Izpraznitev prostorov (kar ni zajeto v postavkah v nadaljevanju), z odvozom. Priprava in ureditev gradbišča z ureditvijo gradbiščnih priključkov, vsakodnevno čiščenje skupnih prostorov in stopnišč, izvedba fizičnih zapor za preprečitev dostopa do gradbišča, postavitev gradbiščnih vrat, gradbiščne table in opozorilnih oznak, premični odri za izvajanje del ter druga pripravljalna in zaključna dela. V ceni zajeti tudi stroške deponije, prevozov in parkirnin glede na lokacijo objekta. V ceni zajeti tudi odstranitev vsega po zaključku del.","zajeto v skupnih delih",{"v":1,"d":"1.00"},null,{"$f":"D6*E6","v":{"v":0,"d":"0.00"}}]
[]
["A2.","RUŠITVENA DELA"]
[]
["2.","Odstranitev elektro instalacij, vsa nadometna napeljava, parapetni kanali 8m1, NIK kanal 2 m1, 4x stropne svetilke, vsa stikala in vtičnice ter ostali razvod. Prenos, nakladanje in odvoz na trajno deponijo s plačilom takse.","kpl",{"v":1,"d":"1.00"},null,{"$f":"D10*E10","v":{"v":0,"d":"0.00"}}]
[]
["3.","Demontaža in odstranitev pohištva: 1 kom pisarniške mize, 1 kom omara velikosti 200 x 150 x 40 cm. Prenos, nakladanje in odvoz na trajno deponijo s plačilom takse.","kpl",{"v":1,"d":"1.00"},null,{"$f":"D12*E12","v":{"v":0,"d":"0.00"}}]
[]
["4.","Odstranitev notranjih in zunanjih enot klime z razvodom. Prenos, nakladanje in odvoz na trajno deponijo s plačilom takse.","kos",{"v":1,"d":"1.00"},null,{"$f":"D14*E14","v":{"v":0,"d":"0.00"}}]
[]
["5.","Odstranitev radiatorjev z vsemi elementi. EN RADIATOR V SKLADIŠČE! Prenos, nakladanje in odvoz na trajno deponijo s plačilom takse.","kos",{"v":2,"d":"2.00"},null,{"$f":"D16*E16","v":{"v":0,"d":"0.00"}}]
[]
["6.","Odstranitev umivalnika, bojlerja, armature in vseh elementov. Prenos, nakladanje in odvoz na trajno deponijo s plačilom takse.","kpl",{"v":1,"d":"1.00"},null,{"$f":"D18*E18","v":{"v":0,"d":"0.00"}}]
[]
["7.","Odstranitev železnih kljuk iz stropa, nakladanje in odvoz na trajno deponijo s plačilom takse.","kos",{"v":4,"d":"4.00"},null,{"$f":"D20*E20","v":{"v":0,"d":"0.00"}}]
[]
["8.","Odbijanje stenske keramike. Prenos, nakladanje in odvoz na trajno deponijo s plačilom takse.","m2",{"v":1.8,"d":"1.80"},null,{"$f":"D22*E22","v":{"v":0,"d":"0.00"}}]
[]
["9.","Demontaža vhodnih vrat, z nadsvetlobo, velikosti 110 x 287 cm, z izbijanjem podboja in odstranitvijo vseh elementov. Prenos, nakladanje in odvoz na trajno deponijo s plačilom takse.","kos",{"v":1,"d":"1.00"},null,{"$f":"D24*E24","v":{"v":0,"d":"0.00"}}]
[]
["10.","Izdelava preboja velikosti fi 12 cm v zidu debeline 30 cm. Prenos, nakladanje in odvoz na trajno deponijo s plačilom takse.","kos",{"v":1,"d":"1.00"},null,{"$f":"D26*E26","v":{"v":0,"d":"0.00"}}]
[null," - za inštalacijo klime","kos",{"v":1,"d":"1.00"},null,{"$f":"D27*E27","v":{"v":0,"d":"0.00"}}]
[]
["11.","Dolbljenje  utorov v zidovih, za razvod instalacij, preseka do 6x6 cm, z odvozom ruševin","m1",{"v":25,"d":"25.00"},null,{"$f":"D29*E29","v":{"v":0,"d":"0.00"}}]
[]
["12.","Dolbljenje utorov v stenah, za razvod instalacij, preseka do 15x12 cm, z obojestranim rezanjem, z odvozom ruševin","m1",{"v":8,"d":"8.00"},null,{"$f":"D31*E31","v":{"v":0,"d":"0.00"}}]
[null," - za inštalacijo klime","m1",{"v":7,"d":"7.00"},null,{"$f":"D32*E32","v":{"v":0,"d":"0.00"}}]
[]
["A3.","ZIDARSKA DELA"]
[]
["13.","Pozidava opuščene vratne odprtine v zidu debeline 20 cm, iz modularca 29x19x19 cm in malte s sidranjem v obstoječi zid","m3",0.42,null,{"$f":"D36*E36","v":{"v":0,"d":"0.00"}}]
[]
["14.","Krpanje stenskih ometov pri pozidavi opuščene vratne odprtine, grobi in fini omet","m2",{"v":2.2,"d":"2.20"},null,{"$f":"D38*E38","v":{"v":0,"d":"0.00"}}]
[]
["15.","Obzidava instalacij na prehodu skozi zid ter obojestransko krpanje ometov","kos",{"v":1,"d":"1.00"},null,{"$f":"D40*E40","v":{"v":0,"d":"0.00"}}]
[null," - za inštalacijo klime","kos",{"v":1,"d":"1.00"},null,{"$f":"D41*E41","v":{"v":0,"d":"0.00"}}]
[]
["16.","Krpanje utorov v zidovih, za razvod instalacij, preseka do 6x6 cm","m1",{"v":25,"d":"25.00"},null,{"$f":"D43*E43","v":{"v":0,"d":"0.00"}}]
[]
["17.","Krpanje utorov v stenah, za razvod instalacij, preseka do 15x12 cm, z obojestranim rezanjem","m1",{"v":8,"d":"8.00"},null,{"$f":"D45*E45","v":{"v":0,"d":"0.00"}}]
[null," - za inštalacijo klime","m1",{"v":7,"d":"7.00"},null,{"$f":"D46*E46","v":{"v":0,"d":"0.00"}}]
[]
["18.","Krpanje ometov na mestu odstranjene stenske keramike, grobi in fini omet","m2",{"v":4,"d":"4.00"},null,{"$f":"D48*E48","v":{"v":0,"d":"0.00"}}]
[]
["19.","Razna manjša in nepredvidena dela, pomoč obrnikom in instalaterjem. Z naročilom in potrditvijo s strani nadzora in gradbenem dnevniku","ur",{"v":5,"d":"5.00"},null,{"$f":"D50*E50","v":{"v":0,"d":"0.00"}}]
[]
[null,"Skupaj gradbena dela :",{"$nulls":3},{"$f":"SUM(F6:F51)","v":{"v":0,"d":"0.00"}}]
[]
["B.","OBRTNIŠKA DELA"]
[]
["B1.","MAVČNOKARTONSKA DELA"]
[]
["1.","Izdelava Armstrong 15 cm spuščenega stropa s podkonstrukcijo in obešali. Sidranje v monta strop. Z vsemi zaključki.","m2",{"v":35.9,"d":"35.90"},null,{"$f":"D58*E58","v":{"v":0,"d":"0.00"}}]
[]
["2.","Dobava in izdelava vertikalnih zaključkov pri spuščenem stropu pri oknih iz mavčnih plošč na podkonstrukciji 15 x 200 cm , z bandažiranjem","kom",{"v":2,"d":"2.00"},null,{"$f":"D60*E60","v":{"v":0,"d":"0.00"}}]
[]
[]
["B2.","STAVBNO POHIŠTVO"]
[]
["3.","Dobava in montaža novih vhodnih vrat VhN1 v prostor dimenzije 99 x 287 cm po priloženi shemi","kos",{"v":1,"d":"1.00"},null,{"$f":"D65*E65","v":{"v":0,"d":"0.00"}}]
[]
[]
["B3.","SLIKOPLESKARSKA DELA"]
[]
["4.","Struganje površine, nanos emulzije, kitanje, brušenje in pleskanje sten s poldisperzijsko belo barvo ","m2",{"v":71.4,"d":"71.40"},null,{"$f":"D70*E70","v":{"v":0,"d":"0.00"}}]
[]
["5.","Pleskanje sten z lateks sijaj belo barvo (pri umivalniku) ","m2",{"v":3,"d":"3.00"},null,{"$f":"D72*E72","v":{"v":0,"d":"0.00"}}]
[]
["6.","Dobava in montaža alu vogalnikov ","m1",{"v":4,"d":"4.00"},null,{"$f":"D74*E74","v":{"v":0,"d":"0.00"}}]
[]
["7.","Zaščita prostora in elementov med deli","kpl",{"v":1,"d":"1.00"},null,{"$f":"D76*E76","v":{"v":0,"d":"0.00"}}]
[]
[]
["B4.","TERACERSKA DELA"]
[]
["8.","Čiščenje in brušenje površine in premaz notranje okenske police in špalete iz umetnega kamna, s predhodno zaščito obstoječega okna","m2",{"v":6.6,"d":"6.60"},null,{"$f":"D81*E81","v":{"v":0,"d":"0.00"}}]
[]
[]
["B5.","PODOPOLAGALSKA DELA"]
[]
["9.","Popravilo, kitanje, brušenje in lakiranje obstoječega parketa s kvalitetnim lakom ","m2",{"v":35.9,"d":"35.90"},null,{"$f":"D86*E86","v":{"v":0,"d":"0.00"}}]
[]
["10.","Dobava in montaža nizkih lesenih stenskih letvic, hrast lakirano.","m1",{"v":24,"d":"24.00"},null,{"$f":"D88*E88","v":{"v":0,"d":"0.00"}}]
[]
["11.","Dobava in vgradnja profila na stiku dveh tlakov pod vrati 110 cm","kos",{"v":1,"d":"1.00"},null,{"$f":"D90*E90","v":{"v":0,"d":"0.00"}}]
[]
[null,"Skupaj obrtniška dela :",{"$nulls":3},{"$f":"SUM(F58:F91)","v":{"v":0,"d":"0.00"}}]
[]
[]
["C.","INSTALACIJSKA DELA"]
[]
["C1.","STROJNE INSTALACIJE"]
[]
["1.","Predelava priključka radiatorja in napeljava inštalacije podometno v dolžini cca 1m na sredino radiatorja. ","kpl",{"v":2,"d":"2.00"},null,{"$f":"D99*E99","v":{"v":0,"d":"0.00"}}]
[]
["2.","Dobava in montaža radiatorja velikosti 140/60/22 sredinski priklop komplet z ventili, montažo termostatske glave in z nosilci radiatorjev. ","kos",{"v":2,"d":"2.00"},null,{"$f":"D101*E101","v":{"v":0,"d":"0.00"}}]
[]
["3.","Dobava in montaža nove split klimatske naprave v prostoru in na fasadi","kpl",{"v":1,"d":"1.00"},null,{"$f":"D103*E103","v":{"v":0,"d":"0.00"}}]
[]
["4.","Inštalacija za klimatsko napravo podometno","m1",{"v":5,"d":"5.00"},null,{"$f":"D105*E105","v":{"v":0,"d":"0.00"}}]
[]
["5.","Demontaža obstoječe podometne vodovodne inštalacije, prestavitev vodovodne inštalacije 1/2 ¨ podometno, pod umivalnik, s priklopom na obstoječi vodovod  kompletno s fazonskimi kosi, tesnili in ventili","kpl",{"v":1,"d":"1.00"},null,{"$f":"D107*E107","v":{"v":0,"d":"0.00"}}]
[]
["6.","Dobava in montaža umivalnika 50 cm, popdpultnega grelnika vode ter umivalniške izlivne  armature in odtočnega sifona.","kpl",{"v":1,"d":"1.00"},null,{"$f":"D109*E109","v":{"v":0,"d":"0.00"}}]
[]
[null,"Skupaj strojne inštalacije :",{"$nulls":3},{"$f":"SUM(F99:F110)","v":{"v":0,"d":"0.00"}}]
[]
[]
["D.","OSTALO"]
[]
["D1.","ČIŠČENJE"]
[]
["1.","Čiščenje prostorov po končanih delih - vse površine, elementi oprema.","m2",{"v":35.9,"d":"35.90"},null,{"$f":"D118*E118","v":{"v":0,"d":"0.00"}}]
[]
["2.","Čiščenje oken, steklenih površin","m2",{"v":17,"d":"17.00"},null,{"$f":"D120*E120","v":{"v":0,"d":"0.00"}}]
[]
[null,"Skupaj čiščenje:",{"$nulls":3},{"$f":"SUM(F114:F121)","v":{"v":0,"d":"0.00"}}]

{"sheet":"E9-33","index":3,"n_rows":118,"n_cols":6,"rows_kept":118}
[null,null,"m.e.","količina ","cena na enoto","znesek"]
["A.","GRADBENA DELA"]
[]
["A1.","PRIPRAVLJALNA DELA"]
[]
["1.","Izpraznitev prostorov (kar ni zajeto v postavkah v nadaljevanju), z odvozom. Priprava in ureditev gradbišča z ureditvijo gradbiščnih priključkov, vsakodnevno čiščenje skupnih prostorov in stopnišč, izvedba fizičnih zapor za preprečitev dostopa do gradbišča, postavitev gradbiščnih vrat, gradbiščne table in opozorilnih oznak, premični odri za izvajanje del ter druga pripravljalna in zaključna dela. V ceni zajeti tudi stroške deponije, prevozov in parkirnin glede na lokacijo objekta. V ceni zajeti tudi odstranitev vsega po zaključku del.","zajeto v skupnih delih",{"v":1,"d":"1.00"},null,{"$f":"D6*E6","v":{"v":0,"d":"0.00"}}]
[]
["A2.","RUŠITVENA DELA"]
[]
["2.","Odstranitev elektro instalacij, vsa nadometna napeljava, parapetni kanali 11,6 m1, NIK kanali, 15,5 m1, 2x stropne svetilke, vsa stikala in vtičnice ter ostali razvod. Prenos, nakladanje in odvoz na trajno deponijo s plačilom takse.","kpl",{"v":1,"d":"1.00"},null,{"$f":"D10*E10","v":{"v":0,"d":"0.00"}}]
[]
["3.","Demontaža vhodnih vrat, z nadsvetlobo, velikosti 110 x 287 cm, z izbijanjem podboja in odstranitvijo vseh elementov. Prenos, nakladanje in odvoz na trajno deponijo s plačilom takse. 1 demontaža za prostor 34.","kos",{"v":2,"d":"2.00"},null,{"$f":"D12*E12","v":{"v":0,"d":"0.00"}}]
[]
["4.","Demontaža in odstranitev komunikacijske omarice na steni: Prenos, nakladanje in odvoz na trajno deponijo s plačilom takse","kos",{"v":1,"d":"1.00"},null,{"$f":"D14*E14","v":{"v":0,"d":"0.00"}}]
[]
["5.","Odstranitev notranjih in zunanjih enot klime z razvodom. Prenos, nakladanje in odvoz na trajno deponijo s plačilom takse.","kos",{"v":1,"d":"1.00"},null,{"$f":"D16*E16","v":{"v":0,"d":"0.00"}}]
[]
["6.","Odstranitev radiatorjev z vsemi elementi. Prenos, nakladanje in odvoz na trajno deponijo s plačilom takse.","kos",{"v":1,"d":"1.00"},null,{"$f":"D18*E18","v":{"v":0,"d":"0.00"}}]
[]
["7.","Demontaža in odstranitev pohištva: 5 kom pisarniške mize, 4 kom predalnik, 8 kom stol, 35 m1 polic in podkonstrukcije, lesene stenske table 2 kom, karnise 3,3 m1 . Prenos, nakladanje in odvoz na trajno deponijo s plačilom takse.","kpl",{"v":1,"d":"1.00"},null,{"$f":"D20*E20","v":{"v":0,"d":"0.00"}}]
[]
["8.","Demontaža zunanjih žaluzij 190 x 235 cm z vsemi elementi. Prenos, nakladanje in odvoz na trajno deponijo s plačilom takse.","kos",{"v":1,"d":"1.00"},null,{"$f":"D22*E22","v":{"v":0,"d":"0.00"}}]
[]
["9.","Odstranitev laminatnega poda in tapisoma pod njim na iveralu. Prenos, nakladanje in odvoz na trajno deponijo s plačilom takse.","m2",{"v":20.4,"d":"20.40"},null,{"$f":"D24*E24","v":{"v":0,"d":"0.00"}}]
[]
["10.","Izdelava preboja velikosti fi 12 cm v zidu debeline 30 cm. Prenos, nakladanje in odvoz na trajno deponijo s plačilom takse.","kos",{"v":1,"d":"1.00"},null,{"$f":"D26*E26","v":{"v":0,"d":"0.00"}}]
[null," - za inštalacijo klime","kos",{"v":1,"d":"1.00"},null,{"$f":"D27*E27","v":{"v":0,"d":"0.00"}}]
[]
["11.","Dolbljenje utorov v zidovih, za razvod elektro instalacij, preseka do 6x6 cm. Prenos, nakladanje in odvoz na trajno deponijo s plačilom takse.","m1",{"v":16.5,"d":"16.50"},null,{"$f":"D29*E29","v":{"v":0,"d":"0.00"}}]
[]
["12.","Dolbljenje utorov stenah, za razvod instalacij, preseka do 15x12 cm, z obojestranim rezanjem. Prenos, nakladanje in odvoz na trajno deponijo s plačilom takse.","m1",{"v":3,"d":"3.00"},null,{"$f":"D31*E31","v":{"v":0,"d":"0.00"}}]
[null," - za inštalacijo klime","m1",{"v":8,"d":"8.00"},null,{"$f":"D32*E32","v":{"v":0,"d":"0.00"}}]
[]
["A3.","ZIDARSKA DELA"]
[]
["13.","Pozidava opuščene vratne odprtine v zidu debeline 20 cm, iz modularca 29x19x19 cm in malte s sidranjem v obstoječi zid","m3",0.42,null,{"$f":"D36*E36","v":{"v":0,"d":"0.00"}}]
[]
["14.","Krpanje stenskih ometov pri pozidavi opuščene vratne odprtine, grobi in fini omet","m2",{"v":2.2,"d":"2.20"},null,{"$f":"D38*E38","v":{"v":0,"d":"0.00"}}]
[]
["15.","Obzidava instalacij na prehodu skozi zid ter obojestransko krpanje ometov","kos",{"v":2,"d":"2.00"},null,{"$f":"D40*E40","v":{"v":0,"d":"0.00"}}]
[null," - za inštalacijo klime","kos",{"v":1,"d":"1.00"},null,{"$f":"D41*E41","v":{"v":0,"d":"0.00"}}]
[]
["16.","Krpanje utorov v zidovih, za razvod elektro instalacij, preseka do 6x6 cm","m1",{"v":16.5,"d":"16.50"},null,{"$f":"D43*E43","v":{"v":0,"d":"0.00"}}]
[]
["17.","Krpanje utorov v stenah, za razvod instalacij, preseka do 15x12 cm","m1",{"v":3,"d":"3.00"},null,{"$f":"D45*E45","v":{"v":0,"d":"0.00"}}]
[null," - za inštalacijo klime","m1",{"v":8,"d":"8.00"},null,{"$f":"D46*E46","v":{"v":0,"d":"0.00"}}]
[]
["18.","Razna manjša in nepredvidena dela, pomoč obrnikom in instalaterjem. Z naročilom in potrditvijo s strani nadzora in gradbenem dnevniku","ur",{"v":2,"d":"2.00"},null,{"$f":"D48*E48","v":{"v":0,"d":"0.00"}}]
[]
[null,"Skupaj gradbena dela :",{"$nulls":3},{"$f":"SUM(F6:F49)","v":{"v":0,"d":"0.00"}}]
[]
[]
["B.","OBRTNIŠKA DELA"]
[]
["B1.","MAVČNOKARTONSKA DELA"]
[]
["1.","Izdelava Armstrong spuščenega stropa iz s podkonstrukcijo in obešali. Sidranje v monta strop.","m2",{"v":20.4,"d":"20.40"},null,{"$f":"D57*E57","v":{"v":0,"d":"0.00"}}]
[]
["2.","Dobava in izdelava vertikalnih zaključkov pri spuščenem stropu pri oknih iz mavčnih plošč na podkonstrukciji 15 x 200 cm , z bandažiranjem","kom",{"v":1,"d":"1.00"},null,{"$f":"D59*E59","v":{"v":0,"d":"0.00"}}]
[]
[]
["B2.","STAVBNO POHIŠTVO"]
[]
["3.","Dobava in montaža novih vhodnih vrat VhN1 v prostor dimenzije 99 x 287 cm po priloženi shemi, ena vrata se montirajo v prostor 34","kos",{"v":2,"d":"2.00"},null,{"$f":"D64*E64","v":{"v":0,"d":"0.00"}}]
[]
["4.","Dobava in montaža zunanjih senčil velikosti 191 x 235 cm, enodelna, z zunanjo masko stranskimi vodili, krpanje iz lamel š 80 mm, ročno odpiranje","kos",{"v":1,"d":"1.00"},null,{"$f":"D66*E66","v":{"v":0,"d":"0.00"}}]
[]
[]
["B3.","SLIKOPLESKARSKA DELA"]
[]
["5.","Struganje površine, nanos emulzije, kitanje, brušenje in pleskanje sten s poldisperzijsko belo barvo ","m2",{"v":61.3,"d":"61.30"},null,{"$f":"D71*E71","v":{"v":0,"d":"0.00"}}]
[]
["6.","Zaščita prostora in elementov med deli","kpl",{"v":1,"d":"1.00"},null,{"$f":"D73*E73","v":{"v":0,"d":"0.00"}}]
[]
[]
["B4.","TERACERSKA DELA"]
[]
["7.","Čiščenje in brušenje površine in premaz notranje okenske police in špalete iz umetnega kamna, s predhodno zaščito obstoječega okna","m2",{"v":3.3,"d":"3.30"},null,{"$f":"D78*E78","v":{"v":0,"d":"0.00"}}]
[]
[]
["B5.","PODOPOLAGALSKA DELA"]
[]
["8.","Popravilo, kitanje, brušenje in lakiranje obstoječega parketa s kvalitetnim lakom ","m2",{"v":20.4,"d":"20.40"},null,{"$f":"D83*E83","v":{"v":0,"d":"0.00"}}]
[]
[null,"OPOMBA: Če je paket pod obstoječimi talnimi oblogami neuporaben se polaga nov parket."]
[]
["9.","Dobava in montaža nizkih lesenih stenskih letvic, hrast lakirano.","m1",{"v":18.5,"d":"18.50"},null,{"$f":"D87*E87","v":{"v":0,"d":"0.00"}}]
[]
["10.","Dobava in vgradnja profila na stiku dveh tlakov pod vrati 110 cm","kos",{"v":1,"d":"1.00"},null,{"$f":"D89*E89","v":{"v":0,"d":"0.00"}}]
[]
[]
[null,"Skupaj obrtniška dela :",{"$nulls":3},{"$f":"SUM(F57:F91)","v":{"v":0,"d":"0.00"}}]
[]
[]
["C.","INSTALACIJSKA DELA"]
[]
["C1.","STROJNE INSTALACIJE"]
[]
["2.","Predelava priključka radiatorja in napeljava inštalacije podometno v dolžini cca 1m na sredino radiatorja. ","kpl",{"v":1,"d":"1.00"},null,{"$f":"D99*E99","v":{"v":0,"d":"0.00"}}]
[]
["3.","Dobava in montaža radiatorja velikosti 140/60/22 sredinski priklop komplet z ventili, montažo termostatske glave in z nosilci radiatorjev. ","kos",{"v":1,"d":"1.00"},null,{"$f":"D101*E101","v":{"v":0,"d":"0.00"}}]
[]
["4.","Dobava in montaža nove split klimatske naprave srednjega razreda v prostoru in na fasadi","kpl",{"v":1,"d":"1.00"},null,{"$f":"D103*E103","v":{"v":0,"d":"0.00"}}]
[]
["5.","Inštalacija za klimatsko napravo podometno","m1",{"v":9,"d":"9.00"},null,{"$f":"D105*E105","v":{"v":0,"d":"0.00"}}]
[]
[null,"Skupaj strojne inštalacije :",{"$nulls":3},{"$f":"SUM(F99:F106)","v":{"v":0,"d":"0.00"}}]
[]
[]
["D.","OSTALO"]
[]
["D1.","ČIŠČENJE"]
[]
["1.","Čiščenje prostorov po končanih delih - vse površine, elementi oprema.","m2",{"v":20.4,"d":"20.40"},null,{"$f":"D114*E114","v":{"v":0,"d":"0.00"}}]
[]
["2.","Čiščenje oken, steklenih površin","m2",{"v":9,"d":"9.00"},null,{"$f":"D116*E116","v":{"v":0,"d":"0.00"}}]
[]
[null,"Skupaj čiščenje:",{"$nulls":3},{"$f":"SUM(F110:F117)","v":{"v":0,"d":"0.00"}}]

{"sheet":"E9-35","index":4,"n_rows":87,"n_cols":6,"rows_kept":87}
[null,null,"m.e.","količina ","cena na enoto","znesek"]
["A.","GRADBENA DELA"]
[]
["A1.","PRIPRAVLJALNA DELA"]
[]
["1.","Izpraznitev prostorov (kar ni zajeto v postavkah v nadaljevanju), z odvozom. Priprava in ureditev gradbišča z ureditvijo gradbiščnih priključkov, vsakodnevno čiščenje skupnih prostorov in stopnišč, izvedba fizičnih zapor za preprečitev dostopa do gradbišča, postavitev gradbiščnih vrat, gradbiščne table in opozorilnih oznak, premični odri za izvajanje del ter druga pripravljalna in zaključna dela. V ceni zajeti tudi stroške deponije, prevozov in parkirnin glede na lokacijo objekta. V ceni zajeti tudi odstranitev vsega po zaključku del.","zajeto v skupnih delih",{"v":1,"d":"1.00"},null,{"$f":"D6*E6","v":{"v":0,"d":"0.00"}}]
[]
["A2.","RUŠITVENA DELA"]
[]
["2.","Odstranitev notranjih in zunanjih enot klime z razvodom. Prenos, nakladanje in odvoz na trajno deponijo s plačilom takse.","kos",{"v":1,"d":"1.00"},null,{"$f":"D10*E10","v":{"v":0,"d":"0.00"}}]
[]
["3.","Odstranitev radiatorjev z vsemi elementi. Prenos, nakladanje in odvoz na trajno deponijo s plačilom takse.","kos",{"v":1,"d":"1.00"},null,{"$f":"D12*E12","v":{"v":0,"d":"0.00"}}]
[]
["4.","Demontaža  znanjih žaluzij  z vsemi elementi. Prenos, nakladanje in odvoz na trajno deponijo s plačilom takse.","kos",{"v":1,"d":"1.00"},null,{"$f":"D14*E14","v":{"v":0,"d":"0.00"}}]
[]
["5.","Izdelava preboja velikosti fi 12 cm v zidu debeline 30 cm. Prenos, nakladanje in odvoz na trajno deponijo s plačilom takse.","kos",{"v":1,"d":"1.00"},null,{"$f":"D16*E16","v":{"v":0,"d":"0.00"}}]
[]
["6.","Dolbljenje utorov v steni, za razvod instalacij, preseka do 15x12 cm, z obojestranim rezanjem.  Prenos, nakladanje in odvoz na trajno deponijo s plačilom takse.","m1",{"v":8,"d":"8.00"},null,{"$f":"D18*E18","v":{"v":0,"d":"0.00"}}]
[]
["A3.","ZIDARSKA DELA"]
[]
["7.","Obzidava instalacij na prehodu skozi zid ter obojestransko krpanje ometov","kos",{"v":1,"d":"1.00"},null,{"$f":"D22*E22","v":{"v":0,"d":"0.00"}}]
[]
["8.","Krpanje utorov v steni, za razvod instalacij, preseka do 15x12 cm","m1",{"v":8,"d":"8.00"},null,{"$f":"D24*E24","v":{"v":0,"d":"0.00"}}]
[]
["9.","Razna manjša in nepredvidena dela, pomoč obrnikom in instalaterjem. Z naročilom in potrditvijo s strani nadzora in gradbenem dnevniku","ur",{"v":1,"d":"1.00"},null,{"$f":"D26*E26","v":{"v":0,"d":"0.00"}}]
[]
[null,"Skupaj gradbena dela :",{"$nulls":3},{"$f":"SUM(F6:F27)","v":{"v":0,"d":"0.00"}}]
[]
[]
["B.","OBRTNIŠKA DELA"]
[]
["B1.","MAVČNOKARTONSKA DELA"]
[]
["1.","Izdelava Armstrong 15 cm spuščenega stropa s podkonstrukcijo in obešali. Sidranje v monta strop. Z vsemi zaključki.","m2",{"v":20.4,"d":"20.40"},null,{"$f":"D35*E35","v":{"v":0,"d":"0.00"}}]
[]
["2.","Dobava in izdelava vertikalnih zaključkov pri spuščenem stropu pri oknih iz mavčnih plošč na podkonstrukciji 15 x 200 cm , z bandažiranjem","kom",{"v":1,"d":"1.00"},null,{"$f":"D37*E37","v":{"v":0,"d":"0.00"}}]
[]
[]
["B2.","STAVBNO POHIŠTVO"]
[]
["3.","Izdelava in montaža zunanjih senčil, velikosti 191x235 cm, enodelna, z zunanjo masko, vodili, krpanje iz lamel širine 80 mm. ","kos",{"v":1,"d":"1.00"},null,{"$f":"D42*E42","v":{"v":0,"d":"0.00"}}]
[]
["B3.","SLIKOPLESKARSKA DELA"]
[]
["4.","Struganje površine, nanos emulzije, kitanje, brušenje in pleskanje sten s poldisperzijsko belo barvo ","m2",{"v":61.3,"d":"61.30"},null,{"$f":"D46*E46","v":{"v":0,"d":"0.00"}}]
[]
["5.","Zaščita prostora in elementov med deli","kpl",{"v":1,"d":"1.00"},null,{"$f":"D48*E48","v":{"v":0,"d":"0.00"}}]
[]
[]
["B4.","TERACERSKA DELA"]
[]
["6.","Čiščenje in brušenje površine in premaz notranje okenske police in špalete iz umetnega kamna, s predhodno zaščito obstoječega okna","m2",{"v":3.3,"d":"3.30"},null,{"$f":"D53*E53","v":{"v":0,"d":"0.00"}}]
[]
["B5.","PODOPOLAGALSKA DELA"]
[]
["7.","Popravilo, kitanje, brušenje in lakiranje obstoječega parketa s kvalitetnim lakom ","m2",{"v":20.4,"d":"20.40"},null,{"$f":"D57*E57","v":{"v":0,"d":"0.00"}}]
[]
["8.","Dobava in montaža nizkih lesenih stenskih letvic, hrast lakirano.","m1",{"v":18,"d":"18.00"},null,{"$f":"D59*E59","v":{"v":0,"d":"0.00"}}]
[]
[null,"Skupaj obrtniška dela :",{"$nulls":3},{"$f":"SUM(F35:F60)","v":{"v":0,"d":"0.00"}}]
[]
[]
["C.","INSTALACIJSKA DELA"]
[]
["C1.","STROJNE INSTALACIJE"]
[]
["1.","Predelava priključka radiatorja in napeljava inštalacije podometno v dolžini cca 1m na sredino radiatorja. ","kpl",{"v":1,"d":"1.00"},null,{"$f":"D68*E68","v":{"v":0,"d":"0.00"}}]
[]
["2.","Dobava in montaža radiatorja velikosti 140/60/22 sredinski priklop komplet z ventili, montažo termostatske glave in z nosilci radiatorjev. ","kos",{"v":1,"d":"1.00"},null,{"$f":"D70*E70","v":{"v":0,"d":"0.00"}}]
[]
["3.","Dobava in montaža nove split klimatske naprave srednjega razreda v prostoru in na fasadi","kpl",{"v":1,"d":"1.00"},null,{"$f":"D72*E72","v":{"v":0,"d":"0.00"}}]
[]
["4.","Inštalacija za klimatsko napravo podometno","m1",{"v":9,"d":"9.00"},null,{"$f":"D74*E74","v":{"v":0,"d":"0.00"}}]
[]
[null,"Skupaj strojne inštalacije :",{"$nulls":3},{"$f":"SUM(F68:F75)","v":{"v":0,"d":"0.00"}}]
[]
[]
["D.","OSTALO"]
[]
["D1.","ČIŠČENJE"]
[]
["1.","Čiščenje prostorov po končanih delih - vse površine, elementi oprema.","m2",{"v":20.4,"d":"20.40"},null,{"$f":"D83*E83","v":{"v":0,"d":"0.00"}}]
[]
["2.","Čiščenje oken, steklenih površin","m2",{"v":9,"d":"9.00"},null,{"$f":"D85*E85","v":{"v":0,"d":"0.00"}}]
[]
[null,"Skupaj čiščenje:",{"$nulls":3},{"$f":"SUM(F78:F86)","v":{"v":0,"d":"0.00"}}]

{"sheet":"E5-21, 22","index":5,"n_rows":137,"n_cols":6,"rows_kept":137}
[null,null,"m.e.","količina ","cena na enoto","znesek"]
["A.","GRADBENA DELA"]
[]
["A1.","PRIPRAVLJALNA DELA"]
[]
["1.","Izpraznitev prostorov (kar ni zajeto v postavkah v nadaljevanju), z odvozom. Priprava in ureditev gradbišča z ureditvijo gradbiščnih priključkov, vsakodnevno čiščenje skupnih prostorov in stopnišč, izvedba fizičnih zapor za preprečitev dostopa do gradbišča, postavitev gradbiščnih vrat, gradbiščne table in opozorilnih oznak, premični odri za izvajanje del ter druga pripravljalna in zaključna dela. V ceni zajeti tudi stroške deponije, prevozov in parkirnin glede na lokacijo objekta. V ceni zajeti tudi odstranitev vsega po zaključku del.","zajeto v skupnih delih",{"v":1,"d":"1.00"},null,{"$f":"D6*E6","v":{"v":0,"d":"0.00"}}]
[]
["A2.","RUŠITVENA DELA"]
[]
["2.","Demontaža vhodnih vrat velikosti 80x200 cm, z izbijanjem podboja in odstranitvijo vseh elementov. Prenos, nakladanje in odvoz na trajno deponijo s plačilom takse.","kos",{"v":2,"d":"2.00"},null,{"$f":"D10*E10","v":{"v":0,"d":"0.00"}}]
[]
["3.","Demontaža dvodelnega fiksnega okna dim. 180 x 90 cm, z izbijanjem podboja in odstranitvijo vseh elementov. Prenos, nakladanje in odvoz na trajno deponijo s plačilom takse.","kos",{"v":2,"d":"2.00"},null,{"$f":"D12*E12","v":{"v":0,"d":"0.00"}}]
[]
[4,"Demontaža tridelnega fiksnega okna dim. 289 x 90 cm, z izbijanjem podboja in odstranitvijo vseh elementov. Prenos, nakladanje in odvoz na trajno deponijo s plačilom takse.","kos",{"v":1,"d":"1.00"},null,{"$f":"D14*E14","v":{"v":0,"d":"0.00"}}]
[]
["5.","Demontaža krila notranjih vrat velikosti 90 x 200 cm - začasno v skladišče, zaščita podboja med deli","kpl",{"v":1,"d":"1.00"},null,{"$f":"D16*E16","v":{"v":0,"d":"0.00"}}]
[]
["6.","Rušenje stene iz mavčnih plošč s podkonstrukcijo, debeline 10 cm. Prenos, nakladanje in odvoz na trajno deponijo s plačilom takse.  ","m2",{"v":17.4,"d":"17.40"},null,{"$f":"D18*E18","v":{"v":0,"d":"0.00"}}]
[]
["7.","Odstranitev elektro instalacij, vsa nadometna napeljava, parapetni kanali 15,5m, NIK kanali 41,3m, 8x stropne svetilke, razdelilna omarica, vsa stikala in vtičnice ter ostali razvod. Prenos, nakladanje in odvoz na trajno deponijo s plačilom takse.","kpl",{"v":1,"d":"1.00"},null,{"$f":"D20*E20","v":{"v":0,"d":"0.00"}}]
[]
["8.","Demontaža in odstranitev pohištva: 3 kom pisarniške mize, 2 kom omara velikosti 200 x 80 x 40 cm, 2 kom predalniki pod mizo, 1x stol, lesena stena z obešalniki, ogledalo . Prenos, nakladanje in odvoz na trajno deponijo s plačilom takse.","kpl",{"v":1,"d":"1.00"},null,{"$f":"D22*E22","v":{"v":0,"d":"0.00"}}]
[]
["9.","Odstranitev notranjih in zunanjih enot klime z razvodom. Prenos, nakladanje in odvoz na trajno deponijo s plačilom takse.","kos",{"v":2,"d":"2.00"},null,{"$f":"D24*E24","v":{"v":0,"d":"0.00"}}]
[]
["10.","Odstranitev radiatorjev z vsemi elementi. Prenos, nakladanje in odvoz na trajno deponijo s plačilom takse.","kos",{"v":1,"d":"1.00"},null,{"$f":"D26*E26","v":{"v":0,"d":"0.00"}}]
[]
["11.","Odstranitev  talne obloge PVC vključno z odstranitvijo stenskih zaključkov vhod 21. Prenos, nakladanje in odvoz na trajno deponijo s plačilom takse.","m2",23.54,null,{"$f":"D28*E28","v":{"v":0,"d":"0.00"}}]
[]
["12.","Odstranitev  talne obloge PVC trislojno vključno z odstranitvijo stenskih zaključkov vhod 21 soba levo. Prenos, nakladanje in odvoz na trajno deponijo s plačilom takse.","m2",{"v":14.5,"d":"14.50"},null,{"$f":"D30*E30","v":{"v":0,"d":"0.00"}}]
[]
["13.","Odstranitev  talne obloge tapisom vključno z odstranitvijo stenskih zaključkov vhod 22 . Prenos, nakladanje in odvoz na trajno deponijo s plačilom takse.","m2",{"v":13,"d":"13.00"},null,{"$f":"D32*E32","v":{"v":0,"d":"0.00"}}]
[]
["14.","Dolbljenje  utorov v zidovih, za razvod instalacij, preseka do 6x6 cm, z odvozom ruševin","m1",{"v":10,"d":"10.00"},null,{"$f":"D34*E34","v":{"v":0,"d":"0.00"}}]
[]
["15.","Dolbljenje utorov v stropu, za razvod instalacij, preseka do 6x6 cm, z odvozom ruševin na trajno deponijo s plačilom takse.","m1",{"v":10,"d":"10.00"},null,{"$f":"D36*E36","v":{"v":0,"d":"0.00"}}]
[]
["16.","Dolbljenje utorov v stropu, za razvod instalacij, preseka do 15x6 cm, prenos, nalaganje, z odvozom ruševin na trajno deponijo s plačilom takse.","m1",{"v":6,"d":"6.00"},null,{"$f":"D38*E38","v":{"v":0,"d":"0.00"}}]
[]
["17.","Dolbljenje  v zidovih, za razvod instalacij, preseka do 15x12 cm, z odvozom ruševin na trajno deponijo s plačilom takse","m1",{"v":3,"d":"3.00"},null,{"$f":"D40*E40","v":{"v":0,"d":"0.00"}}]
[null," - za inštalacijo klime","m1",{"v":14,"d":"14.00"},null,{"$f":"D41*E41","v":{"v":0,"d":"0.00"}}]
[]
["A3.","ZIDARSKA DELA"]
[]
["18.","Pozidava okenske odprtine nad vrati v zidu debeline 20 cm, s siporexom  s sidranjem v obstoječi zid","m3",{"v":1.3,"d":"1.30"},null,{"$f":"D45*E45","v":{"v":0,"d":"0.00"}}]
[]
["19.","Krpanje stenskih ometov pri pozidavi  odprtin, grobi in fini omet obojestransko","m2",6.48,null,{"$f":"D47*E47","v":{"v":0,"d":"0.00"}}]
[]
["20.","Krpanje utorov v zidovih, na mestu porušenih zidov, pas širine do 15 cm, z uskladitvijo ravnine obstoječih ometov","m1",{"v":6.5,"d":"6.50"},null,{"$f":"D49*E49","v":{"v":0,"d":"0.00"}}]
[]
["21.","Krpanje utorov v zidovih, za razvod instalacij, preseka do 6x6 cm","m1",{"v":10,"d":"10.00"},null,{"$f":"D51*E51","v":{"v":0,"d":"0.00"}}]
[]
["22.","Krpanje utorov v stropu, za razvod instalacij, preseka do 6x6 cm","m1",{"v":10,"d":"10.00"},null,{"$f":"D53*E53","v":{"v":0,"d":"0.00"}}]
[]
["23.","Krpanje utorov v stropu, za razvod instalacij, preseka do 15x6 cm","m1",{"v":6,"d":"6.00"},null,{"$f":"D55*E55","v":{"v":0,"d":"0.00"}}]
[]
["23.","Krpanje utorov v zidovih, za razvod instalacij, preseka do 15x12 cm","m1",{"v":3,"d":"3.00"},null,{"$f":"D57*E57","v":{"v":0,"d":"0.00"}}]
[null," - za inštalacijo klime","m1",{"v":14,"d":"14.00"},null,{"$f":"D58*E58","v":{"v":0,"d":"0.00"}}]
[]
["24.","Razna manjša in nepredvidena dela, pomoč obrnikom in instalaterjem. Z naročilom in potrditvijo s strani nadzora in gradbenem dnevniku","ur",{"v":10,"d":"10.00"},null,{"$f":"D60*E60","v":{"v":0,"d":"0.00"}}]
[]
[null,"Skupaj gradbena dela :",{"$nulls":3},{"$f":"SUM(F6:F61)","v":{"v":0,"d":"0.00"}}]
[]
["B.","OBRTNIŠKA DELA"]
[]
["B1.","MAVČNOKARTONSKA DELA"]
[]
["1.","Izdelava škatle za pokritje inštalacij pod okni dim. 20x20 cm iz 1x mavčne plošče debeline 1,25 cm, s podkonstrukcijo, skupaj z bandažiranjem","m1",6.93,null,{"$f":"D68*E68","v":{"v":0,"d":"0.00"}}]
[]
[]
["B2.","STAVBNO POHIŠTVO"]
[]
["2.","Servis zunanjih senčil, po potrebi","kpl",{"v":1,"d":"1.00"},null,{"$f":"D73*E73","v":{"v":0,"d":"0.00"}}]
[]
["3.","Izdelava, dobava in montaža novih vrat  po shemi projektanta dimenzije 80/200 skupaj s podbojem. ","kos",{"v":2,"d":"2.00"},null,{"$f":"D75*E75","v":{"v":0,"d":"0.00"}}]
[]
["4.","Izdelava, dobava in montaža novega fiksnega okna FS2, dimenzije 289/90 alu okvir, termopan zasteklitev  po shemi projektanta  ","kos",{"v":1,"d":"1.00"},null,{"$f":"D77*E77","v":{"v":0,"d":"0.00"}}]
[]
[]
["B3.","SLIKOPLESKARSKA DELA"]
[]
["5.","Delno struganje površine, nanos emulzije, kitanje, brušenje in pleskanje sten in stebrov z poldisperzijsko belo barvo ","m2",{"v":124.9,"d":"124.90"},null,{"$f":"D82*E82","v":{"v":0,"d":"0.00"}}]
[]
["6.","Kitanje, brušenje in pleskanje  stropov s poldisperzijsko belo barvo  ","m2",{"v":51.9,"d":"51.90"},null,{"$f":"D84*E84","v":{"v":0,"d":"0.00"}}]
[]
["7.","Kitanje, brušenje in pleskanje stene na hodniku z latex barvo  kot obstoječa","m2",{"v":23.5,"d":"23.50"},null,{"$f":"D86*E86","v":{"v":0,"d":"0.00"}}]
[]
["8.","Kitanje, brušenje in pleskanje knauf oblog ","m2",{"v":2.8,"d":"2.80"},null,{"$f":"D88*E88","v":{"v":0,"d":"0.00"}}]
[]
["9.","Dobava in vgradnja alu vogalnikov","m1",{"v":15,"d":"15.00"},null,{"$f":"D90*E90","v":{"v":0,"d":"0.00"}}]
[]
["10.","Zaščita prostora in elementov med deli","kpl",{"v":1,"d":"1.00"},null,{"$f":"D92*E92","v":{"v":0,"d":"0.00"}}]
[]
[]
["B4.","TERACERSKA DELA"]
[]
["11.","Čiščenje in brušenje in premaz  stebrov iz umetnega kamna ","m2",{"v":18.2,"d":"18.20"},null,{"$f":"D97*E97","v":{"v":0,"d":"0.00"}}]
[]
["12.","Čiščenje in brušenje  in premaz  tal iz umetnega kamna ","m2",37.45,null,{"$f":"D99*E99","v":{"v":0,"d":"0.00"}}]
[]
["B5.","PODOPOLAGALSKA DELA"]
[]
["13.","Dobava in polaganje izgotovljenega parketa, debeline 15 mm, širine 8 cm, hrast natur, lakiran, s predhodno izvedbo izravnalne mase, z upasovanjem ob talnih dozah. Po potrjenem vzorcu s strani arhitektke.","m2",{"v":14.5,"d":"14.50"},null,{"$f":"D103*E103","v":{"v":0,"d":"0.00"}}]
[]
["13.","ALTERNATIVA TERACU:Dobava in polaganje tekstilne talne obloge in robnih letev na površino umetni kamen. Po potrjenem vzorcu s strani arhitektke. ","m2",37.45,null,{"v":0,"d":"0.00"}]
[]
["15.","Dobava in montaža alu profila pri stiku tlakov na vhodu v prostor cca 110 cm","kos",{"v":2,"d":"2.00"},null,{"$f":"D107*E107","v":{"v":0,"d":"0.00"}}]
[]
[null,"Skupaj obrtniška dela :",{"$nulls":3},{"$f":"SUM(F68:F108)","v":{"v":0,"d":"0.00"}}]
[]
[]
["C.","INSTALACIJSKA DELA"]
[]
["C1.","STROJNE INSTALACIJE"]
[]
["1.","Predelava priklučka radiatorja in napeljava inštalacije  Cu cev nad tlakom v dolžini cca 1m ","kpl",{"v":2,"d":"2.00"},null,{"$f":"D116*E116","v":{"v":0,"d":"0.00"}}]
[]
["2.","Dobava in montaža radiatorja velikosti 180/30/33 , klasični priklop na Cu cev komplet z ventili, montažo termostatske glave in z nosilci radiatorjev. ","kos",{"v":1,"d":"1.00"},null,{"$f":"D118*E118","v":{"v":0,"d":"0.00"}}]
[]
["3.","Demontaža klasičnega radiatorja in obstoječih ventilov čiščenje in ponovna montaža z dobavo in montažo novih ventilov ter termostatske glave ","kpl",{"v":2,"d":"2.00"},null,{"$f":"D120*E120","v":{"v":0,"d":"0.00"}}]
[]
["4.","Dobava in montaža nove split klimatske naprave srednjega razreda v prostoru","kpl",{"v":2,"d":"2.00"},null,{"$f":"D122*E122","v":{"v":0,"d":"0.00"}}]
[]
["5.","Inštalacija za klimatsko napravo podometno v zidu ","m1",{"v":14,"d":"14.00"},null,{"$f":"D124*E124","v":{"v":0,"d":"0.00"}}]
[]
[null,"Skupaj strojne inštalacije :",{"$nulls":3},{"$f":"SUM(F116:F125)","v":{"v":0,"d":"0.00"}}]
[]
[]
["D.","OSTALO"]
[]
["D1.","ČIŠČENJE"]
[]
["1.","Čiščenje prostorov po končanih delih - vse površine, elementi oprema.","m2",{"v":51.9,"d":"51.90"},null,{"$f":"D133*E133","v":{"v":0,"d":"0.00"}}]
[]
["2.","Čiščenje oken, steklenih površin","m2",{"v":47.2,"d":"47.20"},null,{"$f":"D135*E135","v":{"v":0,"d":"0.00"}}]
[]
[null,"Skupaj čiščenje:",{"$nulls":3},{"$f":"SUM(F133:F136)","v":{"v":0,"d":"0.00"}}]

{"sheet":"E1-16","index":6,"n_rows":118,"n_cols":6,"rows_kept":118}
[null,null,"m.e.","količina ","cena na enoto","znesek"]
["A.","GRADBENA DELA"]
[]
["A1.","PRIPRAVLJALNA DELA"]
[]
["1.","Izpraznitev prostorov (kar ni zajeto v postavkah v nadaljevanju), z odvozom. Priprava in ureditev gradbišča z ureditvijo gradbiščnih priključkov, vsakodnevno čiščenje skupnih prostorov in stopnišč, izvedba fizičnih zapor za preprečitev dostopa do gradbišča, postavitev gradbiščnih vrat, gradbiščne table in opozorilnih oznak, premični odri za izvajanje del ter druga pripravljalna in zaključna dela. V ceni zajeti tudi stroške deponije, prevozov in parkirnin glede na lokacijo objekta. V ceni zajeti tudi odstranitev vsega po zaključku del.","zajeto v skupnih delih",{"v":0,"d":"0.00"},null,{"$f":"D6*E6","v":{"v":0,"d":"0.00"}}]
[]
["A2.","RUŠITVENA DELA"]
[]
["2.","Demontaža vhodnih vrat, z nadsvetlobo, velikosti 200 x 264 cm, z izbijanjem podboja in odstranitvijo vseh elementov. Prenos, nakladanje in odvoz na trajno deponijo s plačilom takse.","kos",{"v":1,"d":"1.00"},null,{"$f":"D10*E10","v":{"v":0,"d":"0.00"}}]
[]
["3.","Demontaža in iznos pohištva na hodnik pred prostorom: 6 kom miza, 6 kom regali  dimenzije 100x200 cm, 1 kom stena z obešalniki","kpl",{"v":1,"d":"1.00"},null,{"$f":"D12*E12","v":{"v":0,"d":"0.00"}}]
[]
["4.","Odstranitev elektro instalacij, vsa nadometna napeljava, ožičenje, parapetni kanali se shranijo za ponovno montažo, 6x stropne svetilke, stikala in vtičnice ter ostali razvod, komunikacijska omarica. Prenos, nakladanje in odvoz na trajno deponijo s plačilom takse.","kpl",{"v":1,"d":"1.00"},null,{"$f":"D14*E14","v":{"v":0,"d":"0.00"}}]
[]
["5.","Odstranitev cevi inštalacij na stropu, razen cev s komprimiranim zrakom! Pred odstranitvijo ostalih cevi preveriti ali so še v funkciji! Po potrebi začepiti.","m1",{"v":36.5,"d":"36.50"},null,{"$f":"D16*E16","v":{"v":0,"d":"0.00"}}]
[]
["6.","Odstranitev notranjih in zunanjih  enot klime z razvodom. Prenos, nakladanje in odvoz na trajno deponijo s plačilom takse.","kpl",{"v":1,"d":"1.00"},null,{"$f":"D18*E18","v":{"v":0,"d":"0.00"}}]
[]
["7.","Rušenje  tristranske škatle iz mavčno kartonskih plošč na stropu komplet s podkonstrukcijo dimenzije 0,4x1,30x0,4. Prenos, nakladanje in odvoz na trajno deponijo s plačilom takse. ","m2",15.33,null,{"$f":"D20*E20","v":{"v":0,"d":"0.00"}}]
[]
["8.","Rušenje  vertikalne dvostranske škatle iz mavčno kartonskih plošč  komplet s podkonstrukcijo dimenzije 0,35x0,35m. Prenos, nakladanje in odvoz na trajno deponijo s plačilom takse. ","m1",{"v":3,"d":"3.00"},null,{"$f":"D22*E22","v":{"v":0,"d":"0.00"}}]
[]
["9.","Odstranitev  talne obloge parket vključno z odstranitvijo stenskih zaključkov. Prenos, nakladanje in odvoz na trajno deponijo s plačilom takse.","m2",{"v":51,"d":"51.00"},null,{"$f":"D24*E24","v":{"v":0,"d":"0.00"}}]
[]
["10.","Rušenje celotne sestave tlaka do talne plošče v sestavi colarice, morali 8x6 cm in gramozno nasutje 6 cm. Prenos, nakladanje in odvoz na trajno deponijo s plačilom takse. PREVERITI SESTAVO TLAKA OB ZAČETKU DEL!","m2",{"v":51,"d":"51.00"},null,{"$f":"D26*E26","v":{"v":0,"d":"0.00"}}]
[]
["11.","Dolbljenje  utorov v zidovih, za razvod instalacij, preseka do 6x6 cm, z odvozom ruševin","m1",{"v":20,"d":"20.00"},null,{"$f":"D28*E28","v":{"v":0,"d":"0.00"}}]
[]
[null,"Dolbljenje utorov v stropu, za razvod instalacij, preseka do 6x6 cm, z odvozom ruševin na trajno deponijo s plačilom takse.","m1",{"v":27,"d":"27.00"},null,{"$f":"D30*E30","v":{"v":0,"d":"0.00"}}]
[]
["12.","Dolbljenje  v zidovih, za razvod instalacij, preseka do 15x10 cm, z odvozom ruševin na trajno deponijo s plačilom takse","m1",{"v":9,"d":"9.00"},null,{"$f":"D32*E32","v":{"v":0,"d":"0.00"}}]
[null," - za inštalacijo klime","m1",{"v":3,"d":"3.00"},null,{"$f":"D33*E33","v":{"v":0,"d":"0.00"}}]
[]
["13.","Dolbljenje  v stropovih, za razvod instalacij, preseka do 15x6 cm, z odvozom ruševin na trajno deponijo s plačilom takse","m1",{"v":10,"d":"10.00"},null,{"$f":"D35*E35","v":{"v":0,"d":"0.00"}}]
[]
["14.","Dolbljenje za elektro omarico v zid, 20x40x60, z odvozom ruševin na trajno deponijo s plačilom takse","kom",{"v":1,"d":"1.00"},null,{"$f":"D37*E37","v":{"v":0,"d":"0.00"}}]
[]
[]
["A3.","ZIDARSKA DELA"]
[]
["15.","Krpanje utorov v zidovih, za razvod instalacij, preseka do 6x6 cm","m1",{"v":20,"d":"20.00"},null,{"$f":"D42*E42","v":{"v":0,"d":"0.00"}}]
[]
["16.","Krpanje utorov v stropu, za razvod instalacij, preseka do 6x6 cm","m1",{"v":27,"d":"27.00"},null,{"$f":"D44*E44","v":{"v":0,"d":"0.00"}}]
[]
["17.","Krpanje utorov v zidovih, za razvod instalacij, preseka do 15x10 cm","m1",{"v":9,"d":"9.00"},null,{"$f":"D46*E46","v":{"v":0,"d":"0.00"}}]
[null," - za inštalacijo klime","m1",{"v":3,"d":"3.00"},null,{"$f":"D47*E47","v":{"v":0,"d":"0.00"}}]
[]
["18.","Vzidava elektro omarice v zid, 20x40x60","kom",{"v":1,"d":"1.00"},null,{"$f":"D49*E49","v":{"v":0,"d":"0.00"}}]
[]
["19.","Dobava in izdelava hidroizolacije talne plošče z npr. Izotekt T4 s predhodnim premazom z ibitolom, 5 cm zavihek na stene","m2",{"v":51,"d":"51.00"},null,{"$f":"D51*E51","v":{"v":0,"d":"0.00"}}]
[]
["20.","Izdelava plavajočega mikroarmiranega betonskega estriha deb.6 cm, PE folija, 8 cm TI, z dodatkom za hitro sušenje - 14 dni","m2",{"v":51,"d":"51.00"},null,{"$f":"D53*E53","v":{"v":0,"d":"0.00"}}]
[]
["21.","Zidarsko popravilo špalet po odstranitvi vhodnih vrat, širina zidu 30 cm ","m1",{"v":7.3,"d":"7.30"},null,{"$f":"D55*E55","v":{"v":0,"d":"0.00"}}]
[]
["22.","Razna manjša in nepredvidena dela, pomoč obrnikom in instalaterjem. Z naročilom in potrditvijo s strani nadzora in gradbenem dnevniku","ur",{"v":5,"d":"5.00"},null,{"$f":"D57*E57","v":{"v":0,"d":"0.00"}}]
[]
[null,"Skupaj gradbena dela :",{"$nulls":3},{"$f":"SUM(F6:F58)","v":{"v":0,"d":"0.00"}}]
[]
[]
["B.","OBRTNIŠKA DELA"]
[]
["B1.","MAVČNOKARTONSKA DELA"]
[]
["1.","Izdelava škatle za pokritje inštalacij v kotu dimenzije 35x35 cm iz 1x mavčne plošče debeline 1,25 cm, s podkonstrukcijo, zvočno izolacijo, skupaj z bandažiranjem","m1",{"v":3,"d":"3.00"},null,{"$f":"D66*E66","v":{"v":0,"d":"0.00"}}]
[]
[]
["B2.","STAVBNO POHIŠTVO"]
[]
["2.","Izdelava, dobava in montaža novih dvokrilnih vrat VhP po shemi projektanta dimenzije 200 x 260 skupaj s podbojem z elektronsko ključavnico. ","kos",{"v":1,"d":"1.00"},null,{"$f":"D71*E71","v":{"v":0,"d":"0.00"}}]
[]
[]
["B3.","SLIKOPLESKARSKA DELA"]
[]
["3.","Delno struganje površine, nanos emulzije, kitanje, brušenje in pleskanje sten z poldisperzijsko belo barvo ","m2",{"v":85.5,"d":"85.50"},null,{"$f":"D76*E76","v":{"v":0,"d":"0.00"}}]
[]
["4.","Kitanje, brušenje in pleskanje  stropov s poldisperzijsko belo barvo  ","m2",{"v":51,"d":"51.00"},null,{"$f":"D78*E78","v":{"v":0,"d":"0.00"}}]
[]
["5.","Dobava in vgradnja alu vogalnikov","m1",{"v":9,"d":"9.00"},null,{"$f":"D80*E80","v":{"v":0,"d":"0.00"}}]
[]
["6.","Brušenje, miniziranje in lakiranje cevi za zrak na stropu","m1",{"v":8,"d":"8.00"},null,{"$f":"D82*E82","v":{"v":0,"d":"0.00"}}]
[]
["B4.","TERACERSKA DELA"]
[]
["7.","Čiščenje in brušenje površine in premaz notranje okenske police  iz umetnega kamna","m2",{"v":1.2,"d":"1.20"},null,{"$f":"D86*E86","v":{"v":0,"d":"0.00"}}]
[]
["B5.","PODOPOLAGALSKA DELA"]
[]
["8.","Dobava in polaganje antistatičnega linoleja z dobavo in vgradnjo stenskih zaokrožnic, s predhodno izvedbo izravnalne mase. Po potrjenem vzorcu s strani arhitektke.","m2",{"v":51,"d":"51.00"},null,{"$f":"D90*E90","v":{"v":0,"d":"0.00"}}]
[]
["9.","Dobava in montaža alu profila pri stiku tlakov na vhodu v prostor 200 cm","kos",{"v":1,"d":"1.00"},null,{"$f":"D92*E92","v":{"v":0,"d":"0.00"}}]
[]
[null,"Skupaj obrtniška dela :",{"$nulls":3},{"$f":"SUM(F66:F93)","v":{"v":0,"d":"0.00"}}]
[]
[]
["C.","INSTALACIJSKA DELA"]
[]
["C1.","STROJNE INSTALACIJE"]
[]
["1.","Preveritev lokacije vodovodnega priključka in odtoka na obstoječem mestu glede na načrt. Po potrebi premik inštalacije.","kpl",{"v":1,"d":"1.00"},null,{"$f":"D101*E101","v":{"v":0,"d":"0.00"}}]
[]
["2.","Dobava in montaža nove split klimatske naprave srednjeg razreda v prostoru","kpl",{"v":1,"d":"1.00"},null,{"$f":"D103*E103","v":{"v":0,"d":"0.00"}}]
[]
["3.","Inštalacija za klimatsko napravo 3 m podometno v zidu ter 7 m po tleh","m1",{"v":10,"d":"10.00"},null,{"$f":"D105*E105","v":{"v":0,"d":"0.00"}}]
[]
["4.","Dobava in montaža popdpultnega grelnika vode 10L ter kuhinjske izlivne  armature, kpl z ventili in odtočnega sifona.","kpl",{"v":1,"d":"1.00"},null,{"$f":"D107*E107","v":{"v":0,"d":"0.00"}}]
[]
[null,"Skupaj strojne inštalacije :",{"$nulls":3},{"$f":"SUM(F101:F107)","v":{"v":0,"d":"0.00"}}]
[]
[]
["D.","ČIŠČENJE"]
[]
["1.","Čiščenje prostorov po končanih delih - vse površine, elementi oprema in steklene površine.","m2",{"v":51,"d":"51.00"},null,{"$f":"D114*E114","v":{"v":0,"d":"0.00"}}]
[]
["2.","Čiščenje oken in stekel","m2",{"v":6,"d":"6.00"},null,{"$f":"D116*E116","v":{"v":0,"d":"0.00"}}]
[]
[null,"Skupaj čiščenje:",{"$nulls":3},{"$f":"SUM(F114:F117)","v":{"v":0,"d":"0.00"}}]

{"sheet":"E1-52, 53","index":7,"n_rows":178,"n_cols":6,"rows_kept":178}
[null,null,"m.e.","količina ","cena na enoto","znesek"]
["A.","GRADBENA DELA"]
[]
["A1.","PRIPRAVLJALNA DELA"]
[]
["1.","Izpraznitev prostorov (kar ni zajeto v postavkah v nadaljevanju), z odvozom. Priprava in ureditev gradbišča z ureditvijo gradbiščnih priključkov, vsakodnevno čiščenje skupnih prostorov in stopnišč, izvedba fizičnih zapor za preprečitev dostopa do gradbišča, postavitev gradbiščnih vrat, gradbiščne table in opozorilnih oznak, premični odri za izvajanje del ter druga pripravljalna in zaključna dela. V ceni zajeti tudi stroške deponije, prevozov in parkirnin glede na lokacijo objekta. V ceni zajeti tudi odstranitev vsega po zaključku del.","zajeto v skupnih delih",{"v":1,"d":"1.00"},null,{"$f":"D6*E6","v":{"v":0,"d":"0.00"}}]
[]
["A2.","RUŠITVENA DELA"]
[]
["2.","Demontaža vhodnih vrat velikosti 100x200 cm, z izbijanjem podboja in odstranitvijo vseh elementov. Prenos, nakladanje in odvoz na trajno deponijo s plačilom takse.","kos",{"v":3,"d":"3.00"},null,{"$f":"D10*E10","v":{"v":0,"d":"0.00"}}]
[]
["3.","Demontaža dvodelnega fiksnega okna dim. 180 x 90 cm, z izbijanjem podboja in odstranitvijo vseh elementov. Prenos, nakladanje in odvoz na trajno deponijo s plačilom takse.","kos",{"v":1,"d":"1.00"},null,{"$f":"D12*E12","v":{"v":0,"d":"0.00"}}]
[]
["4.","Demontaža tridelnega fiksnega okna dim. 289 x 90 cm, z izbijanjem podboja in odstranitvijo vseh elementov. Prenos, nakladanje in odvoz na trajno deponijo s plačilom takse.","kos",{"v":1,"d":"1.00"},null,{"$f":"D14*E14","v":{"v":0,"d":"0.00"}}]
[]
["5.","Demontaža štiridelnega fiksnega okna dim. 384 x 90 cm, z izbijanjem podboja in odstranitvijo vseh elementov. Prenos, nakladanje in odvoz na trajno deponijo s plačilom takse.","kos",{"v":1,"d":"1.00"},null,{"$f":"D16*E16","v":{"v":0,"d":"0.00"}}]
[]
["6.","Demontaža notranjih vrat velikosti 90 x 200 cm, z izbijanjem podboja in odstranitvijo vseh elementov. Prenos, nakladanje in odvoz na trajno deponijo s plačilom takse.","kpl",{"v":1,"d":"1.00"},null,{"$f":"D18*E18","v":{"v":0,"d":"0.00"}}]
[]
["7.","Odstranitev stene iz mavčnih plošč na podkonstrukciji, enostransko. Prenos, nakladanje in odvoz na trajno deponijo s plačilom takse.  ","m2",{"v":2,"d":"2.00"},null,{"$f":"D20*E20","v":{"v":0,"d":"0.00"}}]
[]
["8.","Odstranitev elektro instalacij, vsa nadometna napeljava, parapetni kanali 42m, NIK kanali 48m, 10x stropne svetilke, vsa stikala in vtičnice ter ostali razvod. Prenos, nakladanje in odvoz na trajno deponijo s plačilom takse.","kpl",{"v":1,"d":"1.00"},null,{"$f":"D22*E22","v":{"v":0,"d":"0.00"}}]
[]
["9.","Demontaža in odstranitev pohištva: 4 kom stenska omara velikosti 80 x 80 x 40 cm, 3x lesena stena med mizami, ogled. Prenos, nakladanje in odvoz na trajno deponijo s plačilom takse.","kpl",{"v":1,"d":"1.00"},null,{"$f":"D24*E24","v":{"v":0,"d":"0.00"}}]
[]
["10.","Odstranitev notranjih in zunanjih enot klime z razvodom. Prenos, nakladanje in odvoz na trajno deponijo s plačilom takse.","kos",{"v":3,"d":"3.00"},null,{"$f":"D26*E26","v":{"v":0,"d":"0.00"}}]
[]
["11.","Odstranitev radiatorjev z vsemi elementi. Prenos, nakladanje in odvoz na trajno deponijo s plačilom takse.","kos",{"v":3,"d":"3.00"},null,{"$f":"D28*E28","v":{"v":0,"d":"0.00"}}]
[]
["12.","Odstranitev  talne obloge parket vključno z odstranitvijo stenskih zaključkov. Prenos, nakladanje in odvoz na trajno deponijo s plačilom takse.","m2",{"v":90.8,"d":"90.80"},null,{"$f":"D30*E30","v":{"v":0,"d":"0.00"}}]
[]
["13.","Rušenje celotne sestave tlaka do talne plošče v sestavi colarice, morali 8x6 cm in gramozno nasutje 6 cm. Prenos, nakladanje in odvoz na trajno deponijo s plačilom takse.","m2",{"v":90.8,"d":"90.80"},null,{"$f":"D32*E32","v":{"v":0,"d":"0.00"}}]
[]
["14.","Rušenje montažne mavčnokartonske stene  v prehodu debeline 15 cm s podkonstrukcijo. Prenos, nakladanje in odvoz na trajno deponijo s plačilom takse.","m2",5.64,null,{"$f":"D34*E34","v":{"v":0,"d":"0.00"}}]
[]
["15.","Rušenje vmesne stene v prehodu debeline 25 cm z vsemi oblogami, AB vezmi in vgrajenimi elementi. Prenos, nakladanje in odvoz na trajno deponijo s plačilom takse.","m3",0.94,null,{"$f":"D36*E36","v":{"v":0,"d":"0.00"}}]
[]
["16.","Rušenje nosilnega zidu nad obstoječimi vhodnimi vrati v prehod za nova vrata in preklado, debeline 30 cm z vsemi oblogami, AB vezmi in vgrajenimi elementi. Prenos, nakladanje in odvoz na trajno deponijo s plačilom takse.","m3",{"v":0.4,"d":"0.40"},null,{"$f":"D38*E38","v":{"v":0,"d":"0.00"}}]
[]
["17.","Izdelava preboja velikosti fi 10 cm v talni plošči debeline 20 cm. Prenos, nakladanje in odvoz na trajno deponijo s plačilom takse.","kos",{"v":1,"d":"1.00"},null,{"$f":"D40*E40","v":{"v":0,"d":"0.00"}}]
[]
["18.","Odstranitev armstrong stropa na hodniku 1. nadstropje s podkonstrukcijo. Prenos, nakladanje in odvoz na trajno deponijo s plačilom takse.","m2",{"v":7.5,"d":"7.50"},null,{"$f":"D42*E42","v":{"v":0,"d":"0.00"}}]
[]
["19.","Rušenje celotne sestave tlaka na mestu pozidane vratne odprtine, velikosti cca 110x20 cm, z obojestranskim rezanjem. Prenos, nakladanje in odvoz na trajno deponijo s plačilom takse.","kos",{"v":2,"d":"2.00"},null,{"$f":"D44*E44","v":{"v":0,"d":"0.00"}}]
[]
["20.","Dolbljenje  utorov v zidovih, za razvod instalacij, preseka do 6x6 cm, z odvozom ruševin","m1",{"v":50,"d":"50.00"},null,{"$f":"D46*E46","v":{"v":0,"d":"0.00"}}]
[]
["21.","Dolbljenje utorov v stropu, za razvod instalacij, preseka do 6x6 cm, z odvozom ruševin na trajno deponijo s plačilom takse.","m1",{"v":20,"d":"20.00"},null,{"$f":"D48*E48","v":{"v":0,"d":"0.00"}}]
[]
["22.","Dolbljenje  v zidovih, za razvod instalacij, preseka do 15x12 cm, z odvozom ruševin na trajno deponijo s plačilom takse","m1",{"v":4,"d":"4.00"},null,{"$f":"D50*E50","v":{"v":0,"d":"0.00"}}]
[null," - za inštalacijo klime","m1",{"v":11,"d":"11.00"},null,{"$f":"D51*E51","v":{"v":0,"d":"0.00"}}]
[]
["23.","Dolbljenje  v stropovih, za razvod instalacij, preseka do 15x6 cm, z odvozom ruševin na trajno deponijo s plačilom takse","m1",{"v":10,"d":"10.00"},null,{"$f":"D53*E53","v":{"v":0,"d":"0.00"}}]
[]
["24.","Dolbljenje za elektro omarico v zid, 20x40x60, z odvozom ruševin na trajno deponijo s plačilom takse","kom",{"v":1,"d":"1.00"},null,{"$f":"D55*E55","v":{"v":0,"d":"0.00"}}]
[]
["A3.","ZIDARSKA DELA"]
[]
["25.","Pozidava opuščene vratne odprtine in okenske odprtine nad vrati v zidu debeline 20 cm, s siporexom  s sidranjem v obstoječi zid","m3",0.75,null,{"$f":"D59*E59","v":{"v":0,"d":"0.00"}}]
[]
["26.","Pozidava opuščene vratne odprtine v zidu debeline 10 cm, s siporexom  s sidranjem v obstoječi zid","m2",{"v":2.1,"d":"2.10"},null,{"$f":"D61*E61","v":{"v":0,"d":"0.00"}}]
[]
["27.","Krpanje stenskih ometov pri pozidavi opuščenih vratnih odprtin, grobi in fini omet","m2",11.45,null,{"$f":"D63*E63","v":{"v":0,"d":"0.00"}}]
[]
["28.","Izdelava AB preklade nad vratno odprtino-vhod v prostor. Velikosti 160x30x30 cm, s pripravo ležišč, opažem, armaturo in betoniranjem","kos",{"v":1,"d":"1.00"},null,{"$f":"D65*E65","v":{"v":0,"d":"0.00"}}]
[]
["29.","Izdelava izravnave špalet vratne odprtine po rušenju. Špalete širine 30 cm","m1",{"v":2.2,"d":"2.20"},null,{"$f":"D67*E67","v":{"v":0,"d":"0.00"}}]
[]
["30.","Izdelava izravnave špalet vratne odprine po rušenju. Špalete širine 20 cm","m1",{"v":3,"d":"3.00"},null,{"$f":"D69*E69","v":{"v":0,"d":"0.00"}}]
[]
["31.","Krpanje utorov v zidovih, na mestu porušenih zidov, pas širine do 25 cm, z uskladitvijo ravnine obstoječih ometov","m1",{"v":9,"d":"9.00"},null,{"$f":"D71*E71","v":{"v":0,"d":"0.00"}}]
[]
["32.","Obzidava instalacij na prehodu skozi zid in tla ter  krpanje ometov","kos",{"v":2,"d":"2.00"},null,{"$f":"D73*E73","v":{"v":0,"d":"0.00"}}]
[]
["33.","Krpanje utorov v zidovih, za razvod instalacij, preseka do 6x6 cm","m1",{"v":50,"d":"50.00"},null,{"$f":"D75*E75","v":{"v":0,"d":"0.00"}}]
[]
["34.","Krpanje utorov v stropu, za razvod instalacij, preseka do 6x6 cm","m1",{"v":20,"d":"20.00"},null,{"$f":"D77*E77","v":{"v":0,"d":"0.00"}}]
[]
["35.","Krpanje utorov v zidovih, za razvod instalacij, preseka do 15x12 cm","m1",{"v":4,"d":"4.00"},null,{"$f":"D79*E79","v":{"v":0,"d":"0.00"}}]
[null," - za inštalacijo klime","m1",{"v":11,"d":"11.00"},null,{"$f":"D80*E80","v":{"v":0,"d":"0.00"}}]
[]
["36.","Krpanje utorov v stropih, za razvod instalacij, preseka do 15x6 cm","m1",{"v":10,"d":"10.00"},null,{"$f":"D82*E82","v":{"v":0,"d":"0.00"}}]
[]
["37.","Vzidava elektro omarice v zid, 20x40x60","kom",{"v":1,"d":"1.00"},null,{"$f":"D84*E84","v":{"v":0,"d":"0.00"}}]
[]
["38.","Izdelava plavajočega mikroarmiranega betonskega estriha deb.6 cm, PE folija, 8 cm TI, z dodatkom za hitro sušenje - 14 dni","m2",{"v":91.4,"d":"91.40"},null,{"$f":"D86*E86","v":{"v":0,"d":"0.00"}}]
[]
["39.","Razna manjša in nepredvidena dela, pomoč obrnikom in instalaterjem. Z naročilom in potrditvijo s strani nadzora in gradbenem dnevniku","ur",{"v":10,"d":"10.00"},null,{"$f":"D88*E88","v":{"v":0,"d":"0.00"}}]
[]
[null,"Skupaj gradbena dela :",{"$nulls":3},{"$f":"SUM(F6:F89)","v":{"v":0,"d":"0.00"}}]
[]
[]
["B.","OBRTNIŠKA DELA"]
[]
["B1.","MAVČNOKARTONSKA DELA"]
[]
["1.","Izdelava škatle za pokritje inštalacij pod stropom na hodniku 1. nadstropje dimenzije 30x40 cm iz 1x mavčne plošče debeline 1,25 cm, s podkonstrukcijo, zvočno izolacijo, skupaj z bandažiranjem","m1",{"v":2,"d":"2.00"},null,{"$f":"D97*E97","v":{"v":0,"d":"0.00"}}]
[]
["2.","Dobava in izdelava armstrong stropa komplet s pokonstrukcijo in obešali kot obstoječ na hodniku 1.nadstropje","m2",{"v":7.5,"d":"7.50"},null,{"$f":"D99*E99","v":{"v":0,"d":"0.00"}}]
[]
["3.","Rušenje in izzdelava škatle 20x20x20 iz knauf plošč na hodniku 1. nadstropje po priklopu odtočne inštalacije, odnos in odvoz na deponijo.","m1",{"v":3,"d":"3.00"},null,{"$f":"D101*E101","v":{"v":0,"d":"0.00"}}]
[]
[]
["B2.","STAVBNO POHIŠTVO"]
[]
["4.","Izdelava in montaža zunanjih senčil, velikosti 210 x 300 cm, enodelna, z zunanjo masko, vodili, krpanje iz lamel širine 80 mm. ","kos",{"v":2,"d":"2.00"},null,{"$f":"D106*E106","v":{"v":0,"d":"0.00"}}]
[]
["5.","Servis zunanjih senčil, velikosti 190 x 210 cm po potrebi","kos",{"v":1,"d":"1.00"},null,{"$f":"D108*E108","v":{"v":0,"d":"0.00"}}]
[]
["6.","Izdelava, dobava in montaža novih vrat Vh1 po shemi projektanta dimenzije 95x210 skupaj s podbojem. ","kos",{"v":1,"d":"1.00"},null,{"$f":"D110*E110","v":{"v":0,"d":"0.00"}}]
[]
["7.","Izdelava, dobava in montaža novega fiksnega okna FS2, dimenzije 289/90 alu okvir, termopan zasteklitev  po shemi projektanta  ","kos",{"v":1,"d":"1.00"},null,{"$f":"D112*E112","v":{"v":0,"d":"0.00"}}]
[]
["8.","Izdelava, dobava in montaža novega fiksnega okna FS1, dimenzije 384/90 alu okvir, termopan zasteklitev  po shemi projektanta  ","kos",{"v":1,"d":"1.00"},null,{"$f":"D114*E114","v":{"v":0,"d":"0.00"}}]
[]
[]
["B3.","SLIKOPLESKARSKA DELA"]
[]
["9.","Delno struganje površine, nanos emulzije, kitanje, brušenje in pleskanje sten in stebrov z poldisperzijsko belo barvo ","m2",{"v":195,"d":"195.00"},null,{"$f":"D119*E119","v":{"v":0,"d":"0.00"}}]
[]
["10.","Kitanje, brušenje in pleskanje  stropov s poldisperzijsko belo barvo  ","m2",{"v":90.8,"d":"90.80"},null,{"$f":"D121*E121","v":{"v":0,"d":"0.00"}}]
[]
["11.","Dobava in vgradnja alu vogalnikov","m1",{"v":25,"d":"25.00"},null,{"$f":"D123*E123","v":{"v":0,"d":"0.00"}}]
[]
["12.","Delno kitanje površine, brušenje in pleskanje sten v svetlem tonu kot obstoječ z poldisperzijsko belo barvo ","m2",{"v":33.5,"d":"33.50"},null,{"$f":"D125*E125","v":{"v":0,"d":"0.00"}}]
[]
["13.","Delno kitanje površine, brušenje in pleskanje sten z belo z poldisperzijsko belo barvo ","m2",{"v":21,"d":"21.00"},null,{"$f":"D127*E127","v":{"v":0,"d":"0.00"}}]
[]
["B4.","TERACERSKA DELA"]
[]
["14.","Čiščenje in brušenje površine in premaz notranje okenske police in špalete iz umetnega kamna s predhodno zaščito obstoječega okna","m2",{"v":3.3,"d":"3.30"},null,{"$f":"D131*E131","v":{"v":0,"d":"0.00"}}]
[]
["15.","Čiščenje in brušenje površine in premaz  stebrov iz umetnega kamna ","m2",{"v":16.8,"d":"16.80"},null,{"$f":"D133*E133","v":{"v":0,"d":"0.00"}}]
[]
["B5.","PODOPOLAGALSKA DELA"]
[]
["16.","Dobava in polaganje antistatičnega linoleja z dobavo in vgradnjo stenskih zaokrožnic, s predhodno izvedbo izravnalne mase. Po potrjenem vzorcu s strani arhitektke.","m2",{"v":91.4,"d":"91.40"},null,{"$f":"D137*E137","v":{"v":0,"d":"0.00"}}]
[]
["17.","Dobava in montaža alu profila pri stiku tlakov na vhodu v prostor cca 110 cm","kos",{"v":1,"d":"1.00"},null,{"$f":"D139*E139","v":{"v":0,"d":"0.00"}}]
[]
[null,"Skupaj obrtniška dela :",{"$nulls":3},{"$f":"SUM(F97:F140)","v":{"v":0,"d":"0.00"}}]
[]
[]
["C.","INSTALACIJSKA DELA"]
[]
["C1.","STROJNE INSTALACIJE"]
[]
["1.","Predelava priklučka radiatorja in napeljava inštalacije pod tlakom v dolžini cca 4m na novo mesto radiatorja. ","kpl",{"v":1,"d":"1.00"},null,{"$f":"D148*E148","v":{"v":0,"d":"0.00"}}]
[]
["2.","Dobava in montaža radiatorja velikosti 200/60/22 sredinski priklop komplet z ventili, montažo termostatske glave in z nosilci radiatorjev. ","kos",{"v":1,"d":"1.00"},null,{"$f":"D150*E150","v":{"v":0,"d":"0.00"}}]
[]
["3.","Predelava priklučka radiatorja in napeljava inštalacije pod tlakom v dolžini cca 1m na obstoječe mesto radiatorja. ","kpl",{"v":1,"d":"1.00"},null,{"$f":"D152*E152","v":{"v":0,"d":"0.00"}}]
[]
["4.","Dobava in montaža radiatorja velikosti 140/60/22 sredinski priklop komplet z ventili, montažo termostatske glave in z nosilci radiatorjev. ","kos",{"v":1,"d":"1.00"},null,{"$f":"D154*E154","v":{"v":0,"d":"0.00"}}]
[]
["5.","Dobava in napeljava vodovodne inštalacije 1/2 ¨, cca 14 m1 za nov kuhinjski priključek, samo hladna voda s piklopom na obstoječi vodovod na hodniku (glej načrt) kompletno s fazonskimi kosi, tesnili in ventili","kpl",{"v":1,"d":"1.00"},null,{"$f":"D156*E156","v":{"v":0,"d":"0.00"}}]
[]
["6.","Dobava in montaža popdpultnega grelnika vode ter kuhinjske izlivne  armature, kpl z ventili in odtočnega sifona.","kpl",{"v":1,"d":"1.00"},null,{"$f":"D158*E158","v":{"v":0,"d":"0.00"}}]
[]
["7.","Dobava in montaža odtočne kanalizacije fi 50 mm z mesta novega korita s priklopom na vertikalno kanalizacijsko cev v hodniku  (glej načrt) kpl s fazonskimi kosi in drobnim materialom","m1",{"v":8,"d":"8.00"},null,{"$f":"D160*E160","v":{"v":0,"d":"0.00"}}]
[]
["8.","Dobava in montaža nove split klimatske naprave srednjega razreda v prostoru","kpl",{"v":2,"d":"2.00"},null,{"$f":"D162*E162","v":{"v":0,"d":"0.00"}}]
[]
["9.","Inštalacija za klimatsko napravo podometno v zidu ","m1",{"v":11,"d":"11.00"},null,{"$f":"D164*E164","v":{"v":0,"d":"0.00"}}]
[]
[]
[null,"Skupaj strojne inštalacije :",{"$nulls":3},{"$f":"SUM(F148:F166)","v":{"v":0,"d":"0.00"}}]
[]
[]
["D.","OSTALO"]
[]
["D1.","ČIŠČENJE"]
[]
["1.","Čiščenje prostorov po končanih delih - vse površine, elementi oprema.","m2",{"v":90.8,"d":"90.80"},null,{"$f":"D174*E174","v":{"v":0,"d":"0.00"}}]
[]
["2.","Čiščenje oken, steklenih površin","m2",{"v":44.8,"d":"44.80"},null,{"$f":"D176*E176","v":{"v":0,"d":"0.00"}}]
[]
[null,"Skupaj čiščenje:",{"$nulls":3},{"$f":"SUM(F174:F177)","v":{"v":0,"d":"0.00"}}]

{"sheet":"E8-54","index":8,"n_rows":119,"n_cols":6,"rows_kept":119}
[null,null,"m.e.","količina ","cena na enoto","znesek"]
["A.","GRADBENA DELA"]
[]
["A1.","PRIPRAVLJALNA DELA"]
[]
["1.","Izpraznitev prostorov (kar ni zajeto v postavkah v nadaljevanju), z odvozom. Priprava in ureditev gradbišča z ureditvijo gradbiščnih priključkov, vsakodnevno čiščenje skupnih prostorov in stopnišč, izvedba fizičnih zapor za preprečitev dostopa do gradbišča, postavitev gradbiščnih vrat, gradbiščne table in opozorilnih oznak, premični odri za izvajanje del ter druga pripravljalna in zaključna dela. V ceni zajeti tudi stroške deponije, prevozov in parkirnin glede na lokacijo objekta. V ceni zajeti tudi odstranitev vsega po zaključku del.","zajeto v skupnih delih",{"v":1,"d":"1.00"},null,{"$f":"D6*E6","v":{"v":0,"d":"0.00"}}]
[]
["A2.","RUŠITVENA DELA"]
[]
["2.","Demontaža vhodnih vrat velikosti 90x260 z nadsvetlobo, z izbijanjem podboja in odstranitvijo vseh elementov. Prenos, nakladanje in odvoz na trajno deponijo s plačilom takse.","kos",{"v":1,"d":"1.00"},null,{"$f":"D10*E10","v":{"v":0,"d":"0.00"}}]
[]
["3.","Odstranitev elektro instalacij, vsa nadometna napeljava, parapetni kanali 18,7 m1, 4x stropne svetilke, vsa stikala in vtičnice ter ostali razvod. Prenos, nakladanje in odvoz na trajno deponijo s plačilom takse.","kpl",{"v":1,"d":"1.00"},null,{"$f":"D12*E12","v":{"v":0,"d":"0.00"}}]
[]
["4.","Odstranitev notranjih in zunanjih enot klime z razvodom. Prenos, nakladanje in odvoz na trajno deponijo s plačilom takse.","kos",{"v":1,"d":"1.00"},null,{"$f":"D14*E14","v":{"v":0,"d":"0.00"}}]
[]
["5.","Demontaža notranjih žaluzij nad okni z vsemi elementi. Prenos, nakladanje in odvoz na trajno deponijo s plačilom takse.","kos",{"v":4,"d":"4.00"},null,{"$f":"D16*E16","v":{"v":0,"d":"0.00"}}]
[]
["6.","Rušenje montažne stene iz mavčnih plošč s podkonstrukcijo v niši. Prenos, nakladanje in odvoz na trajno deponijo s plačilom takse.","m2",3.24,null,{"$f":"D18*E18","v":{"v":0,"d":"0.00"}}]
[]
["7.","Rušenje spodnjega dela niše -stena debeline 30 cm iz NF opeke - 2 vrsti (10 cm), dolžine 180 cm. Prenos, nakladanje in odvoz na trajno deponijo s plačilom takse.","kpl",{"v":1,"d":"1.00"},null,{"$f":"D20*E20","v":{"v":0,"d":"0.00"}}]
[]
["8.","Dolbljenje  utorov v zidovih, za razvod instalacij, preseka do 6x6 cm, prenos, nalaganje, z odvozom ruševin na trajno deponijo s plačilom takse.","m1",{"v":30,"d":"30.00"},null,{"$f":"D22*E22","v":{"v":0,"d":"0.00"}}]
[]
["9.","Dolbljenje utorov v stropu, za razvod instalacij, preseka do 6x6 cm, prenos, nalaganje, z odvozom ruševin na trajno deponijo s plačilom takse.","m1",{"v":15,"d":"15.00"},null,{"$f":"D24*E24","v":{"v":0,"d":"0.00"}}]
[]
["10.","Dolbljenje  v zidovih, za razvod instalacij, preseka do 15x12 cm, prenos, nalaganje, z odvozom ruševin na trajno deponijo s plačilom takse.","m1",{"v":5.5,"d":"5.50"},null,{"$f":"D26*E26","v":{"v":0,"d":"0.00"}}]
[null," - za inštalacijo klime","m1",{"v":4.5,"d":"4.50"},null,{"$f":"D27*E27","v":{"v":0,"d":"0.00"}}]
[]
["11.","Dolbljenje  v stropu, za razvod instalacij, preseka do 15x6 cm, prenos, nalaganje, z odvozom ruševin na trajno deponijo s plačilom takse.","m1",{"v":15,"d":"15.00"},null,{"$f":"D29*E29","v":{"v":0,"d":"0.00"}}]
[]
[null,"Izdelava preboja velikosti fi 12 cm v zidu debeline 30 cm. Prenos, nakladanje in odvoz na trajno deponijo s plačilom takse.","kos",{"v":1,"d":"1.00"},null,{"$f":"D31*E31","v":{"v":0,"d":"0.00"}}]
[null," - za inštalacijo klime","kos",{"v":1,"d":"1.00"},null,{"$f":"D32*E32","v":{"v":0,"d":"0.00"}}]
[]
["A3.","ZIDARSKA DELA"]
[]
[]
["12.","Izdelava izravnave špalet vratne odprtine po odstranitvi vrat širine 30 cm","m1",{"v":5.4,"d":"5.40"},null,{"$f":"D37*E37","v":{"v":0,"d":"0.00"}}]
[]
["13.","Izdelava izravnave špalet niše po rušenju. Špalete širine 30 cm","m1",{"v":2.2,"d":"2.20"},null,{"$f":"D39*E39","v":{"v":0,"d":"0.00"}}]
[]
["14.","Obzidava instalacij na prehodu skozi zid in tla ter  krpanje ometov","kos",{"v":1,"d":"1.00"},null,{"$f":"D41*E41","v":{"v":0,"d":"0.00"}}]
[null," - za inštalacijo klime","kos",{"v":1,"d":"1.00"},null,{"$f":"D42*E42","v":{"v":0,"d":"0.00"}}]
[]
["15.","Krpanje utorov v zidovih, za razvod instalacij, preseka do 6x6 cm","m1",{"v":30,"d":"30.00"},null,{"$f":"D44*E44","v":{"v":0,"d":"0.00"}}]
[]
["16.","Krpanje utorov v stropu, za razvod instalacij, preseka do 6x6 cm","m1",{"v":15,"d":"15.00"},null,{"$f":"D46*E46","v":{"v":0,"d":"0.00"}}]
[]
["17.","Krpanje utorov v zidovih, za razvod instalacij, preseka do 15x12 cm","m1",{"v":5.5,"d":"5.50"},null,{"$f":"D48*E48","v":{"v":0,"d":"0.00"}}]
[null," - za inštalacijo klime","m1",{"v":4.5,"d":"4.50"},null,{"$f":"D49*E49","v":{"v":0,"d":"0.00"}}]
[]
["18.","Krpanje utorov v stropu, za razvod instalacij, preseka do 15x6 cm","m1",{"v":15,"d":"15.00"},null,{"$f":"D51*E51","v":{"v":0,"d":"0.00"}}]
[]
["19.","Razna manjša in nepredvidena dela, pomoč obrnikom in instalaterjem. Z naročilom in potrditvijo s strani nadzora in gradbenem dnevniku","ur",{"v":5,"d":"5.00"},null,{"$f":"D53*E53","v":{"v":0,"d":"0.00"}}]
[]
[null,"Skupaj gradbena dela :",{"$nulls":3},{"$f":"SUM(F6:F54)","v":{"v":0,"d":"0.00"}}]
[]
[]
["B.","OBRTNIŠKA DELA"]
[]
["B1.","STAVBNO POHIŠTVO"]
[]
["1.","Izdelava, dobava in montaža novih vrat VhN po shemi projektanta dimenzije 101 x 260 skupaj s podbojem. ","kos",{"v":1,"d":"1.00"},null,{"$f":"D62*E62","v":{"v":0,"d":"0.00"}}]
[]
["2.","Dobava in montaža fiksne zasteklitve FSN v niši dimenzije: š/v 180/191 cm,  opis v shemah zasteklitev","kos",{"v":1,"d":"1.00"},null,{"$f":"D64*E64","v":{"v":0,"d":"0.00"}}]
[]
["3.","Po potrebi servis zunanjih senčil, velikosti 190 x 210 cm.","kos",{"v":2,"d":"2.00"},null,{"$f":"D66*E66","v":{"v":0,"d":"0.00"}}]
[]
[]
["B3.","SLIKOPLESKARSKA DELA"]
[]
["4.","Delno struganje površine, nanos emulzije, kitanje, brušenje in pleskanje sten in stebrov z poldisperzijsko belo barvo ","m2",73.92,null,{"$f":"D71*E71","v":{"v":0,"d":"0.00"}}]
[]
["5.","Kitanje, brušenje in pleskanje  stropov s poldisperzijsko belo barvo  ","m2",37.77,null,{"$f":"D73*E73","v":{"v":0,"d":"0.00"}}]
[]
["6.","Dobava in vgradnja alu vogalnikov","m1",{"v":16,"d":"16.00"},null,{"$f":"D75*E75","v":{"v":0,"d":"0.00"}}]
[]
["7.","Zaščita prostora in elementov med deli","kpl",{"v":1,"d":"1.00"},null,{"$f":"D77*E77","v":{"v":0,"d":"0.00"}}]
[]
["B4.","TERACERSKA DELA"]
[]
["8.","Čiščenje in brušenje površine in premaz notranje okenske police in špalete iz umetnega kamna s predhodno zaščito obstoječega okna","m2",{"v":6.6,"d":"6.60"},null,{"$f":"D81*E81","v":{"v":0,"d":"0.00"}}]
[]
["B5.","PODOPOLAGALSKA DELA"]
[]
["9.","Popravilo, kitanje, brušenje in lakiranje obstoječega parketa s kvalitetnim lakom ","m2",{"v":37.8,"d":"37.80"},null,{"$f":"D85*E85","v":{"v":0,"d":"0.00"}}]
[]
["10.","Dobava in montaža nizkih lesenih stenskih letvic, hrast lakirano.","m1",{"v":24.6,"d":"24.60"},null,{"$f":"D87*E87","v":{"v":0,"d":"0.00"}}]
[]
["11.","Dobava in montaža alu profila pri stiku tlakov na vhodu v prostor cca 110 cm","kos",{"v":1,"d":"1.00"},null,{"$f":"D89*E89","v":{"v":0,"d":"0.00"}}]
[]
[null,"Skupaj obrtniška dela :",{"$nulls":3},{"$f":"SUM(F62:F90)","v":{"v":0,"d":"0.00"}}]
[]
[]
["C.","INSTALACIJSKA DELA"]
[]
["C1.","STROJNE INSTALACIJE"]
[]
["1.","Praznenje in polnjenje sistema ter tlačni preizkus novih inštalacij centralnega gretja","kpl",{"v":1,"d":"1.00"},null,{"$f":"D98*E98","v":{"v":0,"d":"0.00"}}]
[]
["2.","Demontaža ltž radiatorja in obstoječih ventilov, čiščenje radiatorja in ponovna montaža z dobavo in montažo novih ventilov ter termostatske glave ","kpl",{"v":2,"d":"2.00"},null,{"$f":"D100*E100","v":{"v":0,"d":"0.00"}}]
[]
["3.","Dobava in montaža nove split klimatske naprave srednjega razreda v prostoru","kpl",{"v":1,"d":"1.00"},null,{"$f":"D102*E102","v":{"v":0,"d":"0.00"}}]
[]
["4.","Inštalacija za klimatsko napravo podometno v zidu ","m1",{"v":4.5,"d":"4.50"},null,{"$f":"D104*E104","v":{"v":0,"d":"0.00"}}]
[]
["2.","Dobava in montaža prezračevalnega sistema LUNOS s predhodno izvedbo preboja z vrtanjem skozi parapetni zid in pripravo elektroinštalacije","kpl",{"v":1,"d":"1.00"},null,{"$f":"D106*E106","v":{"v":0,"d":"0.00"}}]
[]
[null,"Skupaj strojne inštalacije :",{"$nulls":3},{"$f":"SUM(F98:F107)","v":{"v":0,"d":"0.00"}}]
[]
[]
["D.","OSTALO"]
[]
["D1.","ČIŠČENJE"]
[]
["1.","Čiščenje prostorov po končanih delih - vse površine, elementi oprema.","m2",{"v":37.8,"d":"37.80"},null,{"$f":"D115*E115","v":{"v":0,"d":"0.00"}}]
[]
["2.","Čiščenje oken, steklenih površin","m2",{"v":24.2,"d":"24.20"},null,{"$f":"D117*E117","v":{"v":0,"d":"0.00"}}]
[]
[null,"Skupaj čiščenje:",{"$nulls":3},{"$f":"SUM(F115:F118)","v":{"v":0,"d":"0.00"}}]

{"sheet":"E8-55, 56","index":9,"n_rows":144,"n_cols":6,"rows_kept":144}
[null,null,"m.e.","količina ","cena na enoto","znesek"]
["A.","GRADBENA DELA"]
[]
["A1.","PRIPRAVLJALNA DELA"]
[]
["1.","Izpraznitev prostorov (kar ni zajeto v postavkah v nadaljevanju), z odvozom. Priprava in ureditev gradbišča z ureditvijo gradbiščnih priključkov, vsakodnevno čiščenje skupnih prostorov in stopnišč, izvedba fizičnih zapor za preprečitev dostopa do gradbišča, postavitev gradbiščnih vrat, gradbiščne table in opozorilnih oznak, premični odri za izvajanje del ter druga pripravljalna in zaključna dela. V ceni zajeti tudi stroške deponije, prevozov in parkirnin glede na lokacijo objekta. V ceni zajeti tudi odstranitev vsega po zaključku del.","zajeto v skupnih delih",{"v":1,"d":"1.00"},null,{"$f":"D6*E6","v":{"v":0,"d":"0.00"}}]
[]
["A2.","RUŠITVENA DELA"]
[]
["2.","Demontaža vhodnih vrat velikosti 100x200 cm, z izbijanjem podboja in odstranitvijo vseh elementov. Prenos, nakladanje in odvoz na trajno deponijo s plačilom takse.","kos",{"v":1,"d":"1.00"},null,{"$f":"D10*E10","v":{"v":0,"d":"0.00"}}]
[]
["3.","Demontaža vhodnih vrat velikosti 90x260 z nadsvetlobo, z izbijanjem podboja in odstranitvijo vseh elementov. Prenos, nakladanje in odvoz na trajno deponijo s plačilom takse.","kos",{"v":1,"d":"1.00"},null,{"$f":"D12*E12","v":{"v":0,"d":"0.00"}}]
[]
["4.","Demontaža notranjih vrat velikosti 90 x 200 cm, z izbijanjem podboja in odstranitvijo vseh elementov. Prenos, nakladanje in odvoz na trajno deponijo s plačilom takse.","kpl",{"v":2,"d":"2.00"},null,{"$f":"D14*E14","v":{"v":0,"d":"0.00"}}]
[]
["5.","Odstranitev elektro instalacij, vsa nadometna napeljava, parapetni kanali 39,5 m1, NIK kanali 16 m1 , 8x stropne svetilke, vsa stikala in vtičnice ter ostali razvod. Prenos, nakladanje in odvoz na trajno deponijo s plačilom takse.","kpl",{"v":1,"d":"1.00"},null,{"$f":"D16*E16","v":{"v":0,"d":"0.00"}}]
[]
["6.","Odstranitev notranjih in zunanjih enot klime z razvodom. Prenos, nakladanje in odvoz na trajno deponijo s plačilom takse.","kos",{"v":1,"d":"1.00"},null,{"$f":"D18*E18","v":{"v":0,"d":"0.00"}}]
[]
["7.","Odstranitev radiatorjev z vsemi elementi. Prenos, nakladanje in odvoz na trajno deponijo s plačilom takse.","kos",{"v":4,"d":"4.00"},null,{"$f":"D20*E20","v":{"v":0,"d":"0.00"}}]
[]
["8.","Demontaža karnis in lamelnih zaves. Prenos, nakladanje in odvoz na trajno deponijo s plačilom takse.","kos",{"v":3,"d":"3.00"},null,{"$f":"D22*E22","v":{"v":0,"d":"0.00"}}]
[]
["9.","Rušenje lesenih montažnih sten s podkonstrukcijo debeline 10 cm z rezanjem ob zaključkih. Prenos, nakladanje in odvoz na trajno deponijo s plačilom takse.  ","m2",{"v":33.3,"d":"33.30"},null,{"$f":"D24*E24","v":{"v":0,"d":"0.00"}}]
[]
["10.","Rušenje opečne stene vhoda št.55 debeline 10 cm Prenos, nakladanje in odvoz na trajno deponijo s plačilom takse.","m2",5.22,null,{"$f":"D26*E26","v":{"v":0,"d":"0.00"}}]
[]
["11.","Odstranitev lamelnega parketa  širine 20 cm ter izrez v deskah za rego v tleh pri napeljavi vodovodne in odtočne inštalacije. Prenos, nakladanje in odvoz na trajno deponijo s plačilom takse. ","m1",{"v":3,"d":"3.00"},null,{"$f":"D28*E28","v":{"v":0,"d":"0.00"}}]
[]
["12.","Dolbljenje  utorov v zidovih, za razvod instalacij, preseka do 6x6 cm, z odvozom ruševin","m1",{"v":40,"d":"40.00"},null,{"$f":"D30*E30","v":{"v":0,"d":"0.00"}}]
[]
["13.","Dolbljenje utorov v stropu, za razvod instalacij, preseka do 6x6 cm, z odvozom ruševin na trajno deponijo s plačilom takse.","m1",{"v":15,"d":"15.00"},null,{"$f":"D32*E32","v":{"v":0,"d":"0.00"}}]
[]
["14.","Dolbljenje  v zidovih, za razvod instalacij, preseka do 15x12 cm, z odvozom ruševin na trajno deponijo s plačilom takse","m1",{"v":17,"d":"17.00"},null,{"$f":"D34*E34","v":{"v":0,"d":"0.00"}}]
[]
["15.","Dolbljenje  v stropu, za razvod instalacij, preseka do 15x6 cm, prenos, nalaganje, z odvozom ruševin na trajno deponijo s plačilom takse.","m1",{"v":7,"d":"7.00"},null,{"$f":"D36*E36","v":{"v":0,"d":"0.00"}}]
[null," - za inštalacijo klime","m1",{"v":8,"d":"8.00"},null,{"$f":"D37*E37","v":{"v":0,"d":"0.00"}}]
[]
["16.","Izdelava preboja velikosti fi 12 cm v zidu debeline 30 cm. Prenos, nakladanje in odvoz na trajno deponijo s plačilom takse.","kos",{"v":2,"d":"2.00"},null,{"$f":"D39*E39","v":{"v":0,"d":"0.00"}}]
[null," - za inštalacijo klime","kos",{"v":2,"d":"2.00"},null,{"$f":"D40*E40","v":{"v":0,"d":"0.00"}}]
[]
["A3.","ZIDARSKA DELA"]
[]
["17.","Izdelava izravnave špalet vratne odprtine po odstranitvi stene in vrat, špaletne širine 30 cm","m1",{"v":11.8,"d":"11.80"},null,{"$f":"D44*E44","v":{"v":0,"d":"0.00"}}]
[]
["18.","Krpanje utorov v zidovih, na mestu porušenih zidov, pas širine do 20 cm, z uskladitvijo ravnine obstoječih ometov","m1",{"v":12,"d":"12.00"},null,{"$f":"D46*E46","v":{"v":0,"d":"0.00"}}]
[]
["19.","Obzidava instalacij na prehodu skozi zid in tla ter  krpanje ometov","kos",{"v":2,"d":"2.00"},null,{"$f":"D48*E48","v":{"v":0,"d":"0.00"}}]
[null," - za inštalacijo klime","kos",{"v":2,"d":"2.00"},null,{"$f":"D49*E49","v":{"v":0,"d":"0.00"}}]
[]
["20.","Krpanje utorov v zidovih, za razvod instalacij, preseka do 6x6 cm","m1",{"v":40,"d":"40.00"},null,{"$f":"D51*E51","v":{"v":0,"d":"0.00"}}]
[]
["21.","Krpanje utorov v stropu, za razvod instalacij, preseka do 6x6 cm","m1",{"v":15,"d":"15.00"},null,{"$f":"D53*E53","v":{"v":0,"d":"0.00"}}]
[]
["22.","Krpanje utorov v zidovih, za razvod instalacij, preseka do 15x12 cm","m1",{"v":7,"d":"7.00"},null,{"$f":"D55*E55","v":{"v":0,"d":"0.00"}}]
[null," - za inštalacijo klime","m1",{"v":8,"d":"8.00"},null,{"$f":"D56*E56","v":{"v":0,"d":"0.00"}}]
[]
["23.","Krpanje utorov v stropu, za razvod instalacij, preseka do 15x6 cm","m1",{"v":15,"d":"15.00"},null,{"$f":"D58*E58","v":{"v":0,"d":"0.00"}}]
[]
["24.","Krpanje utorov v tleh po odstranitvi predelnih sten in izdelavi inštalacij širine do 12 cm","m1",{"v":14.1,"d":"14.10"},null,{"$f":"D60*E60","v":{"v":0,"d":"0.00"}}]
[]
["25.","Razna manjša in nepredvidena dela, pomoč obrnikom in instalaterjem. Z naročilom in potrditvijo s strani nadzora in gradbenem dnevniku","ur",{"v":10,"d":"10.00"},null,{"$f":"D62*E62","v":{"v":0,"d":"0.00"}}]
[]
[null,"Skupaj gradbena dela :",{"$nulls":3},{"$f":"SUM(F6:F63)","v":{"v":0,"d":"0.00"}}]
[]
[]
["B.","OBRTNIŠKA DELA"]
[]
["B1.","MAVČNOKARTONSKA DELA"]
[]
["1.","Izdelava škatle za pokritje inštalacij klime vertikalno dimenzije 20x30 cm iz 1x mavčne plošče debeline 1,25 cm, s podkonstrukcijo , skupaj z bandažiranjem","m1",{"v":3,"d":"3.00"},null,{"$f":"D71*E71","v":{"v":0,"d":"0.00"}}]
[]
["2.","Dobava in izdelava knauf stene W112 s s podkonstrukcijo, stena debeline 12,5 cm z bandažiranjem.","m2",{"v":12.3,"d":"12.30"},null,{"$f":"D73*E73","v":{"v":0,"d":"0.00"}}]
[]
["3.","Zaključek rušene montažne stene debeline 10cm ","m1",{"v":3,"d":"3.00"},null,{"$f":"D75*E75","v":{"v":0,"d":"0.00"}}]
[]
[]
["B2.","STAVBNO POHIŠTVO"]
[]
["4.","Dobava in montaža dvokrilnih steklenih vrat VS1 dimenzije 183/260 - po shemi","kpl",{"v":1,"d":"1.00"},null,{"$f":"D80*E80","v":{"v":0,"d":"0.00"}}]
[]
["5.","Servis zunanjih senčil, velikosti 190 x 210 cm po potrebi","kos",{"v":4,"d":"4.00"},null,{"$f":"D82*E82","v":{"v":0,"d":"0.00"}}]
[]
["6.","Izdelava, dobava in montaža novih vrat VhN po shemi projektanta dimenzije 101/260 skupaj s podbojem. ","kos",{"v":1,"d":"1.00"},null,{"$f":"D84*E84","v":{"v":0,"d":"0.00"}}]
[]
["B3.","SLIKOPLESKARSKA DELA"]
[]
["7.","Delno struganje površine, nanos emulzije, kitanje, brušenje in pleskanje sten in stebrov z poldisperzijsko belo barvo ","m2",{"v":154.5,"d":"154.50"},null,{"$f":"D88*E88","v":{"v":0,"d":"0.00"}}]
[]
["9.","Kitanje, brušenje in pleskanje mavčnih sten s poldisperzijsko barvo po izboru arhitektke, s kitanjem in silikoniranjem ","m2",{"v":24.6,"d":"24.60"},null,{"$f":"D90*E90","v":{"v":0,"d":"0.00"}}]
[]
["8.","Kitanje, brušenje in pleskanje  stropov s poldisperzijsko belo barvo  ","m2",{"v":77.5,"d":"77.50"},null,{"$f":"D92*E92","v":{"v":0,"d":"0.00"}}]
[]
["9.","Dobava in vgradnja alu vogalnikov","m1",{"v":15,"d":"15.00"},null,{"$f":"D94*E94","v":{"v":0,"d":"0.00"}}]
[]
["10.","Zaščita prostora in elementov med deli","kpl",{"v":1,"d":"1.00"},null,{"$f":"D96*E96","v":{"v":0,"d":"0.00"}}]
[]
["B4.","TERACERSKA DELA"]
[]
["11.","Čiščenje in brušenje površine in premaz notranje okenske police in špalete iz umetnega kamna s predhodno zaščito obstoječega okna","m2",{"v":13.2,"d":"13.20"},null,{"$f":"D100*E100","v":{"v":0,"d":"0.00"}}]
[]
["B5.","PODOPOLAGALSKA DELA"]
[]
["12.","Dobava in polaganje izgotovljenega parketa, debeline 15 mm, širine 8 cm, hrast natur, lakiran, s polaganjem na obstoječ lamelni parket. Po potrjenem vzorcu s strani arhitektke.","m2",{"v":78.5,"d":"78.50"},null,{"$f":"D104*E104","v":{"v":0,"d":"0.00"}}]
[]
["13.","Dobava in montaža nizkih lesenih stenskih letvic, hrast lakirano.","m1",{"v":57.5,"d":"57.50"},null,{"$f":"D106*E106","v":{"v":0,"d":"0.00"}}]
[]
["14.","Dobava in montaža alu profila pri stiku tlakov na vhodu v prostor ","m1",{"v":2.9,"d":"2.90"},null,{"$f":"D108*E108","v":{"v":0,"d":"0.00"}}]
[]
[null,"Skupaj obrtniška dela :",{"$nulls":3},{"$f":"SUM(F71:F109)","v":{"v":0,"d":"0.00"}}]
[]
[]
["C.","INSTALACIJSKA DELA"]
[]
["C1.","STROJNE INSTALACIJE"]
[]
["1.","Predelava priklučka radiatorja in napeljava inštalacije pod tlakom v dolžini cca 1m na obstoječe mesto radiatorja. ","kpl",{"v":4,"d":"4.00"},null,{"$f":"D117*E117","v":{"v":0,"d":"0.00"}}]
[]
["2.","Dobava in montaža radiatorja velikosti 140/60/22 sredinski priklop komplet z ventili, montažo termostatske glave in z nosilci radiatorjev. ","kos",{"v":4,"d":"4.00"},null,{"$f":"D119*E119","v":{"v":0,"d":"0.00"}}]
[]
["3.","Dobava in napeljava vodovodne inštalacije 1/2 ¨, cca 4 m1 za nov kuhinjski priključek, samo hladna voda s piklopom na obstoječi vodovod v sosednjem prostoru(glej načrt) kompletno s fazonskimi kosi, tesnili in ventili","kpl",{"v":1,"d":"1.00"},null,{"$f":"D121*E121","v":{"v":0,"d":"0.00"}}]
[]
["4.","Dobava in montaža popdpultnega grelnika vode ter kuhinjske izlivne  armature, kpl z ventili in odtočnega sifona.","kpl",{"v":1,"d":"1.00"},null,{"$f":"D123*E123","v":{"v":0,"d":"0.00"}}]
[]
["5.","Dobava in montaža odtočne kanalizacije fi 50 mm z mesta novega korita s priklopom na vertikalno kanalizacijsko cev v sosednjem prostoru (glej načrt) kpl s fazonskimi kosi in drobnim materialom","m1",{"v":4,"d":"4.00"},null,{"$f":"D125*E125","v":{"v":0,"d":"0.00"}}]
[]
["6.","Dobava in montaža nove split klimatske naprave srednjega razreda v prostoru","kpl",{"v":1,"d":"1.00"},null,{"$f":"D127*E127","v":{"v":0,"d":"0.00"}}]
[]
["7.","Dobava in montaža nove split klimatske naprave - dvojček, srednjega razreda v prostoru","kpl",{"v":1,"d":"1.00"},null,{"$f":"D129*E129","v":{"v":0,"d":"0.00"}}]
[]
["8.","Inštalacija za klimatsko napravo podometno v zidu ","m1",{"v":8,"d":"8.00"},null,{"$f":"D131*E131","v":{"v":0,"d":"0.00"}}]
[]
[null,"Skupaj strojne inštalacije :",{"$nulls":3},{"$f":"SUM(F117:F132)","v":{"v":0,"d":"0.00"}}]
[]
[]
["D.","OSTALO"]
[]
["D1.","ČIŠČENJE"]
[]
["1.","Čiščenje prostorov po končanih delih - vse površine, elementi oprema.","m2",{"v":78.5,"d":"78.50"},null,{"$f":"D140*E140","v":{"v":0,"d":"0.00"}}]
[]
["2.","Čiščenje oken, steklenih površin","m2",{"v":42.7,"d":"42.70"},null,{"$f":"D142*E142","v":{"v":0,"d":"0.00"}}]
[]
[null,"Skupaj čiščenje:",{"$nulls":3},{"$f":"SUM(F140:F143)","v":{"v":0,"d":"0.00"}}]

{"sheet":"E8-64","index":10,"n_rows":134,"n_cols":6,"rows_kept":134}
[null,null,"m.e.","količina ","cena na enoto","znesek"]
["A.","GRADBENA DELA"]
[]
["A1.","PRIPRAVLJALNA DELA"]
[]
["1.","Izpraznitev prostorov (kar ni zajeto v postavkah v nadaljevanju), z odvozom. Priprava in ureditev gradbišča z ureditvijo gradbiščnih priključkov, vsakodnevno čiščenje skupnih prostorov in stopnišč, izvedba fizičnih zapor za preprečitev dostopa do gradbišča, postavitev gradbiščnih vrat, gradbiščne table in opozorilnih oznak, premični odri za izvajanje del ter druga pripravljalna in zaključna dela. V ceni zajeti tudi stroške deponije, prevozov in parkirnin glede na lokacijo objekta. V ceni zajeti tudi odstranitev vsega po zaključku del.","zajeto v skupnih delih",{"v":1,"d":"1.00"},null,{"$f":"D6*E6","v":{"v":0,"d":"0.00"}}]
[]
["A2.","RUŠITVENA DELA"]
[]
["2.","Demontaža vhodnih vrat velikosti 90x260 z nadsvetlobo, z izbijanjem podboja in odstranitvijo vseh elementov. Prenos, nakladanje in odvoz na trajno deponijo s plačilom takse.","kos",{"v":1,"d":"1.00"},null,{"$f":"D10*E10","v":{"v":0,"d":"0.00"}}]
[]
["3.","Demontaža notranjih vrat velikosti 90 x 200 cm, z izbijanjem podboja in odstranitvijo vseh elementov. Prenos, nakladanje in odvoz na trajno deponijo s plačilom takse.","kpl",{"v":1,"d":"1.00"},null,{"$f":"D12*E12","v":{"v":0,"d":"0.00"}}]
[]
["4.","Odstranitev elektro instalacij, vsa nadometna napeljava, parapetni kanali 25 m1, NIK kanali 30,5 m1, 8x stropne svetilke, 1x ventilator v oknu vsa stikala in vtičnice ter ostali razvod. Prenos, nakladanje in odvoz na trajno deponijo s plačilom takse.","kpl",{"v":1,"d":"1.00"},null,{"$f":"D14*E14","v":{"v":0,"d":"0.00"}}]
[]
["5.","Demontaža in odstranitev pohištva: 10 kom pisarniške mize, 6 kom omara velikosti 200 x 80 x 40 cm, 1x stenska omara 300 x 300 x 40,  9 kom predalniki pod mizo. Prenos, nakladanje in odvoz na trajno deponijo s plačilom takse.","kpl",{"v":1,"d":"1.00"},null,{"$f":"D16*E16","v":{"v":0,"d":"0.00"}}]
[]
["6.","Odstranitev notranjih in zunanjih enot klime z razvodom. Prenos, nakladanje in odvoz na trajno deponijo s plačilom takse.","kos",{"v":4,"d":"4.00"},null,{"$f":"D18*E18","v":{"v":0,"d":"0.00"}}]
[]
["8.","Demontaža rolojev nad okni. Prenos, nakladanje in odvoz na trajno deponijo s plačilom takse.","kos",{"v":4,"d":"4.00"},null,{"$f":"D20*E20","v":{"v":0,"d":"0.00"}}]
[]
["9.","Rušenje montažne stene iz mavčnih plošč s podkonstrukcijo v niši. Prenos, nakladanje in odvoz na trajno deponijo s plačilom takse.","m2",3.24,null,{"$f":"D22*E22","v":{"v":0,"d":"0.00"}}]
[]
["10.","Rušenje spodnjega dela niše -stena debeline 30 cm iz NF opeke višine 68cm, dolžine 180 cm. Prenos, nakladanje in odvoz na trajno deponijo s plačilom takse.","m3",0.36,null,{"$f":"D24*E24","v":{"v":0,"d":"0.00"}}]
[]
["12.","Odstranitev  talne obloge tapisom na 15 mm lesenih ploščah pod nijm še parket vključno z odstranitvijo stenskih zaključkov. Prenos, nakladanje in odvoz na trajno deponijo s plačilom takse.","m2",{"v":91.4,"d":"91.40"},null,{"$f":"D26*E26","v":{"v":0,"d":"0.00"}}]
[]
["13.","Rušenje celotne sestave tlaka do talne plošče v sestavi colarice, morali 8x6 cm in gramozno nasutje 6 cm. Prenos, nakladanje in odvoz na trajno deponijo s plačilom takse. ","m2",{"v":91.4,"d":"91.40"},null,{"$f":"D28*E28","v":{"v":0,"d":"0.00"}}]
[]
["14.","Dolbljenje  utorov v zidovih, za razvod instalacij, preseka do 6x6 cm, prenos, nalaganje, z odvozom ruševin na trajno deponijo s plačilom takse.","m1",{"v":30,"d":"30.00"},null,{"$f":"D30*E30","v":{"v":0,"d":"0.00"}}]
[]
["15.","Dolbljenje utorov v stropu, za razvod instalacij, preseka do 6x6 cm, prenos, nalaganje, z odvozom ruševin na trajno deponijo s plačilom takse.","m1",{"v":20,"d":"20.00"},null,{"$f":"D32*E32","v":{"v":0,"d":"0.00"}}]
[]
["16.","Dolbljenje  v zidovih, za razvod instalacij, preseka do 15x10 cm, prenos, nalaganje, z odvozom ruševin na trajno deponijo s plačilom takse.","m1",{"v":11,"d":"11.00"},null,{"$f":"D34*E34","v":{"v":0,"d":"0.00"}}]
[null," - za inštalacijo klime","m1",{"v":19,"d":"19.00"},null,{"$f":"D35*E35","v":{"v":0,"d":"0.00"}}]
[]
["17.","Dolbljenje utorov v stropu, za razvod instalacij, preseka do 15x6 cm, prenos, nalaganje, z odvozom ruševin na trajno deponijo s plačilom takse.","m1",{"v":30,"d":"30.00"},null,{"$f":"D37*E37","v":{"v":0,"d":"0.00"}}]
[]
["18.","Izdelava preboja velikosti fi 12 cm v zidu debeline 30 cm. Prenos, nakladanje in odvoz na trajno deponijo s plačilom takse.","kos",{"v":2,"d":"2.00"},null,{"$f":"D39*E39","v":{"v":0,"d":"0.00"}}]
[null," - za inštalacijo klime","kos",{"v":2,"d":"2.00"},null,{"$f":"D40*E40","v":{"v":0,"d":"0.00"}}]
[]
["A3.","ZIDARSKA DELA"]
[]
["20.","Pozidava opuščene vratne odprtine in okenske odprtine nad vrati v zidu debeline 20 cm, s siporexom  s sidranjem v obstoječi zid","m3",0.36,null,{"$f":"D44*E44","v":{"v":0,"d":"0.00"}}]
[]
["23.","Krpanje stenskih ometov pri pozidavi opuščenih vratnih odprtin, grobi in fini omet","m2",{"v":1.8,"d":"1.80"},null,{"$f":"D46*E46","v":{"v":0,"d":"0.00"}}]
[]
["24.","Izdelava izravnave špalet vratne odprtine po rušitvi niše in parapeta, širina 30 cm","m1",{"v":6,"d":"6.00"},null,{"$f":"D48*E48","v":{"v":0,"d":"0.00"}}]
[]
["26.","Obzidava instalacij na prehodu skozi zid in tla ter  krpanje ometov","kos",{"v":2,"d":"2.00"},null,{"$f":"D50*E50","v":{"v":0,"d":"0.00"}}]
[null," - za inštalacijo klime","kos",{"v":2,"d":"2.00"},null,{"$f":"D51*E51","v":{"v":0,"d":"0.00"}}]
[]
["27.","Krpanje utorov v zidovih, za razvod instalacij, preseka do 6x6 cm","m1",{"v":30,"d":"30.00"},null,{"$f":"D53*E53","v":{"v":0,"d":"0.00"}}]
[]
["28.","Krpanje utorov v stropu, za razvod instalacij, preseka do 6x6 cm","m1",{"v":20,"d":"20.00"},null,{"$f":"D55*E55","v":{"v":0,"d":"0.00"}}]
[]
["29.","Krpanje utorov v stropovih, za razvod instalacij, preseka do 15x10 cm","m1",{"v":11,"d":"11.00"},null,{"$f":"D57*E57","v":{"v":0,"d":"0.00"}}]
[null," - za inštalacijo klime","m1",{"v":19,"d":"19.00"},null,{"$f":"D58*E58","v":{"v":0,"d":"0.00"}}]
[]
["30.","Krpanje utorov v zidovih, za razvod instalacij, preseka do 15x6 cm","m1",{"v":30,"d":"30.00"},null,{"$f":"D60*E60","v":{"v":0,"d":"0.00"}}]
[]
["31.","Izdelava plavajočega mikroarmiranega betonskega estriha deb.6 cm, PE folija, 8 cm TI, z dodatkom za hitro sušenje - 14 dni","m2",{"v":91.4,"d":"91.40"},null,{"$f":"D62*E62","v":{"v":0,"d":"0.00"}}]
[]
["32.","Razna manjša in nepredvidena dela, pomoč obrnikom in instalaterjem. Z naročilom in potrditvijo s strani nadzora in gradbenem dnevniku","ur",{"v":10,"d":"10.00"},null,{"$f":"D64*E64","v":{"v":0,"d":"0.00"}}]
[]
[null,"Skupaj gradbena dela :",{"$nulls":3},{"$f":"SUM(F6:F65)","v":{"v":0,"d":"0.00"}}]
[]
[]
["B.","OBRTNIŠKA DELA"]
[]
["B1.","STAVBNO POHIŠTVO"]
[]
["1.","Izdelava, dobava in montaža novih vrat  VhN po shemi projektanta dimenzije 101 x 260 skupaj s podbojem. ","kos",{"v":1,"d":"1.00"},null,{"$f":"D73*E73","v":{"v":0,"d":"0.00"}}]
[]
["2.","Izdelava, dobava in montaža novih vrat  Vh po shemi projektanta dimenzije 180 x 260 skupaj s podbojem. ","kos",{"v":1,"d":"1.00"},null,{"$f":"D75*E75","v":{"v":0,"d":"0.00"}}]
[]
["4.","Dobava in montaža termopan stekla dimenzije 30x30 cm","kos",{"v":1,"d":"1.00"},null,{"$f":"D77*E77","v":{"v":0,"d":"0.00"}}]
[]
[]
["B2.","SLIKOPLESKARSKA DELA"]
[]
["4.","Delno struganje površine, nanos emulzije, kitanje, brušenje in pleskanje sten in stebrov z poldisperzijsko belo barvo ","m2",{"v":120.6,"d":"120.60"},null,{"$f":"D82*E82","v":{"v":0,"d":"0.00"}}]
[]
["6.","Kitanje, brušenje in pleskanje  stropov s poldisperzijsko belo barvo  ","m2",{"v":91.4,"d":"91.40"},null,{"$f":"D84*E84","v":{"v":0,"d":"0.00"}}]
[]
["7.","Barvanje sten do višine 2m s Piši-Briši belo sijaj barvo na pripravljeno podlago. Kot npr. MagPoint sketch paint. ","m2",{"v":23.5,"d":"23.50"},null,{"$f":"D86*E86","v":{"v":0,"d":"0.00"}}]
[]
["8.","Dobava in vgradnja alu vogalnikov","m1",{"v":11.8,"d":"11.80"},null,{"$f":"D88*E88","v":{"v":0,"d":"0.00"}}]
[]
["9.","Zaščita prostora in elementov med deli","kpl",{"v":1,"d":"1.00"},null,{"$f":"D90*E90","v":{"v":0,"d":"0.00"}}]
[]
["B4.","TERACERSKA DELA"]
[]
["9.","Čiščenje in brušenje površine in premaz notranje okenske police iz umetnega kamna s predhodno zaščito obstoječega okna","m2",{"v":3.6,"d":"3.60"},null,{"$f":"D94*E94","v":{"v":0,"d":"0.00"}}]
[]
["B5.","PODOPOLAGALSKA DELA"]
[]
["10.","Dobava in polaganje antistatičnega linoleja z dobavo in vgradnjo stenskih zaokrožnic, s predhodno izvedbo izravnalne mase. Po potrjenem vzorcu s strani arhitektke.","m2",{"v":91.4,"d":"91.40"},null,{"$f":"D98*E98","v":{"v":0,"d":"0.00"}}]
[]
["12.","Dobava in montaža alu profila pri stiku tlakov na vhodu v prostor cca 110 cm","kos",{"v":2,"d":"2.00"},null,{"$f":"D100*E100","v":{"v":0,"d":"0.00"}}]
[]
[null,"Skupaj obrtniška dela :",{"$nulls":3},{"$f":"SUM(F71:F101)","v":{"v":0,"d":"0.00"}}]
[]
[]
["C.","INSTALACIJSKA DELA"]
[]
["C1.","STROJNE INSTALACIJE"]
[]
["1.","Dobava in montaža nove split klimatske naprave srednjega razreda dvojna notranja enota ena zunanja enota","kpl",{"v":1,"d":"1.00"},null,{"$f":"D109*E109","v":{"v":0,"d":"0.00"}}]
[]
["2.","Dobava in montaža nove split klimatske naprave srednjega razreda v prostoru","kpl",{"v":1,"d":"1.00"},null,{"$f":"D111*E111","v":{"v":0,"d":"0.00"}}]
[]
["3.","Inštalacija za klimatsko napravo podometno","m1",{"v":19,"d":"19.00"},null,{"$f":"D113*E113","v":{"v":0,"d":"0.00"}}]
[]
["4.","Dobava in montaža prezračevalnega sistema LUNOS s predhodno izvedbo preboja z vrtanjem skozi parapetni zid in pripravo elektroinštalacije","kpl",{"v":1,"d":"1.00"},null,{"$f":"D115*E115","v":{"v":0,"d":"0.00"}}]
[]
["5.","Predelava priključka radiatorja na levi gledano z vhoda z napeljavo inštalacije podometno v dolžini cca 3 m.","kpl",{"v":1,"d":"1.00"},null,{"$f":"D117*E117","v":{"v":0,"d":"0.00"}}]
[]
["6.","Demontaža ltž radiatorja in obstoječih ventilov in ponovna montaža z dobavo in montažo novih ventilov ter termostatske glave ","kpl",{"v":4,"d":"4.00"},null,{"$f":"D119*E119","v":{"v":0,"d":"0.00"}}]
[]
[null,"Skupaj strojne inštalacije :",{"$nulls":3},{"$f":"SUM(F109:F120)","v":{"v":0,"d":"0.00"}}]
[]
[]
["D.","OSTALO"]
[]
["D1.","ČIŠČENJE"]
[]
["1.","Čiščenje prostorov po končanih delih - vse površine, elementi oprema.","m2",{"v":91.4,"d":"91.40"},null,{"$f":"D128*E128","v":{"v":0,"d":"0.00"}}]
[]
["2.","Čiščenje oken, steklenih površin","m2",{"v":40.8,"d":"40.80"},null,{"$f":"D130*E130","v":{"v":0,"d":"0.00"}}]
[]
["3.","Odstranitev nalepk na stropu in stenah pred pričetkom del","m2",{"v":70,"d":"70.00"},null,{"$f":"D132*E132","v":{"v":0,"d":"0.00"}}]
[]
[null,"Skupaj čiščenje:",{"$nulls":3},{"$f":"SUM(F128:F133)","v":{"v":0,"d":"0.00"}}]

{"sheet":"E8-65, 66","index":11,"n_rows":123,"n_cols":7,"rows_kept":123}
[null,null,"m.e.","količina ","cena na enoto","znesek"]
["A.","GRADBENA DELA"]
[]
["A1.","PRIPRAVLJALNA DELA"]
[]
["1.","Izpraznitev prostorov (kar ni zajeto v postavkah v nadaljevanju), z odvozom. Priprava in ureditev gradbišča z ureditvijo gradbiščnih priključkov, vsakodnevno čiščenje skupnih prostorov in stopnišč, izvedba fizičnih zapor za preprečitev dostopa do gradbišča, postavitev gradbiščnih vrat, gradbiščne table in opozorilnih oznak, premični odri za izvajanje del ter druga pripravljalna in zaključna dela. V ceni zajeti tudi stroške deponije, prevozov in parkirnin glede na lokacijo objekta. V ceni zajeti tudi odstranitev vsega po zaključku del.","zajeto v skupnih delih",{"v":1,"d":"1.00"},null,{"$f":"D6*E6","v":{"v":0,"d":"0.00"}}]
[]
["A2.","RUŠITVENA DELA"]
[]
["2.","Demontaža vhodnih vrat velikosti 90x200, z izbijanjem podboja in odstranitvijo vseh elementov. Prenos, nakladanje in odvoz na trajno deponijo s plačilom takse.","kos",{"v":1,"d":"1.00"},null,{"$f":"D10*E10","v":{"v":0,"d":"0.00"}}]
[]
["3.","Demontaža vhodnih vrat velikosti 90x260 z nadsvetlobo, z izbijanjem podboja in odstranitvijo vseh elementov. Prenos, nakladanje in odvoz na trajno deponijo s plačilom takse.","kos",{"v":2,"d":"2.00"},null,{"$f":"D12*E12","v":{"v":0,"d":"0.00"}}]
[]
["4.","Odstranitev elektro instalacij, vsa nadometna napeljava, parapetni kanali 19 m1, NIK kanali 36,5 m1, 6x stropne svetilke, komunikacijska omara 2 kom vsa stikala in vtičnice ter ostali razvod. Prenos, nakladanje in odvoz na trajno deponijo s plačilom takse.","kpl",{"v":1,"d":"1.00"},null,{"$f":"D14*E14","v":{"v":0,"d":"0.00"}}]
[]
["5.","Demontaža pohištva: dve masivni sejni mizi dolžine 4 m, prenos v skladišče","kpl",{"v":2,"d":"2.00"},null,{"$f":"D16*E16","v":{"v":0,"d":"0.00"}}]
[]
["6.","Demontaža table na stenah , prenos v skladišče.","kom",{"v":5,"d":"5.00"},null,{"$f":"D18*E18","v":{"v":0,"d":"0.00"}}]
[]
["7.","Demontaža projekcijskega platna, prenos v skladišče.","kom",{"v":2,"d":"2.00"},null,{"v":0,"d":"0.00"}]
[]
["8.","Demontaža rolo senčil 2,2 m v prostoru 65. Prenos, nakladanje in odvoz na trajno deponijo s plačilom takse.","kom",{"v":2,"d":"2.00"},null,{"v":0,"d":"0.00"}]
[]
["9.","Demontaža rolo senčil 2,2 m v prostoru 66. Prenos v skladišče.","kom",{"v":2,"d":"2.00"},null,{"v":0,"d":"0.00"}]
[]
["10.","Demontaža lesene plošče na stropu in steni dimenzije 8m x 0,8m, prenos v skladišče.","kpl",{"v":1,"d":"1.00"},null,{"v":0,"d":"0.00"}]
[]
["11.","Odstranitev notranjih in zunanjih enot klime z razvodom. Prenos, nakladanje in odvoz na trajno deponijo s plačilom takse.","kos",{"v":3,"d":"3.00"},null,{"$f":"D28*E28","v":{"v":0,"d":"0.00"}}]
[]
["12.","Rušenje zidu ter AB preklade debeline 30 cm nad obstoječimi vhodnimi vrati do stropa. Prenos, nakladanje in odvoz na trajno deponijo s plačilom takse.","m3",{"v":0.5,"d":"0.50"},null,{"$f":"D30*E30","v":{"v":0,"d":"0.00"}}]
[]
["14.","Dolbljenje  utorov v zidovih, za razvod instalacij, preseka do 6x6 cm, prenos, nalaganje, z odvozom ruševin na trajno deponijo s plačilom takse.","m1",{"v":20,"d":"20.00"},null,{"$f":"D32*E32","v":{"v":0,"d":"0.00"}}]
[]
["15.","Dolbljenje utorov v stropu, za razvod instalacij, preseka do 6x6 cm, prenos, nalaganje, z odvozom ruševin na trajno deponijo s plačilom takse.","m1",{"v":15,"d":"15.00"},null,{"$f":"D34*E34","v":{"v":0,"d":"0.00"}}]
[]
["16.","Dolbljenje  v zidovih, za razvod instalacij, preseka do 15x12 cm, prenos, nalaganje, z odvozom ruševin na trajno deponijo s plačilom takse.","m1",{"v":25,"d":"25.00"},null,{"$f":"D36*E36","v":{"v":0,"d":"0.00"}}]
[]
["17.","Dolbljenje utorov v stropu, za razvod instalacij, preseka do 15x6 cm, prenos, nalaganje, z odvozom ruševin na trajno deponijo s plačilom takse.","m1",{"v":12,"d":"12.00"},null,{"$f":"D38*E38","v":{"v":0,"d":"0.00"}}]
[]
["18.","Izdelava preboja velikosti fi 12 cm v zidu debeline 30 cm. Prenos, nakladanje in odvoz na trajno deponijo s plačilom takse.","kos",{"v":2,"d":"2.00"},null,{"$f":"D40*E40","v":{"v":0,"d":"0.00"}}]
[null," - za inštalacijo klime","kos",{"v":2,"d":"2.00"},null,{"$f":"D41*E41","v":{"v":0,"d":"0.00"}}]
[]
["A3.","ZIDARSKA DELA"]
[]
["19.","Izdelava AB preklade nad vratno odprtino-vhod v prostor. Velikosti 160x15x20 cm, s pripravo ležišč, opažem, armaturo in betoniranjem","kpl",{"v":1,"d":"1.00"},null,{"$f":"D45*E45","v":{"v":0,"d":"0.00"}}]
[]
["20.","Nadzidava nad preklado do stropa s siporex bloki deb 15cm višine 25 cm širine 100 cm  ","kpl",{"v":1,"d":"1.00"},null,{"$f":"D47*E47","v":{"v":0,"d":"0.00"}}]
[]
["21.","Krpanje stenskih ometov preklade in nadzidave nad vrati  obojestransko, grobi in fini omet","m2",0.95,null,{"$f":"D49*E49","v":{"v":0,"d":"0.00"}}]
[]
["22.","Krpanje stenskih ometov pri pozidavi opuščenih vratnih odprtin, grobi in fini omet","m2",{"v":1.8,"d":"1.80"},null,{"$f":"D51*E51","v":{"v":0,"d":"0.00"}}]
[]
["24.","Obzidava instalacij na prehodu skozi zid in tla ter  krpanje ometov","kos",{"v":2,"d":"2.00"},null,{"$f":"D53*E53","v":{"v":0,"d":"0.00"}}]
[null," - za inštalacijo klime","kos",{"v":2,"d":"2.00"},null,{"$f":"D54*E54","v":{"v":0,"d":"0.00"}}]
[]
["25.","Krpanje utorov v zidovih, za razvod instalacij, preseka do 6x6 cm","m1",{"v":20,"d":"20.00"},null,{"$f":"D56*E56","v":{"v":0,"d":"0.00"}}]
[]
["26.","Krpanje utorov v stropu, za razvod instalacij, preseka do 6x6 cm","m1",{"v":15,"d":"15.00"},null,{"$f":"D58*E58","v":{"v":0,"d":"0.00"}}]
[]
["27.","Krpanje utorov v stropovih, za razvod instalacij, preseka do 15x10 cm","m1",{"v":25,"d":"25.00"},null,{"$f":"D60*E60","v":{"v":0,"d":"0.00"}}]
[]
["28.","Krpanje utorov v zidovih, za razvod instalacij, preseka do 15x6 cm","m1",{"v":12,"d":"12.00"},null,{"$f":"D62*E62","v":{"v":0,"d":"0.00"}}]
[]
["30.","Razna manjša in nepredvidena dela, pomoč obrnikom in instalaterjem. Z naročilom in potrditvijo s strani nadzora in gradbenem dnevniku","ur",{"v":10,"d":"10.00"},null,{"$f":"D64*E64","v":{"v":0,"d":"0.00"}}]
[]
[null,"Skupaj gradbena dela :",{"$nulls":3},{"$f":"SUM(F6:F65)","v":{"v":0,"d":"0.00"}}]
[]
[]
["B.","OBRTNIŠKA DELA"]
[]
["B1.","STAVBNO POHIŠTVO"]
[]
["1.","Izdelava, dobava in montaža novih vrat VhN po shemi projektanta dimenzije 101 x 260 skupaj s podbojem. ","kos",{"v":2,"d":"2.00"},null,{"$f":"D73*E73","v":{"v":0,"d":"0.00"}}]
[]
[]
["B2.","SLIKOPLESKARSKA DELA"]
[]
["2.","Delno struganje površine, nanos emulzije, kitanje, brušenje in pleskanje sten in stebrov z poldisperzijsko belo barvo ","m2",{"v":140,"d":"140.00"},null,{"$f":"D78*E78","v":{"v":0,"d":"0.00"}}]
[]
["3.","Kitanje, brušenje in pleskanje  stropov s poldisperzijsko belo barvo  ","m2",{"v":66.4,"d":"66.40"},null,{"$f":"D80*E80","v":{"v":0,"d":"0.00"}}]
[]
["4.","Zaščita prostora in elementov med deli","kpl",{"v":1,"d":"1.00"},null,{"$f":"D82*E82","v":{"v":0,"d":"0.00"}}]
[]
["B3.","TERACERSKA DELA"]
[]
["5.","Čiščenje in brušenje površine in premaz notranje okenske police iz umetnega kamna s predhodno zaščito obstoječega okna","m2",{"v":2.7,"d":"2.70"},null,{"$f":"D86*E86","v":{"v":0,"d":"0.00"}}]
[]
["B4.","PODOPOLAGALSKA DELA"]
[]
["6.","Popravilo, kitanje, brušenje in lakiranje obstoječega parketa s kvalitetnim lakom ","m2",{"v":66.4,"d":"66.40"},null,{"$f":"D90*E90","v":{"v":0,"d":"0.00"}}]
[]
["7.","Dobava in montaža nizkih lesenih stenskih letvic, hrast lakirano.","m1",{"v":32,"d":"32.00"},null,{"$f":"D92*E92","v":{"v":0,"d":"0.00"}}]
[]
["9.","Izdelava in montaža cezure iz hrastovih desk dimenzije 10 cm x 2 m","kpl",{"v":1,"d":"1.00"},null,{"$f":"D94*E94","v":{"v":0,"d":"0.00"}}]
[]
["10.","Dobava in montaža alu profila pri stiku tlakov na vhodu v prostor cca 110 cm","kos",{"v":2,"d":"2.00"},null,{"$f":"D96*E96","v":{"v":0,"d":"0.00"}}]
[]
[null,"Skupaj obrtniška dela :",{"$nulls":3},{"$f":"SUM(F71:F97)","v":{"v":0,"d":"0.00"}}]
[]
[]
["C.","INSTALACIJSKA DELA"]
[]
["C1.","STROJNE INSTALACIJE"]
[]
["1.","Dobava in montaža nove split klimatske naprave srednjega razreda dvojna notranja enota ena zunanja enota že obračunano v  št.64, E8 in št.67, E8","kpl",{"v":2,"d":"2.00"},null,{"$f":"D105*E105","v":{"v":0,"d":"0.00"}}]
[]
["2.","Dobava in montaža prezračevalnega sistema LUNOS s predhodno izvedbo preboja z vrtanjem skozi parapetni zid in pripravo elektroinštalacije","kpl",{"v":2,"d":"2.00"},null,{"$f":"D107*E107","v":{"v":0,"d":"0.00"}},{"$f":"F107","v":{"v":0,"d":"0.00"}}]
[]
["3.","Demontaža ltž radiatorja in obstoječih ventilov, čiščenje radiatorja in ponovna montaža z dobavo in montažo novih ventilov ter termostatske glave ","kpl",{"v":3,"d":"3.00"},null,{"$f":"D109*E109","v":{"v":0,"d":"0.00"}}]
[]
[null,"Skupaj strojne inštalacije :",{"$nulls":3},{"$f":"SUM(F105:F110)","v":{"v":0,"d":"0.00"}}]
[]
[]
[]
["D.","OSTALO"]
[]
["D1.","ČIŠČENJE"]
[]
["1.","Čiščenje prostorov po končanih delih - vse površine, elementi oprema.","m2",{"v":66.4,"d":"66.40"},null,{"$f":"D119*E119","v":{"v":0,"d":"0.00"}}]
[]
["2.","Čiščenje oken, steklenih površin","m2",35.85,null,{"$f":"D121*E121","v":{"v":0,"d":"0.00"}}]
[]
[null,"Skupaj čiščenje:",{"$nulls":3},{"$f":"SUM(F119:F122)","v":{"v":0,"d":"0.00"}},{"$f":"SUM(G1:G122)","v":{"v":0,"d":"0.00"}}]

{"sheet":"E8 67-70","index":12,"n_rows":167,"n_cols":6,"rows_kept":167}
[null,null,"m.e.","količina ","cena na enoto","znesek"]
["A.","GRADBENA DELA"]
[]
["A1.","PRIPRAVLJALNA DELA"]
[]
["1.","Izpraznitev prostorov (kar ni zajeto v postavkah v nadaljevanju), z odvozom. Priprava in ureditev gradbišča z ureditvijo gradbiščnih priključkov, vsakodnevno čiščenje skupnih prostorov in stopnišč, izvedba fizičnih zapor za preprečitev dostopa do gradbišča, postavitev gradbiščnih vrat, gradbiščne table in opozorilnih oznak, premični odri za izvajanje del ter druga pripravljalna in zaključna dela. V ceni zajeti tudi stroške deponije, prevozov in parkirnin glede na lokacijo objekta. V ceni zajeti tudi odstranitev vsega po zaključku del.","zajeto v skupnih delih",{"v":1,"d":"1.00"},null,{"$f":"D6*E6","v":{"v":0,"d":"0.00"}}]
[]
["A2.","RUŠITVENA DELA"]
[]
["2.","Demontaža vhodnih vrat velikosti 90x260 z nadsvetlobo, z izbijanjem podboja in odstranitvijo vseh elementov. Prenos, nakladanje in odvoz na trajno deponijo s plačilom takse.","kos",{"v":3,"d":"3.00"},null,{"$f":"D10*E10","v":{"v":0,"d":"0.00"}}]
[]
["3.","Demontaža vhodnih vrat št. 68 velikosti 100x200, z izbijanjem podboja in odstranitvijo vseh elementov. Prenos, nakladanje in odvoz na trajno deponijo s plačilom takse.","kos",{"v":1,"d":"1.00"},null,{"$f":"D12*E12","v":{"v":0,"d":"0.00"}}]
[]
["4.","Demontaža notranjih vrat v pisarne velikosti 90x200, z izbijanjem podboja in odstranitvijo vseh elementov. Prenos, nakladanje in odvoz na trajno deponijo s plačilom takse.","kos",{"v":7,"d":"7.00"},null,{"$f":"D14*E14","v":{"v":0,"d":"0.00"}}]
[]
["5.","Demontaža alu-steklene stene z vrati dim.180x300 cm v hodniku ARHIV in odstranitvijo vseh elementov. Prenos, nakladanje in odvoz na trajno deponijo s plačilom takse.","kpl",{"v":1,"d":"1.00"},null,{"$f":"D16*E16","v":{"v":0,"d":"0.00"}}]
[]
["6.","Odstranitev elektro instalacij, vsa nadometna napeljava, parapetni kanali 23,5 m1, NIK kanali 69,5 m1, 6x stropne svetilke, komunikacijska omara 1 kom vsa stikala in vtičnice ter ostali razvod. Prenos, nakladanje in odvoz na trajno deponijo s plačilom takse.","kpl",{"v":1,"d":"1.00"},null,{"$f":"D18*E18","v":{"v":0,"d":"0.00"}}]
[]
["7.","Demontaža in odstranitev pohištva: 1 kom stena z obešalniki 80x200cm, omara v arhivu dimenzije 700x300x40 cm. Prenos, nakladanje in odvoz na trajno deponijo s plačilom takse.","kpl",{"v":1,"d":"1.00"},null,{"$f":"D20*E20","v":{"v":0,"d":"0.00"}}]
[]
["8.","Demontaža notranjih žaluzij in rolo senčil 2 m. Prenos, nakladanje in odvoz na trajno deponijo s plačilom takse.","kom",{"v":10,"d":"10.00"},null,{"$f":"D22*E22","v":{"v":0,"d":"0.00"}}]
[]
["9.","Odstranitev notranjih in zunanjih enot klime z razvodom. Prenos, nakladanje in odvoz na trajno deponijo s plačilom takse.","kos",{"v":2,"d":"2.00"},null,{"$f":"D24*E24","v":{"v":0,"d":"0.00"}}]
[]
["10.","Demontaža klime s shranjevanjem plina notranje enote klime (se skladišči za kasnejšo uporabo). Demontaža razvoda inštalacije do zunanje enote. Prenos, nakladanje in odvoz na trajno deponijo s plačilom takse.","kos",{"v":1,"d":"1.00"},null,{"$f":"D26*E26","v":{"v":0,"d":"0.00"}}]
[]
["11.","Rušenje nosilnih zidov debeline 20 cm z vsemi oblogami, AB vezmi v hodniku. Prenos, nakladanje in odvoz na trajno deponijo s plačilom takse.","m3",{"v":2,"d":"2.00"},null,{"$f":"D28*E28","v":{"v":0,"d":"0.00"}}]
[]
["13.","Rušenje montažne stene iz mavčnih plošč deb.10 cm s podkonstrukcijo nad vhodnimi vrati v vse pisarne. Prenos, nakladanje in odvoz na trajno deponijo s plačilom takse.","m2",{"v":8.8,"d":"8.80"},null,{"$f":"D30*E30","v":{"v":0,"d":"0.00"}}]
[]
["14.","Rušenje montažne stene iz mavčnih plošč deb.10 cm s podkonstrukcijo pri kuhinji v hodniku. Prenos, nakladanje in odvoz na trajno deponijo s plačilom takse.","m2",{"v":3.6,"d":"3.60"},null,{"$f":"D32*E32","v":{"v":0,"d":"0.00"}}]
[]
["15.","Rušenje montažne stene iz mavčnih plošč s podkonstrukcijo v niši. Prenos, nakladanje in odvoz na trajno deponijo s plačilom takse.","m2",6.48,null,{"$f":"D34*E34","v":{"v":0,"d":"0.00"}}]
[]
["16.","Rušenje spodnjega dela niše -stena debeline 30 cm iz NF opeke - 2 vrsti (10 cm), dolžine 180 cm. Prenos, nakladanje in odvoz na trajno deponijo s plačilom takse.","kpl",{"v":2,"d":"2.00"},null,{"$f":"D36*E36","v":{"v":0,"d":"0.00"}}]
[]
["17.","Dolbljenje  utorov v zidovih, za razvod instalacij, preseka do 6x6 cm, prenos, nalaganje, z odvozom ruševin na trajno deponijo s plačilom takse.","m1",{"v":70,"d":"70.00"},null,{"$f":"D38*E38","v":{"v":0,"d":"0.00"}}]
[]
["18.","Dolbljenje utorov v stropu, za razvod instalacij, preseka do 6x6 cm, prenos, nalaganje, z odvozom ruševin na trajno deponijo s plačilom takse.","m1",{"v":50,"d":"50.00"},null,{"$f":"D40*E40","v":{"v":0,"d":"0.00"}}]
[]
["19.","Dolbljenje  v zidovih, za razvod instalacij, preseka do 15x10 cm, prenos, nalaganje, z odvozom ruševin na trajno deponijo s plačilom takse.","m1",{"v":53,"d":"53.00"},null,{"$f":"D42*E42","v":{"v":0,"d":"0.00"}}]
[null," - za inštalacijo klime","m1",{"v":27,"d":"27.00"},null,{"$f":"D43*E43","v":{"v":0,"d":"0.00"}}]
[]
["20.","Dolbljenje utorov v stropu, za razvod instalacij, preseka do 15x6 cm, prenos, nalaganje, z odvozom ruševin na trajno deponijo s plačilom takse.","m1",{"v":50,"d":"50.00"},null,{"$f":"D45*E45","v":{"v":0,"d":"0.00"}}]
[]
["21.","Izdelava preboja velikosti fi 12 cm v zidu debeline 30 cm. Prenos, nakladanje in odvoz na trajno deponijo s plačilom takse.","kos",{"v":5,"d":"5.00"},null,{"$f":"D47*E47","v":{"v":0,"d":"0.00"}}]
[null," - za inštalacijo klime","kos",{"v":5,"d":"5.00"},null,{"$f":"D48*E48","v":{"v":0,"d":"0.00"}}]
[]
["A3.","ZIDARSKA DELA"]
[]
["22.","Izdelava izravnave špalet niše po rušenju. Špalete širine 30 cm","m1",{"v":4.4,"d":"4.40"},null,{"$f":"D52*E52","v":{"v":0,"d":"0.00"}}]
[]
["23.","Krpanje sten in stropov po rušitvi zidu, pas širine do 25 cm, grobi in fini omet.","m1",{"v":22.5,"d":"22.50"},null,{"$f":"D54*E54","v":{"v":0,"d":"0.00"}}]
[]
["24.","Obzidava instalacij na prehodu skozi zid in tla ter  krpanje ometov","kos",{"v":5,"d":"5.00"},null,{"$f":"D56*E56","v":{"v":0,"d":"0.00"}}]
[null," - za inštalacijo klime","kos",{"v":5,"d":"5.00"},null,{"$f":"D57*E57","v":{"v":0,"d":"0.00"}}]
[]
["25.","Krpanje utorov v zidovih, za razvod instalacij, preseka do 6x6 cm","m1",{"v":70,"d":"70.00"},null,{"$f":"D59*E59","v":{"v":0,"d":"0.00"}}]
[]
["26.","Krpanje utorov v stropu, za razvod instalacij, preseka do 6x6 cm","m1",{"v":50,"d":"50.00"},null,{"$f":"D61*E61","v":{"v":0,"d":"0.00"}}]
[]
["27.","Krpanje utorov v zidovih, za razvod instalacij, preseka do 15x10 cm","m1",{"v":53,"d":"53.00"},null,{"$f":"D63*E63","v":{"v":0,"d":"0.00"}}]
[null," - za inštalacijo klime","m1",{"v":27,"d":"27.00"},null,{"$f":"D64*E64","v":{"v":0,"d":"0.00"}}]
[]
["28.","Krpanje utorov v stopu, za razvod instalacij, preseka do 15x6 cm","m1",{"v":50,"d":"50.00"},null,{"$f":"D66*E66","v":{"v":0,"d":"0.00"}}]
[]
["29.","Krpanje tal na mestu porušenih sten pasovi širine do 15 cm","m1",{"v":6.2,"d":"6.20"},null,{"$f":"D68*E68","v":{"v":0,"d":"0.00"}}]
[]
["30.","Zazidava odprtin za inštalacije v hodniku ter izdelava grobega in finega ometa na mestu zazidav, dim 10/10 do 20/30","kos",{"v":9,"d":"9.00"},null,{"$f":"D70*E70","v":{"v":0,"d":"0.00"}}]
[]
["31.","Razna manjša in nepredvidena dela, pomoč obrnikom in instalaterjem. Z naročilom in potrditvijo s strani nadzora in gradbenem dnevniku","ur",{"v":20,"d":"20.00"},null,{"$f":"D72*E72","v":{"v":0,"d":"0.00"}}]
[]
[null,"Skupaj gradbena dela :",{"$nulls":3},{"$f":"SUM(F6:F73)","v":{"v":0,"d":"0.00"}}]
[]
[]
["B.","OBRTNIŠKA DELA"]
[]
["B1.","MAVČNO KARTONSKA DELA"]
[]
["1.","Dobava in izdelava knauf stene W112 s s podkonstrukcijo, stena debeline 12,5 cm z bandažiranjem- Pisarna 1, Arhiv ","m2",{"v":12.3,"d":"12.30"},null,{"$f":"D81*E81","v":{"v":0,"d":"0.00"}}]
[]
["2.","Izdelava zaključkov predelnih sten predelnih sten po rušitvah nad vrati vhodov v pisarne in stene pri arhivu","m1",{"v":23.8,"d":"23.80"},null,{"$f":"D83*E83","v":{"v":0,"d":"0.00"}}]
[]
[]
["B2.","STAVBNO POHIŠTVO"]
[]
["3.","Izdelava, dobava in montaža novih vrat po shemi projektanta dimenzije VhN 101x 260 cm skupaj s podbojem. ","kos",{"v":3,"d":"3.00"},null,{"$f":"D88*E88","v":{"v":0,"d":"0.00"}}]
[]
["4.","Izdelava, dobava in montaža novih vrat po shemi projektanta dimenzije 95 x 210 cm skupaj s podbojem - vhod 68","kos",{"v":1,"d":"1.00"},null,{"$f":"D90*E90","v":{"v":0,"d":"0.00"}}]
[]
["5.","Izdelava, dobava in montaža novih vrat VN v pisarne po shemi projektanta dimenzije 96 x 300 cm. ","kos",{"v":9,"d":"9.00"},null,{"$f":"D92*E92","v":{"v":0,"d":"0.00"}}]
[]
["8.","Dobava in montaža fiksne zasteklitve FSN v niši dimenzije: š/v 180/191 cm,  opis v shemah zasteklitev.","kos",{"v":2,"d":"2.00"},null,{"$f":"D94*E94","v":{"v":0,"d":"0.00"}}]
[]
["9.","Demontaža steklene stene z vrati in ponovna montaža  stene obrnjene za 180°, Pisarna \"Srečanja\"","kpl",{"v":1,"d":"1.00"},null,{"$f":"D96*E96","v":{"v":0,"d":"0.00"}}]
[]
[]
["B3.","SLIKOPLESKARSKA DELA"]
[]
["10.","Delno struganje površine, nanos emulzije, kitanje, brušenje in pleskanje sten in stebrov z poldisperzijsko belo barvo ","m2",685.35,null,{"$f":"D101*E101","v":{"v":0,"d":"0.00"}}]
[]
["11.","Kitanje, brušenje in pleskanje  stropov s poldisperzijsko belo barvo  ","m2",{"v":243.6,"d":"243.60"},null,{"$f":"D103*E103","v":{"v":0,"d":"0.00"}}]
[]
["12.","Čiščenje in pleskanje radiatorjev z belo radiatorsko barvo","kom",{"v":10,"d":"10.00"},null,{"$f":"D105*E105","v":{"v":0,"d":"0.00"}}]
[]
["13.","Zaščita prostora in elementov med deli","kpl",{"v":1,"d":"1.00"},null,{"$f":"D107*E107","v":{"v":0,"d":"0.00"}}]
[]
[]
["B4.","TERACERSKA DELA"]
[]
["14.","Čiščenje in brušenje površine in premaz notranje okenske police iz umetnega kamna s predhodno zaščito obstoječega okna","m2",{"v":9,"d":"9.00"},null,{"$f":"D112*E112","v":{"v":0,"d":"0.00"}}]
[]
["B5.","PODOPOLAGALSKA DELA"]
[]
["15.","Popravilo, kitanje, brušenje in lakiranje obstoječega parketa s kvalitetnim lakom ","m2",{"v":243.6,"d":"243.60"},null,{"$f":"D116*E116","v":{"v":0,"d":"0.00"}}]
[]
["16.","Dobava in montaža nizkih lesenih stenskih letvic, hrast lakirano.","m1",{"v":216,"d":"216.00"},null,{"$f":"D118*E118","v":{"v":0,"d":"0.00"}}]
[]
["17.","Izdelava in montaža cezure iz hrastovih desk debeline 20mm dimenzije ( po potrebi z rezanjem parketa za izravnavo):"]
[null," - 80 x 25 cm ","kom",{"v":1,"d":"1.00"},null,{"$f":"D121*E121","v":{"v":0,"d":"0.00"}}]
[null," - 160 x 20 cm na mestu odstranjene stene ","kom",{"v":1,"d":"1.00"},null,{"$f":"D122*E122","v":{"v":0,"d":"0.00"}}]
[null," - 60 x 20 cm na mestu odstranjene stene ","kom",{"v":2,"d":"2.00"},null,{"$f":"D123*E123","v":{"v":0,"d":"0.00"}}]
[null," - 60 x 12 cm na mestu odstranjene stene ","kom",{"v":2,"d":"2.00"},null,{"$f":"D124*E124","v":{"v":0,"d":"0.00"}}]
[null," - 100 x 12 cm na mestu odstranjene stene ","kom",{"v":1,"d":"1.00"},null,{"$f":"D125*E125","v":{"v":0,"d":"0.00"}}]
[]
["18.","Izdelava in montaža hrastovega praga debeline 25 mm dimenzije 100x40 cm z vpasovanjem ob podboju vrat vhod št.68","kpl",{"v":1,"d":"1.00"},null,{"$f":"D127*E127","v":{"v":0,"d":"0.00"}}]
[]
["19.","Dobava in montaža alu profila pri stiku tlakov na vhodu v prostor cca 110 cm","kos",{"v":4,"d":"4.00"},null,{"$f":"D129*E129","v":{"v":0,"d":"0.00"}}]
[]
[null,"Skupaj obrtniška dela :",{"$nulls":3},{"$f":"SUM(F81:F130)","v":{"v":0,"d":"0.00"}}]
[]
[]
["C.","INSTALACIJSKA DELA"]
[]
["C1.","STROJNE INSTALACIJE"]
[]
["1.","Dobava in montaža nove split klimatske naprave srednjega razreda dvojna notranja enota ena zunanja enota","kpl",{"v":4,"d":"4.00"},null,{"$f":"D138*E138","v":{"v":0,"d":"0.00"}}]
[]
["2.","Dobava in montaža nove split klimatske naprave srednjega razreda v prostoru","kpl",{"v":1,"d":"1.00"},null,{"$f":"D140*E140","v":{"v":0,"d":"0.00"}}]
[]
["3.","Montaža obstoječe notranje enote klimatske naprave","kpl",{"v":1,"d":"1.00"},null,{"$f":"D142*E142","v":{"v":0,"d":"0.00"}}]
[]
["4.","Inštalacija za klimatsko napravo podometno","m1",{"v":27,"d":"27.00"},null,{"$f":"D144*E144","v":{"v":0,"d":"0.00"}}]
[]
["4.","Inštalacija za klimatsko napravo nadometno v nadometnem kanalu kanalu","m1",{"v":18,"d":"18.00"},null,{"$f":"D146*E146","v":{"v":0,"d":"0.00"}}]
[]
["5.","Demontaža ltž radiatorja in obstoječih ventilov in ponovna montaža z dobavo in montažo novih ventilov ter termostatske glave ","kpl",{"v":10,"d":"10.00"},null,{"$f":"D148*E148","v":{"v":0,"d":"0.00"}}]
[]
["6.","Odstraniti ventil na steni v hodniku in začepiti cev podometno","kpl",{"v":1,"d":"1.00"},null,{"$f":"D150*E150","v":{"v":0,"d":"0.00"}}]
[]
["7.","Ukinitev radiatorskih cevi 2m1 na steni v pisarni 1 in začepiti cev podometno","kpl",{"v":1,"d":"1.00"},null,{"$f":"D152*E152","v":{"v":0,"d":"0.00"}}]
[]
["8.","Dobava in montaža popdpultnega grelnika vode ter kuhinjske izlivne  armature, kpl z ventili in odtočnega sifona.","kpl",{"v":1,"d":"1.00"},null,{"$f":"D154*E154","v":{"v":0,"d":"0.00"}}]
[]
[null,"Skupaj strojne inštalacije :",{"$nulls":3},{"$f":"SUM(F138:F155)","v":{"v":0,"d":"0.00"}}]
[]
[]
["D.","OSTALO"]
[]
["D1.","ČIŠČENJE"]
[]
["1.","Čiščenje prostorov po končanih delih - vse površine, elementi oprema.","m2",{"v":243.6,"d":"243.60"},null,{"$f":"D163*E163","v":{"v":0,"d":"0.00"}}]
[]
["2.","Čiščenje oken, steklenih površin","m2",{"v":190.2,"d":"190.20"},null,{"$f":"D165*E165","v":{"v":0,"d":"0.00"}}]
[]
[null,"Skupaj čiščenje:",{"$nulls":3},{"$f":"SUM(F163:F166)","v":{"v":0,"d":"0.00"}}]

{"sheet":"E6-57","index":13,"n_rows":140,"n_cols":6,"rows_kept":140}
[null,null,"m.e.","količina ","cena na enoto","znesek"]
["A.","GRADBENA DELA"]
[]
["A1.","PRIPRAVLJALNA DELA"]
[]
["1.","Izpraznitev prostorov (kar ni zajeto v postavkah v nadaljevanju), z odvozom. Priprava in ureditev gradbišča z ureditvijo gradbiščnih priključkov, vsakodnevno čiščenje skupnih prostorov in stopnišč, izvedba fizičnih zapor za preprečitev dostopa do gradbišča, postavitev gradbiščnih vrat, gradbiščne table in opozorilnih oznak, premični odri za izvajanje del ter druga pripravljalna in zaključna dela. V ceni zajeti tudi stroške deponije, prevozov in parkirnin glede na lokacijo objekta. V ceni zajeti tudi odstranitev vsega po zaključku del.","zajeto v skupnih delih",{"v":1,"d":"1.00"},null,{"$f":"D6*E6","v":{"v":0,"d":"0.00"}}]
[]
["A2.","RUŠITVENA DELA"]
[]
["2.","Demontaža vhodnih vrat velikosti 90x260 z nadsvetlobo, z izbijanjem podboja in odstranitvijo vseh elementov. Prenos, nakladanje in odvoz na trajno deponijo s plačilom takse.","kos",{"v":2,"d":"2.00"},null,{"$f":"D10*E10","v":{"v":0,"d":"0.00"}}]
[]
["3.","Demontaža notranjih vrat velikosti 90 x 200 cm, z izbijanjem podboja in odstranitvijo vseh elementov. Prenos, nakladanje in odvoz na trajno deponijo s plačilom takse.","kpl",{"v":1,"d":"1.00"},null,{"$f":"D12*E12","v":{"v":0,"d":"0.00"}}]
[]
["4.","Odstranitev elektro instalacij, vsa nadometna napeljava, parapetni kanali 12 m1, 4x stropne svetilke, vsa stikala in vtičnice ter ostali razvod. Prenos, nakladanje in odvoz na trajno deponijo s plačilom takse.","kpl",{"v":1,"d":"1.00"},null,{"$f":"D14*E14","v":{"v":0,"d":"0.00"}}]
[]
["5.","Odstranitev notranjih in zunanjih enot klime z razvodom. Prenos, nakladanje in odvoz na trajno deponijo s plačilom takse.","kos",{"v":1,"d":"1.00"},null,{"$f":"D16*E16","v":{"v":0,"d":"0.00"}}]
[]
["6.","Odstranitev in demontaža umivalnika, izlivne armature, in sifona. Prenos, nakladanje in odvoz na trajno deponijo s plačilom takse.","kpl",{"v":1,"d":"1.00"},null,{"$f":"D18*E18","v":{"v":0,"d":"0.00"}}]
[]
["7.","Odstranitev radiatorjev z vsemi elementi. Prenos, nakladanje in odvoz na trajno deponijo s plačilom takse.","kos",{"v":2,"d":"2.00"},null,{"$f":"D20*E20","v":{"v":0,"d":"0.00"}}]
[]
["8.","Demontaža notranjih žaluzij nad okni z vsemi elementi. Prenos, nakladanje in odvoz na trajno deponijo s plačilom takse.","kos",{"v":8,"d":"8.00"},null,{"$f":"D22*E22","v":{"v":0,"d":"0.00"}}]
[]
["9.","Rušenje montažne stene iz mavčnih plošč deb.10 cm s podkonstrukcijo. Prenos, nakladanje in odvoz na trajno deponijo s plačilom takse.","m2",{"v":15,"d":"15.00"},null,{"$f":"D24*E24","v":{"v":0,"d":"0.00"}}]
[]
["10.","Rušenje celotne sestave tlaka do talne plošče debeline 14 cm estrih 6 cm gramozno nasutje 8 cm. Prenos, nakladanje in odvoz na trajno deponijo s plačilom takse.","m2",{"v":51,"d":"51.00"},null,{"$f":"D26*E26","v":{"v":0,"d":"0.00"}}]
[]
["11.","Odbijanje stenske keramike. Prenos, nakladanje in odvoz na trajno deponijo s plačilom takse.","m2",2.17,null,{"$f":"D28*E28","v":{"v":0,"d":"0.00"}}]
[]
["12.","Dolbljenje  utorov v zidovih, za razvod instalacij, preseka do 6x6 cm, prenos, nalaganje, z odvozom ruševin na trajno deponijo s plačilom takse.","m1",{"v":20,"d":"20.00"},null,{"$f":"D30*E30","v":{"v":0,"d":"0.00"}}]
[]
["13.","Dolbljenje utorov v stropu, za razvod instalacij, preseka do 6x6 cm, prenos, nalaganje, z odvozom ruševin na trajno deponijo s plačilom takse.","m1",{"v":8,"d":"8.00"},null,{"$f":"D32*E32","v":{"v":0,"d":"0.00"}}]
[]
["14.","Dolbljenje  v zidovih, za razvod instalacij, preseka do 15x12 cm, prenos, nalaganje, z odvozom ruševin na trajno deponijo s plačilom takse.","m1",{"v":4,"d":"4.00"},null,{"$f":"D34*E34","v":{"v":0,"d":"0.00"}}]
[null," - za inštalacijo klime","m1",{"v":6,"d":"6.00"},null,{"$f":"D35*E35","v":{"v":0,"d":"0.00"}}]
[]
["15.","Dolbljenje  v stropu, za razvod instalacij, preseka do 15x6 cm, prenos, nalaganje, z odvozom ruševin na trajno deponijo s plačilom takse.","m1",{"v":10,"d":"10.00"},null,{"$f":"D37*E37","v":{"v":0,"d":"0.00"}}]
[]
["16.","Izdelava preboja velikosti fi 12 cm v zidu debeline 30 cm. Prenos, nakladanje in odvoz na trajno deponijo s plačilom takse.","kos",{"v":1,"d":"1.00"},null,{"$f":"D39*E39","v":{"v":0,"d":"0.00"}}]
[null," - za inštalacijo klime","kos",{"v":1,"d":"1.00"},null,{"$f":"D40*E40","v":{"v":0,"d":"0.00"}}]
[]
["A3.","ZIDARSKA DELA"]
[]
["17.","Dozidava stene ob vhodnih vratih s siporex bloki debeline 15 cm, zob 22 cm višina 3m s sidranjem v obstoječ zid","m2",0.66,null,{"$f":"D44*E44","v":{"v":0,"d":"0.00"}}]
[]
["18.","Izdelava izravnave špalet vratne odprtine po odstranitvi vrat širine 30 cm","m1",{"v":5.4,"d":"5.40"},null,{"$f":"D46*E46","v":{"v":0,"d":"0.00"}}]
[]
["19.","Obzidava instalacij na prehodu skozi zid in tla ter  krpanje ometov","kos",{"v":1,"d":"1.00"},null,{"$f":"D48*E48","v":{"v":0,"d":"0.00"}}]
[null," - za inštalacijo klime","kos",{"v":1,"d":"1.00"},null,{"$f":"D49*E49","v":{"v":0,"d":"0.00"}}]
[]
["20.","Obzidava instalacij vodovoda v zidu  ter  krpanje ometov","kos",{"v":1,"d":"1.00"},null,{"$f":"D51*E51","v":{"v":0,"d":"0.00"}}]
[]
["21.","Krpanje utorov v zidovih, za razvod instalacij, preseka do 6x6 cm","m1",{"v":20,"d":"20.00"},null,{"$f":"D53*E53","v":{"v":0,"d":"0.00"}}]
[]
["22.","Krpanje utorov v stropu, za razvod instalacij, preseka do 6x6 cm","m1",{"v":8,"d":"8.00"},null,{"$f":"D55*E55","v":{"v":0,"d":"0.00"}}]
[]
["23.","Krpanje utorov v zidovih, za razvod instalacij, preseka do 15x12 cm","m1",{"v":4,"d":"4.00"},null,{"$f":"D57*E57","v":{"v":0,"d":"0.00"}}]
[null," - za inštalacijo klime","m1",{"v":6,"d":"6.00"},null,{"$f":"D58*E58","v":{"v":0,"d":"0.00"}}]
[]
["24.","Krpanje utorov v stropu, za razvod instalacij, preseka do 15x6 cm","m1",{"v":10,"d":"10.00"},null,{"$f":"D60*E60","v":{"v":0,"d":"0.00"}}]
[]
["25.","Izdelava plavajočega mikroarmiranega betonskega estriha deb.6 cm, PE folija, 8 cm TI, z dodatkom za hitro sušenje - 14 dni","m2",{"v":32.6,"d":"32.60"},null,{"$f":"D62*E62","v":{"v":0,"d":"0.00"}}]
[]
["26.","Razna manjša in nepredvidena dela, pomoč obrnikom in instalaterjem. Z naročilom in potrditvijo s strani nadzora in gradbenem dnevniku","ur",{"v":5,"d":"5.00"},null,{"$f":"D64*E64","v":{"v":0,"d":"0.00"}}]
[]
[null,"Skupaj gradbena dela :",{"$nulls":3},{"$f":"SUM(F6:F65)","v":{"v":0,"d":"0.00"}}]
[]
[]
["B.","OBRTNIŠKA DELA"]
[]
["B1.","MAVČNOKARTONSKA DELA"]
[]
["1.","Izdelava vertikalne škatle za pokritje inštalacij plina  dimenzije 30x60 cm iz 1x mavčne plošče debeline 1,25 cm, s podkonstrukcijo, skupaj z bandažiranjem","m1",{"v":3,"d":"3.00"},null,{"$f":"D73*E73","v":{"v":0,"d":"0.00"}}]
[]
["B2.","STAVBNO POHIŠTVO"]
[]
["2.","Izdelava, dobava in montaža novih vrat VhN po shemi projektanta dimenzije 101 x 260 skupaj s podbojem. ","kos",{"v":1,"d":"1.00"},null,{"$f":"D77*E77","v":{"v":0,"d":"0.00"}}]
[]
["3.","Dobava in montaža notranje okenske police šir 20 cm, bele barve umetni kamen dolžine 2,1 m","kos",{"v":2,"d":"2.00"},null,{"$f":"D79*E79","v":{"v":0,"d":"0.00"}}]
[]
["4.","Po potrebi servis zunanjih senčil, ","kos",{"v":3,"d":"3.00"},null,{"$f":"D81*E81","v":{"v":0,"d":"0.00"}}]
[]
[]
["B3.","SLIKOPLESKARSKA DELA"]
[]
["5.","Delno struganje površine, nanos emulzije, kitanje, brušenje in pleskanje sten in stebrov z poldisperzijsko belo barvo ","m2",58.18,null,{"$f":"D86*E86","v":{"v":0,"d":"0.00"}}]
[]
["6.","Kitanje, brušenje in pleskanje  stropov s poldisperzijsko belo barvo  ","m2",{"v":32.6,"d":"32.60"},null,{"$f":"D88*E88","v":{"v":0,"d":"0.00"}}]
[]
["7.","Dobava in vgradnja alu vogalnikov","m1",{"v":9,"d":"9.00"},null,{"$f":"D90*E90","v":{"v":0,"d":"0.00"}}]
[]
["8.","Brušenje, grundiranje in lakiranje kovinske balkonske ograje z belim lakom","m2",{"v":8.7,"d":"8.70"},null,{"$f":"D92*E92","v":{"v":0,"d":"0.00"}}]
[]
["9.","Zaščita prostora in elementov med deli","kpl",{"v":1,"d":"1.00"},null,{"$f":"D94*E94","v":{"v":0,"d":"0.00"}}]
[]
[]
["B4.","PODOPOLAGALSKA DELA"]
[]
["10.","Dobava in polaganje izgotovljenega parketa, debeline 15 mm, širine 8 cm, hrast natur, lakiran, s predhodno izvedbo izravnalne mase, z upasovanjem ob talnih dozah 2x. Po potrjenem vzorcu s strani arhitektke.","m2",{"v":32.6,"d":"32.60"},null,{"$f":"D99*E99","v":{"v":0,"d":"0.00"}}]
[]
["11.","Dobava in montaža nizkih lesenih stenskih letvic, hrast lakirano.","m1",{"v":21,"d":"21.00"},null,{"$f":"D101*E101","v":{"v":0,"d":"0.00"}}]
[]
["12.","Dobava in montaža alu profila pri stiku tlakov na vhodu v prostor cca 110 cm","kos",{"v":1,"d":"1.00"},null,{"$f":"D103*E103","v":{"v":0,"d":"0.00"}}]
[]
["13.","Izvedba nedrsečega epoksi zunanjega tlaka na balkonu na obstoječ teraco s predhodno izravnavo ","m2",{"v":6.9,"d":"6.90"},null,{"$f":"D105*E105","v":{"v":0,"d":"0.00"}}]
[]
[null,"Skupaj obrtniška dela :",{"$nulls":3},{"$f":"SUM(F73:F106)","v":{"v":0,"d":"0.00"}}]
[]
[]
["C.","INSTALACIJSKA DELA"]
[]
["C1.","STROJNE INSTALACIJE"]
[]
["1.","Dobava in montaža nove split klimatske naprave v prostoru in na fasadi","kpl",{"v":1,"d":"1.00"},null,{"$f":"D114*E114","v":{"v":0,"d":"0.00"}}]
[]
["2.","Inštalacija za klimatsko napravo podometno","m1",{"v":6,"d":"6.00"},null,{"$f":"D116*E116","v":{"v":0,"d":"0.00"}}]
[]
["4.","Prestavitev obstoječe podometne vodovodne inštalacije 1/2 ¨ (hladna voda) stenske izvedbe izlivne armature  pod pult za nov priključek korita, kompletno s fazonskimi kosi, tesnili in ventili","kpl",{"v":1,"d":"1.00"},null,{"$f":"D118*E118","v":{"v":0,"d":"0.00"}}]
[]
["6.","Dobava in montaža popdpultnega grelnika vode ter umivalniške izlivne  armature in odtočnega sifona.","kpl",{"v":1,"d":"1.00"},null,{"$f":"D120*E120","v":{"v":0,"d":"0.00"}}]
[]
["7.","Odrez  cevi plinske inštalacije fi 21 in začepitev","kom",{"v":1,"d":"1.00"},null,{"$f":"D122*E122","v":{"v":0,"d":"0.00"}}]
[]
["8.","Podometna predelava inštalacije centralne kurjave po ukinitvi radiatorja na steni levo gledano od vhoda ","kpl",{"v":1,"d":"1.00"},null,{"$f":"D124*E124","v":{"v":0,"d":"0.00"}}]
[]
["9.","Izdelava nove podometne inštalacije 7 m1 za priklop radiatorjev od obstoječega mesta radiatorja na desni steni gledano z vhoda, priprava za sredinski priklop radiatorjev","kpl",{"v":1,"d":"1.00"},null,{"$f":"D126*E126","v":{"v":0,"d":"0.00"}}]
[]
["10.","Dobava in montaža radiatorja velikosti 160/50/22 sredinski priklop komplet z ventili, montažo termostatske glave in z nosilci radiatorjev. ","kos",{"v":2,"d":"2.00"},null,{"$f":"D128*E128","v":{"v":0,"d":"0.00"}}]
[]
[null,"Skupaj strojne inštalacije :",{"$nulls":3},{"$f":"SUM(F114:F129)","v":{"v":0,"d":"0.00"}}]
[]
["D.","OSTALO"]
[]
["D1.","ČIŠČENJE"]
[]
["1.","Čiščenje prostorov po končanih delih - vse površine, elementi oprema.","m2",{"v":32.6,"d":"32.60"},null,{"$f":"D136*E136","v":{"v":0,"d":"0.00"}}]
[]
["2.","Čiščenje oken, steklenih površin","m2",{"v":28.2,"d":"28.20"},null,{"$f":"D138*E138","v":{"v":0,"d":"0.00"}}]
[]
[null,"Skupaj čiščenje:",{"$nulls":3},{"$f":"SUM(F136:F139)","v":{"v":0,"d":"0.00"}}]

{"sheet":"E6-58","index":14,"n_rows":125,"n_cols":6,"rows_kept":125}
[null,null,"m.e.","količina ","cena na enoto","znesek"]
["A.","GRADBENA DELA"]
[]
["A1.","PRIPRAVLJALNA DELA"]
[]
["1.","Izpraznitev prostorov (kar ni zajeto v postavkah v nadaljevanju), z odvozom. Priprava in ureditev gradbišča z ureditvijo gradbiščnih priključkov, vsakodnevno čiščenje skupnih prostorov in stopnišč, izvedba fizičnih zapor za preprečitev dostopa do gradbišča, postavitev gradbiščnih vrat, gradbiščne table in opozorilnih oznak, premični odri za izvajanje del ter druga pripravljalna in zaključna dela. V ceni zajeti tudi stroške deponije, prevozov in parkirnin glede na lokacijo objekta. V ceni zajeti tudi odstranitev vsega po zaključku del.","v skupnih delih",{"v":1,"d":"1.00"},null,{"$f":"D6*E6","v":{"v":0,"d":"0.00"}}]
[]
["A2.","RUŠITVENA DELA"]
[]
["2.","Demontaža vhodnih vrat velikosti 90x260 z nadsvetlobo, z izbijanjem podboja in odstranitvijo vseh elementov. Prenos, nakladanje in odvoz na trajno deponijo s plačilom takse.","kos",{"v":1,"d":"1.00"},null,{"$f":"D10*E10","v":{"v":0,"d":"0.00"}}]
[]
["3.","Demontaža notranjih vrat velikosti 90 x 200 cm, z izbijanjem podboja in odstranitvijo vseh elementov. Prenos, nakladanje in odvoz na trajno deponijo s plačilom takse.","kpl",{"v":1,"d":"1.00"},null,{"$f":"D12*E12","v":{"v":0,"d":"0.00"}}]
[]
["4.","Odstranitev elektro instalacij, vsa nadometna napeljava, parapetni kanali 46 m1, NIK kanali ozki 13 m1, 4x stropne svetilke, komunikacijska omarica 60x60x40, vsa stikala in vtičnice ter ostali razvod. Prenos, nakladanje in odvoz na trajno deponijo s plačilom takse.","kpl",{"v":1,"d":"1.00"},null,{"$f":"D14*E14","v":{"v":0,"d":"0.00"}}]
[]
["5.","Odstranitev notranjih in zunanjih enot klime z razvodom. Prenos, nakladanje in odvoz na trajno deponijo s plačilom takse.","kos",{"v":2,"d":"2.00"},null,{"$f":"D16*E16","v":{"v":0,"d":"0.00"}}]
[]
["6.","Odstranitev radiatorjev z vsemi elementi. Prenos, nakladanje in odvoz na trajno deponijo s plačilom takse.","kos",{"v":2,"d":"2.00"},null,{"$f":"D18*E18","v":{"v":0,"d":"0.00"}}]
[]
["7.","Demontaža karnis nad okni. Prenos, nakladanje in odvoz na trajno deponijo s plačilom takse.","kos",{"v":2,"d":"2.00"},null,{"$f":"D20*E20","v":{"v":0,"d":"0.00"}}]
[]
["8.","Rušenje lesenih montažnih sten s podkonstrukcijo debeline 10 cm. Prenos, nakladanje in odvoz na trajno deponijo s plačilom takse.  ","m2",{"v":18,"d":"18.00"},null,{"$f":"D22*E22","v":{"v":0,"d":"0.00"}}]
[]
["9.","Rušenje nosilnih zidov za novo vratno odprtino in preklado, debeline 30 cm z vsemi oblogami, AB vezmi in vgrajenimi elementi. Prenos, nakladanje in odvoz na trajno deponijo s plačilom takse.","m3",{"v":1,"d":"1.00"},null,{"$f":"D24*E24","v":{"v":0,"d":"0.00"}}]
[]
["10.","Dolbljenje  utorov v zidovih, za razvod instalacij, preseka do 6x6 cm, prenos, nalaganje, z odvozom ruševin na trajno deponijo s plačilom takse.","m1",{"v":20,"d":"20.00"},null,{"$f":"D26*E26","v":{"v":0,"d":"0.00"}}]
[]
["11.","Dolbljenje utorov v stropu, za razvod instalacij, preseka do 6x6 cm, prenos, nalaganje, z odvozom ruševin na trajno deponijo s plačilom takse.","m1",{"v":10,"d":"10.00"},null,{"$f":"D28*E28","v":{"v":0,"d":"0.00"}}]
[]
["12.","Dolbljenje  v zidovih, za razvod instalacij, preseka do 15x12 cm, prenos, nalaganje, z odvozom ruševin na trajno deponijo s plačilom takse.","m1",{"v":2,"d":"2.00"},null,{"$f":"D30*E30","v":{"v":0,"d":"0.00"}}]
[null," - za inštalacijo klime","m1",{"v":8,"d":"8.00"},null,{"$f":"D31*E31","v":{"v":0,"d":"0.00"}}]
[]
["13.","Dolbljenje  v stropu, za razvod instalacij, preseka do 15x6 cm, prenos, nalaganje, z odvozom ruševin na trajno deponijo s plačilom takse.","m1",{"v":10,"d":"10.00"},null,{"$f":"D33*E33","v":{"v":0,"d":"0.00"}}]
[]
["14.","Izdelava preboja velikosti fi 12 cm v zidu debeline 30 cm. Prenos, nakladanje in odvoz na trajno deponijo s plačilom takse.","kos",{"v":1,"d":"1.00"},null,{"$f":"D35*E35","v":{"v":0,"d":"0.00"}}]
[]
[]
["A3.","ZIDARSKA DELA"]
[]
["17.","Izdelava AB preklade nad novo vratno odprtino. Velikoti 160x30x20 cm, s pripravo ležišč, opažem, armaturo in betoniranjem","kos",{"v":1,"d":"1.00"},null,{"$f":"D40*E40","v":{"v":0,"d":"0.00"}}]
[]
["18.","Nadzidava nad preklado do stropa s siporex bloki deb 30 cm višine 15 cm širine 100 cm  ","kpl",{"v":1,"d":"1.00"},null,{"$f":"D42*E42","v":{"v":0,"d":"0.00"}}]
[]
["19.","Krpanje stenskih ometov preklade in nadzidave nad vrati  obojestransko, grobi in fini omet","m2",0.88,null,{"$f":"D44*E44","v":{"v":0,"d":"0.00"}}]
[]
["20.","Izdelava izravnave špalet vratne odprtine po rušitvi odprtine za vrata širine 30 cm","m1",{"v":5.4,"d":"5.40"},null,{"$f":"D46*E46","v":{"v":0,"d":"0.00"}}]
[]
["21.","Krpanje utorov v zidovih, za razvod instalacij, preseka do 6x6 cm","m1",{"v":20,"d":"20.00"},null,{"$f":"D48*E48","v":{"v":0,"d":"0.00"}}]
[]
["22.","Krpanje utorov v stropu, za razvod instalacij, preseka do 6x6 cm","m1",{"v":15,"d":"15.00"},null,{"$f":"D50*E50","v":{"v":0,"d":"0.00"}}]
[]
["23.","Krpanje utorov v zidovih, za razvod instalacij, preseka do 15x12 cm","m1",{"v":2,"d":"2.00"},null,{"$f":"D52*E52","v":{"v":0,"d":"0.00"}}]
[null," - za inštalacijo klime","m1",{"v":8,"d":"8.00"},null,{"$f":"D53*E53","v":{"v":0,"d":"0.00"}}]
[]
["24.","Krpanje utorov v stropu, za razvod instalacij, preseka do 15x6 cm","m1",{"v":10,"d":"10.00"},null,{"$f":"D55*E55","v":{"v":0,"d":"0.00"}}]
[]
["25.","Razna manjša in nepredvidena dela, pomoč obrnikom in instalaterjem. Z naročilom in potrditvijo s strani nadzora in gradbenem dnevniku","ur",{"v":5,"d":"5.00"},null,{"$f":"D57*E57","v":{"v":0,"d":"0.00"}}]
[]
[null,"Skupaj gradbena dela :",{"$nulls":3},{"$f":"SUM(F6:F58)","v":{"v":0,"d":"0.00"}}]
[]
[]
["B.","OBRTNIŠKA DELA"]
[]
["B1.","MAVČNOKARTONSKA DELA"]
[]
["1.","Dobava in izdelava knauf stene W116 s s podkonstrukcijo, stena debeline 16 cm z bandažiranjem.","m2",{"v":17.9,"d":"17.90"},null,{"$f":"D66*E66","v":{"v":0,"d":"0.00"}}]
[]
["B2.","STAVBNO POHIŠTVO"]
[]
["2.","Izdelava, dobava in montaža novih vrat VhN po shemi projektanta dimenzije 101 x 260 skupaj s podbojem. ","kos",{"v":2,"d":"2.00"},null,{"$f":"D70*E70","v":{"v":0,"d":"0.00"}}]
[]
["3.","Po potrebi servis zunanjih senčil, ","kos",{"v":2,"d":"2.00"},null,{"$f":"D72*E72","v":{"v":0,"d":"0.00"}}]
[]
[]
["B3.","SLIKOPLESKARSKA DELA"]
[]
["4.","Delno struganje površine, nanos emulzije, kitanje, brušenje in pleskanje sten in stebrov z poldisperzijsko belo barvo ","m2",{"v":73.8,"d":"73.80"},null,{"$f":"D77*E77","v":{"v":0,"d":"0.00"}}]
[]
["5.","Kitanje, brušenje in pleskanje mavčnih sten s poldisperzijsko barvo po izboru arhitektke, s kitanjem in silikoniranjem ","m2",{"v":35.7,"d":"35.70"},null,{"$f":"D79*E79","v":{"v":0,"d":"0.00"}}]
[]
["6.","Kitanje, brušenje in pleskanje  stropov s poldisperzijsko belo barvo  ","m2",{"v":37.7,"d":"37.70"},null,{"$f":"D81*E81","v":{"v":0,"d":"0.00"}}]
[]
["7.","Dobava in vgradnja alu vogalnikov","m1",{"v":6,"d":"6.00"},null,{"$f":"D83*E83","v":{"v":0,"d":"0.00"}}]
[]
["8.","Zaščita prostora in elementov med deli","kpl",{"v":1,"d":"1.00"},null,{"$f":"D85*E85","v":{"v":0,"d":"0.00"}}]
[]
["B4.","TERACERSKA DELA"]
[]
["9.","Čiščenje in brušenje površine in premaz notranje okenske police in špalete iz umetnega kamna s predhodno zaščito obstoječega okna","m2",{"v":6.6,"d":"6.60"},null,{"$f":"D89*E89","v":{"v":0,"d":"0.00"}}]
[]
["B5.","PODOPOLAGALSKA DELA"]
[]
["10.","Dobava in polaganje izgotovljenega parketa, debeline 15 mm, širine 8 cm, hrast natur, lakiran, z leplenjem na obstoječ klasični parket. Po potrjenem vzorcu s strani arhitektke.","m2",{"v":37.7,"d":"37.70"},null,{"$f":"D93*E93","v":{"v":0,"d":"0.00"}}]
[]
["11.","Dobava in montaža nizkih lesenih stenskih letvic, hrast lakirano.","m1",{"v":36.5,"d":"36.50"},null,{"$f":"D95*E95","v":{"v":0,"d":"0.00"}}]
[]
["12.","Dobava in montaža alu profila pri stiku tlakov na vhodu v prostor cca 110 cm","kos",{"v":2,"d":"2.00"},null,{"$f":"D97*E97","v":{"v":0,"d":"0.00"}}]
[]
[null,"Skupaj obrtniška dela :",{"$nulls":3},{"$f":"SUM(F66:F98)","v":{"v":0,"d":"0.00"}}]
[]
[]
["C.","INSTALACIJSKA DELA"]
[]
["C1.","STROJNE INSTALACIJE"]
[]
["1.","Dobava in montaža nove split klimatske naprave dvojček v prostoru in na fasadi","kpl",{"v":1,"d":"1.00"},null,{"$f":"D106*E106","v":{"v":0,"d":"0.00"}}]
[]
["2.","Inštalacija za klimatsko napravo podometno","m1",{"v":8,"d":"8.00"},null,{"$f":"D108*E108","v":{"v":0,"d":"0.00"}}]
[]
["3.","Predelava priključka radiatorja in napeljava inštalacije podometno v dolžini cca 1m na sredino radiatorja. ","kpl",{"v":2,"d":"2.00"},null,{"$f":"D110*E110","v":{"v":0,"d":"0.00"}}]
[]
["4.","Dobava in montaža radiatorja velikosti 140/60/22 sredinski priklop komplet z ventili, montažo termostatske glave in z nosilci radiatorjev. ","kos",{"v":2,"d":"2.00"},null,{"$f":"D112*E112","v":{"v":0,"d":"0.00"}}]
[]
[null,"Skupaj strojne inštalacije :",{"$nulls":3},{"$f":"SUM(F106:F113)","v":{"v":0,"d":"0.00"}}]
[]
[]
["D.","OSTALO"]
[]
["D1.","ČIŠČENJE"]
[]
["1.","Čiščenje prostorov po končanih delih - vse površine, elementi oprema.","m2",{"v":37.7,"d":"37.70"},null,{"$f":"D121*E121","v":{"v":0,"d":"0.00"}}]
[]
["2.","Čiščenje oken, steklenih površin","m2",{"v":17.9,"d":"17.90"},null,{"$f":"D123*E123","v":{"v":0,"d":"0.00"}}]
[]
[null,"Skupaj čiščenje:",{"$nulls":3},{"$f":"SUM(F121:F124)","v":{"v":0,"d":"0.00"}}]

{"sheet":"E3-59","index":15,"n_rows":99,"n_cols":6,"rows_kept":99}
[null,null,"m.e.","količina ","cena na enoto","znesek"]
["A.","GRADBENA DELA"]
[]
["A1.","PRIPRAVLJALNA DELA"]
[]
["1.","Izpraznitev prostorov (kar ni zajeto v postavkah v nadaljevanju), z odvozom. Priprava in ureditev gradbišča z ureditvijo gradbiščnih priključkov, vsakodnevno čiščenje skupnih prostorov in stopnišč, izvedba fizičnih zapor za preprečitev dostopa do gradbišča, postavitev gradbiščnih vrat, gradbiščne table in opozorilnih oznak, premični odri za izvajanje del ter druga pripravljalna in zaključna dela. V ceni zajeti tudi stroške deponije, prevozov in parkirnin glede na lokacijo objekta. V ceni zajeti tudi odstranitev vsega po zaključku del.","zajeto v skupnih delih",{"v":1,"d":"1.00"},null,{"$f":"D6*E6","v":{"v":0,"d":"0.00"}}]
[]
["A2.","RUŠITVENA DELA"]
[]
["2.","Demontaža vhodnih vrat velikosti 90x260 z nadsvetlobo, z izbijanjem podboja in odstranitvijo vseh elementov. Prenos, nakladanje in odvoz na trajno deponijo s plačilom takse.","kos",{"v":1,"d":"1.00"},null,{"$f":"D10*E10","v":{"v":0,"d":"0.00"}}]
[]
["3.","Odstranitev elektro instalacij, vsa nadometna napeljava, 2x stropne svetilke,  vsa stikala in vtičnice ter ostali razvod. Prenos, nakladanje in odvoz na trajno deponijo s plačilom takse.","kpl",{"v":1,"d":"1.00"},null,{"$f":"D12*E12","v":{"v":0,"d":"0.00"}}]
[]
["4.","Demontaža klime s shranjevanjem plina notranje enote klime (se skladišči za kasnejšo uporabo). Demontaža razvoda inštalacije do zunanje enote. Prenos, nakladanje in odvoz na trajno deponijo s plačilom takse.","kos",{"v":1,"d":"1.00"},null,{"$f":"D14*E14","v":{"v":0,"d":"0.00"}}]
[]
["5.","Dolbljenje  utorov v zidovih, za razvod instalacij, preseka do 6x6 cm, prenos, nalaganje, z odvozom ruševin na trajno deponijo s plačilom takse.","m1",{"v":10,"d":"10.00"},null,{"$f":"D16*E16","v":{"v":0,"d":"0.00"}}]
[]
["6.","Dolbljenje utorov v stropu, za razvod instalacij, preseka do 6x6 cm, prenos, nalaganje, z odvozom ruševin na trajno deponijo s plačilom takse.","m1",{"v":6,"d":"6.00"},null,{"$f":"D18*E18","v":{"v":0,"d":"0.00"}}]
[]
["7.","Dolbljenje  v zidovih, za razvod instalacij, preseka do 15x12 cm, prenos, nalaganje, z odvozom ruševin na trajno deponijo s plačilom takse.","m1",{"v":2,"d":"2.00"},null,{"$f":"D20*E20","v":{"v":0,"d":"0.00"}}]
[null," - za inštalacijo klime","m1",{"v":4,"d":"4.00"},null,{"$f":"D21*E21","v":{"v":0,"d":"0.00"}}]
[]
["8.","Dolbljenje  v stropu, za razvod instalacij, preseka do 15x6 cm, prenos, nalaganje, z odvozom ruševin na trajno deponijo s plačilom takse.","m1",{"v":2,"d":"2.00"},null,{"$f":"D23*E23","v":{"v":0,"d":"0.00"}}]
[]
["9.","Izdelava preboja velikosti fi 12 cm v zidu debeline 30 cm. Prenos, nakladanje in odvoz na trajno deponijo s plačilom takse.","kos",{"v":1,"d":"1.00"},null,{"$f":"D25*E25","v":{"v":0,"d":"0.00"}}]
[null," - za inštalacijo klime","kos",{"v":1,"d":"1.00"},null,{"$f":"D26*E26","v":{"v":0,"d":"0.00"}}]
[]
["A3.","ZIDARSKA DELA"]
[]
["10.","Krpanje utorov v zidovih, za razvod instalacij, preseka do 6x6 cm","m1",{"v":10,"d":"10.00"},null,{"$f":"D30*E30","v":{"v":0,"d":"0.00"}}]
[]
["11.","Krpanje utorov v stropu, za razvod instalacij, preseka do 6x6 cm","m1",{"v":6,"d":"6.00"},null,{"$f":"D32*E32","v":{"v":0,"d":"0.00"}}]
[]
["12.","Krpanje utorov v zidovih, za razvod instalacij, preseka do 15x12 cm","m1",{"v":2,"d":"2.00"},null,{"$f":"D34*E34","v":{"v":0,"d":"0.00"}}]
[null," - za inštalacijo klime","m1",{"v":4,"d":"4.00"},null,{"$f":"D35*E35","v":{"v":0,"d":"0.00"}}]
[]
["13.","Krpanje utorov v stropu, za razvod instalacij, preseka do 15x6 cm","m1",{"v":10,"d":"10.00"},null,{"$f":"D37*E37","v":{"v":0,"d":"0.00"}}]
[]
["14.","Obzidava instalacij na prehodu skozi zid in tla ter  krpanje ometov","kos",{"v":1,"d":"1.00"},null,{"$f":"D39*E39","v":{"v":0,"d":"0.00"}}]
[null," - za inštalacijo klime","kos",{"v":1,"d":"1.00"},null,{"$f":"D40*E40","v":{"v":0,"d":"0.00"}}]
[]
["15.","Razna manjša in nepredvidena dela, pomoč obrnikom in instalaterjem. Z naročilom in potrditvijo s strani nadzora in gradbenem dnevniku","ur",{"v":2,"d":"2.00"},null,{"$f":"D42*E42","v":{"v":0,"d":"0.00"}}]
[]
[null,"Skupaj gradbena dela :",{"$nulls":3},{"$f":"SUM(F6:F43)","v":{"v":0,"d":"0.00"}}]
[]
[]
["B.","OBRTNIŠKA DELA"]
[]
["B1.","STAVBNO POHIŠTVO"]
[]
["1.","Izdelava, dobava in montaža novih vrat VhN po shemi projektanta dimenzije 101x260 skupaj s podbojem. ","kos",{"v":1,"d":"1.00"},null,{"$f":"D51*E51","v":{"v":0,"d":"0.00"}}]
[]
["2.","Po potrebi servis zunanjih senčil, ","kos",{"v":1,"d":"1.00"},null,{"$f":"D53*E53","v":{"v":0,"d":"0.00"}}]
[]
["B2.","SLIKOPLESKARSKA DELA"]
[]
["3.","Delno struganje površine, nanos emulzije, kitanje, brušenje in pleskanje sten in stebrov z poldisperzijsko belo barvo ","m2",{"v":53.1,"d":"53.10"},null,{"$f":"D57*E57","v":{"v":0,"d":"0.00"}}]
[]
["4.","Kitanje, brušenje in pleskanje  stropov s poldisperzijsko belo barvo  ","m2",{"v":17.3,"d":"17.30"},null,{"$f":"D59*E59","v":{"v":0,"d":"0.00"}}]
[]
["5.","Zaščita prostora in elementov med deli","kpl",{"v":1,"d":"1.00"},null,{"$f":"D61*E61","v":{"v":0,"d":"0.00"}}]
[]
["B3.","TERACERSKA DELA"]
[]
["6.","Čiščenje in brušenje površine in premaz notranje okenske police in špalete iz umetnega kamna s predhodno zaščito obstoječega okna","m2",{"v":3.3,"d":"3.30"},null,{"$f":"D65*E65","v":{"v":0,"d":"0.00"}}]
[]
["B5.","PODOPOLAGALSKA DELA"]
[]
["10.","Popravilo, kitanje, brušenje in lakiranje obstoječega parketa s kvalitetnim lakom ","m2",{"v":17.3,"d":"17.30"},null,{"$f":"D69*E69","v":{"v":0,"d":"0.00"}}]
[]
["11.","Dobava in montaža nizkih lesenih stenskih letvic, hrast lakirano.","m1",{"v":17.7,"d":"17.70"},null,{"$f":"D71*E71","v":{"v":0,"d":"0.00"}}]
[]
["12.","Dobava in montaža alu profila pri stiku tlakov na vhodu v prostor cca 110 cm","kos",{"v":1,"d":"1.00"},null,{"$f":"D73*E73","v":{"v":0,"d":"0.00"}}]
[]
[null,"Skupaj obrtniška dela :",{"$nulls":3},{"$f":"SUM(F51:F74)","v":{"v":0,"d":"0.00"}}]
[]
[]
["C.","INSTALACIJSKA DELA"]
[]
["C1.","STROJNE INSTALACIJE"]
[]
["1.","Montaža obstoječe notranje enote klimatske naprave","kpl",{"v":1,"d":"1.00"},null,{"$f":"D82*E82","v":{"v":0,"d":"0.00"}}]
[]
["2.","Inštalacija za klimatsko napravo podometno","m1",{"v":4,"d":"4.00"},null,{"$f":"D84*E84","v":{"v":0,"d":"0.00"}}]
[]
["4.","Demontaža ltž radiatorja in obstoječih ventilov, čiščenje radiatorja in ponovna montaža z dobavo in montažo novih ventilov ter termostatske glave ","kpl",{"v":1,"d":"1.00"},null,{"$f":"D86*E86","v":{"v":0,"d":"0.00"}}]
[]
[null,"Skupaj strojne inštalacije :",{"$nulls":3},{"$f":"SUM(F82:F87)","v":{"v":0,"d":"0.00"}}]
[]
[]
["D.","OSTALO"]
[]
["D1.","ČIŠČENJE"]
[]
["1.","Čiščenje prostorov po končanih delih - vse površine, elementi oprema.","m2",{"v":17.3,"d":"17.30"},null,{"$f":"D95*E95","v":{"v":0,"d":"0.00"}}]
[]
["2.","Čiščenje oken, steklenih površin","m2",{"v":8.9,"d":"8.90"},null,{"$f":"D97*E97","v":{"v":0,"d":"0.00"}}]
[]
[null,"Skupaj čiščenje:",{"$nulls":3},{"$f":"SUM(F95:F98)","v":{"v":0,"d":"0.00"}}]

{"sheet":"E3-60, 61","index":16,"n_rows":119,"n_cols":6,"rows_kept":119}
[null,null,"m.e.","količina ","cena na enoto","znesek"]
["A.","GRADBENA DELA"]
[]
["A1.","PRIPRAVLJALNA DELA"]
[]
["1.","Izpraznitev prostorov (kar ni zajeto v postavkah v nadaljevanju), z odvozom. Priprava in ureditev gradbišča z ureditvijo gradbiščnih priključkov, vsakodnevno čiščenje skupnih prostorov in stopnišč, izvedba fizičnih zapor za preprečitev dostopa do gradbišča, postavitev gradbiščnih vrat, gradbiščne table in opozorilnih oznak, premični odri za izvajanje del ter druga pripravljalna in zaključna dela. V ceni zajeti tudi stroške deponije, prevozov in parkirnin glede na lokacijo objekta. V ceni zajeti tudi odstranitev vsega po zaključku del.","zajeto v skupnih delih",{"v":1,"d":"1.00"},null,{"$f":"D6*E6","v":{"v":0,"d":"0.00"}}]
[]
["A2.","RUŠITVENA DELA"]
[]
["2.","Demontaža vhodnih vrat velikosti 90x260 z nadsvetlobo, z izbijanjem podboja in odstranitvijo vseh elementov. Prenos, nakladanje in odvoz na trajno deponijo s plačilom takse.","kos",{"v":2,"d":"2.00"},null,{"$f":"D10*E10","v":{"v":0,"d":"0.00"}}]
[]
["3.","Odstranitev elektro instalacij, vsa nadometna napeljava, PK kanali 18,5 m1,NIK kanali 28 m1, 4x stropne svetilke, 2 kom ventilator v oknu,2 kom komunikacijska omarica, vsa stikala in vtičnice ter ostali razvod. Prenos, nakladanje in odvoz na trajno deponijo s plačilom takse.","kpl",{"v":1,"d":"1.00"},null,{"$f":"D12*E12","v":{"v":0,"d":"0.00"}}]
[]
["4.","Demontaža in odstranitev pohištva: 6 kom pisarniške mize, 2 kom omara velikosti 200 x 80 x 40 cm, 19 kom viseče omare 60x80x30, 4 kom omare 150x80x40, 9 kom predalniki pod mizo, stenski elementi - obloga višine 60 cm 9,5 m1 . Prenos, nakladanje in odvoz na trajno deponijo s plačilom takse.","kpl",{"v":1,"d":"1.00"},null,{"$f":"D14*E14","v":{"v":0,"d":"0.00"}}]
[]
["5.","Kartonska in stiroporna embalaža. Prenos, nakladanje in odvoz na trajno deponijo s plačilom takse.","m3",{"v":2,"d":"2.00"},null,{"$f":"D16*E16","v":{"v":0,"d":"0.00"}}]
[]
["6.","Odstranitev notranjih in zunanjih enot klime z razvodom. Prenos, nakladanje in odvoz na trajno deponijo s plačilom takse.","kos",{"v":1,"d":"1.00"},null,{"$f":"D18*E18","v":{"v":0,"d":"0.00"}}]
[]
["7.","Demontaža klime s shranjevanjem plina notranje enote klime (se skladišči za kasnejšo uporabo). Demontaža razvoda inštalacije do zunanje enote. Prenos, nakladanje in odvoz na trajno deponijo s plačilom takse.","kos",{"v":1,"d":"1.00"},null,{"$f":"D20*E20","v":{"v":0,"d":"0.00"}}]
[]
["8.","Rušenje zidane stene debeline 15 cm. Prenos, nakladanje in odvoz na trajno deponijo s plačilom takse.","m3",2.68,null,{"$f":"D22*E22","v":{"v":0,"d":"0.00"}}]
[]
["9.","Dolbljenje  utorov v zidovih, za razvod instalacij, preseka do 6x6 cm, prenos, nalaganje, z odvozom ruševin na trajno deponijo s plačilom takse.","m1",{"v":15,"d":"15.00"},null,{"$f":"D24*E24","v":{"v":0,"d":"0.00"}}]
[]
["10.","Dolbljenje utorov v stropu, za razvod instalacij, preseka do 6x6 cm, prenos, nalaganje, z odvozom ruševin na trajno deponijo s plačilom takse.","m1",{"v":10,"d":"10.00"},null,{"$f":"D26*E26","v":{"v":0,"d":"0.00"}}]
[]
["11.","Dolbljenje  v zidovih, za razvod instalacij, preseka do 15x12 cm, prenos, nalaganje, z odvozom ruševin na trajno deponijo s plačilom takse.","m1",{"v":4,"d":"4.00"},null,{"$f":"D28*E28","v":{"v":0,"d":"0.00"}}]
[null," - za inštalacijo klime","m1",{"v":8,"d":"8.00"},null,{"$f":"D29*E29","v":{"v":0,"d":"0.00"}}]
[]
["12.","Dolbljenje  v stropu, za razvod instalacij, preseka do 15x6 cm, prenos, nalaganje, z odvozom ruševin na trajno deponijo s plačilom takse.","m1",{"v":10,"d":"10.00"},null,{"$f":"D31*E31","v":{"v":0,"d":"0.00"}}]
[]
["13.","Izdelava preboja velikosti fi 12 cm v zidu debeline 30 cm. Prenos, nakladanje in odvoz na trajno deponijo s plačilom takse.","kos",{"v":2,"d":"2.00"},null,{"$f":"D33*E33","v":{"v":0,"d":"0.00"}}]
[null," - za inštalacijo klime","kos",{"v":1,"d":"1.00"},null,{"$f":"D34*E34","v":{"v":0,"d":"0.00"}}]
[]
["14.","Izrez parketa in odstranitev konstrukcije in nasutja gramoza do talne plošče,  dimenzije 25 x 15 za talne doze po načrtu. Prenos, nakladanje in odvoz na trajno deponijo s plačilom takse.  ","kos",{"v":4,"d":"4.00"},null,{"$f":"D36*E36","v":{"v":0,"d":"0.00"}}]
[]
["A3.","ZIDARSKA DELA"]
[]
["15.","Pozidava opuščene vratne odprtine in okenske odprtine nad vrati v zidu debeline 20 cm, s siporexom  s sidranjem v obstoječi zid","m3",0.75,null,{"$f":"D40*E40","v":{"v":0,"d":"0.00"}}]
[]
["16.","Krpanje utorov v zidovih, na mestu porušenih zidov, pas širine do 20 cm, z uskladitvijo ravnine obstoječih ometov","m1",{"v":6,"d":"6.00"},null,{"$f":"D42*E42","v":{"v":0,"d":"0.00"}}]
[]
["17.","Krpanje utorov v zidovih, za razvod instalacij, preseka do 6x6 cm","m1",{"v":15,"d":"15.00"},null,{"$f":"D44*E44","v":{"v":0,"d":"0.00"}}]
[]
["18.","Krpanje utorov v stropu, za razvod instalacij, preseka do 6x6 cm","m1",{"v":10,"d":"10.00"},null,{"$f":"D46*E46","v":{"v":0,"d":"0.00"}}]
[]
["19.","Krpanje utorov v zidovih, za razvod instalacij, preseka do 15x12 cm","m1",{"v":4,"d":"4.00"},null,{"$f":"D48*E48","v":{"v":0,"d":"0.00"}}]
[null," - za inštalacijo klime","m1",{"v":8,"d":"8.00"},null,{"$f":"D49*E49","v":{"v":0,"d":"0.00"}}]
[]
["20.","Krpanje utorov v stropu, za razvod instalacij, preseka do 15x6 cm","m1",{"v":10,"d":"10.00"},null,{"$f":"D51*E51","v":{"v":0,"d":"0.00"}}]
[]
["21.","Krpanje tal na mestu porušene stene in okoli talnih doz s hitrosušečim estrihom","m1",{"v":6,"d":"6.00"},null,{"$f":"D53*E53","v":{"v":0,"d":"0.00"}}]
[]
["22.","Obzidava instalacij na prehodu skozi zid in tla ter  krpanje ometov","kos",{"v":2,"d":"2.00"},null,{"$f":"D55*E55","v":{"v":0,"d":"0.00"}}]
[null," - za inštalacijo klime","kos",{"v":1,"d":"1.00"},null,{"$f":"D56*E56","v":{"v":0,"d":"0.00"}}]
[]
["23.","Razna manjša in nepredvidena dela, pomoč obrnikom in instalaterjem. Z naročilom in potrditvijo s strani nadzora in gradbenem dnevniku","ur",{"v":5,"d":"5.00"},null,{"$f":"D58*E58","v":{"v":0,"d":"0.00"}}]
[]
[null,"Skupaj gradbena dela :",{"$nulls":3},{"$f":"SUM(F6:F59)","v":{"v":0,"d":"0.00"}}]
[]
[]
["B.","OBRTNIŠKA DELA"]
[]
["B1.","STAVBNO POHIŠTVO"]
[]
["1.","Izdelava, dobava in montaža novih vrat VhN po shemi projektanta dimenzije 101 x 260 skupaj s podbojem. ","kos",{"v":1,"d":"1.00"},null,{"$f":"D67*E67","v":{"v":0,"d":"0.00"}}]
[]
["2.","Dobava in montaža termopan stekla dimenzije 30x30 cm","kos",{"v":2,"d":"2.00"},null,{"$f":"D69*E69","v":{"v":0,"d":"0.00"}}]
[]
["3.","Po potrebi servis zunanjih senčil, ","kos",{"v":2,"d":"2.00"},null,{"$f":"D71*E71","v":{"v":0,"d":"0.00"}}]
[]
["B2.","SLIKOPLESKARSKA DELA"]
[]
["4.","Delno struganje površine, nanos emulzije, kitanje, brušenje in pleskanje sten z poldisperzijsko belo barvo ","m2",72.54,null,{"$f":"D75*E75","v":{"v":0,"d":"0.00"}}]
[]
["5.","Kitanje, brušenje in pleskanje  stropov s poldisperzijsko belo barvo  ","m2",{"v":36.5,"d":"36.50"},null,{"$f":"D77*E77","v":{"v":0,"d":"0.00"}}]
[]
["6.","Zaščita prostora in elementov med deli","kpl",{"v":1,"d":"1.00"},null,{"$f":"D79*E79","v":{"v":0,"d":"0.00"}}]
[]
["B3.","TERACERSKA DELA"]
[]
["7.","Čiščenje in brušenje površine in premaz notranje okenske police in špalete iz umetnega kamna s predhodno zaščito obstoječega okna","m2",{"v":6.6,"d":"6.60"},null,{"$f":"D83*E83","v":{"v":0,"d":"0.00"}}]
[]
["B4.","PODOPOLAGALSKA DELA"]
[]
["8.","Dobava in polaganje izgotovljenega parketa, debeline 15 mm, širine 8 cm, hrast natur, lakiran, s polaganjem na obstoječ klasični parket. Opasovanje pri talnih dozah. Po potrjenem vzorcu s strani arhitektke.","m2",{"v":36.5,"d":"36.50"},null,{"$f":"D87*E87","v":{"v":0,"d":"0.00"}}]
[]
[null,"Po potrebi izenačitev višine tal v enem izmed prostorov cca 20mm!","m2",{"v":18,"d":"18.00"},null,{"$f":"D89*E89","v":{"v":0,"d":"0.00"}}]
[]
["9.","Dobava in montaža nizkih lesenih stenskih letvic, hrast lakirano.","m1",{"v":23,"d":"23.00"},null,{"$f":"D91*E91","v":{"v":0,"d":"0.00"}}]
[]
["10.","Dobava in montaža alu profila pri stiku tlakov na vhodu v prostor cca 110 cm","kos",{"v":2,"d":"2.00"},null,{"$f":"D93*E93","v":{"v":0,"d":"0.00"}}]
[]
[null,"Skupaj obrtniška dela :",{"$nulls":3},{"$f":"SUM(F65:F94)","v":{"v":0,"d":"0.00"}}]
[]
[]
["C.","INSTALACIJSKA DELA"]
[]
["C1.","STROJNE INSTALACIJE"]
[]
["1.","Montaža obstoječe notranje enote klimatske naprave","kpl",{"v":1,"d":"1.00"},null,{"$f":"D102*E102","v":{"v":0,"d":"0.00"}}]
[]
["2.","Inštalacija za klimatsko napravo podometno","m1",{"v":8,"d":"8.00"},null,{"$f":"D104*E104","v":{"v":0,"d":"0.00"}}]
[]
["3.","Demontaža ltž radiatorja in obstoječih ventilov, čiščenje radiatorja in ponovna montaža z dobavo in montažo novih ventilov ter termostatske glave ","kpl",{"v":2,"d":"2.00"},null,{"$f":"D106*E106","v":{"v":0,"d":"0.00"}}]
[]
[null,"Skupaj strojne inštalacije :",{"$nulls":3},{"$f":"SUM(F102:F107)","v":{"v":0,"d":"0.00"}}]
[]
[]
["D.","OSTALO"]
[]
["D1.","ČIŠČENJE"]
[]
["1.","Čiščenje prostorov po končanih delih - vse površine, elementi oprema.","m2",{"v":36.5,"d":"36.50"},null,{"$f":"D115*E115","v":{"v":0,"d":"0.00"}}]
[]
["2.","Čiščenje oken, steklenih površin","m2",{"v":17.9,"d":"17.90"},null,{"$f":"D117*E117","v":{"v":0,"d":"0.00"}}]
[]
[null,"Skupaj čiščenje:",{"$nulls":3},{"$f":"SUM(F115:F118)","v":{"v":0,"d":"0.00"}}]

{"sheet":"E3-62, 63","index":17,"n_rows":114,"n_cols":6,"rows_kept":114}
[null,null,"m.e.","količina ","cena na enoto","znesek"]
["A.","GRADBENA DELA"]
[]
["A1.","PRIPRAVLJALNA DELA"]
[]
["1.","Izpraznitev prostorov (kar ni zajeto v postavkah v nadaljevanju), z odvozom. Priprava in ureditev gradbišča z ureditvijo gradbiščnih priključkov, vsakodnevno čiščenje skupnih prostorov in stopnišč, izvedba fizičnih zapor za preprečitev dostopa do gradbišča, postavitev gradbiščnih vrat, gradbiščne table in opozorilnih oznak, premični odri za izvajanje del ter druga pripravljalna in zaključna dela. V ceni zajeti tudi stroške deponije, prevozov in parkirnin glede na lokacijo objekta. V ceni zajeti tudi odstranitev vsega po zaključku del.","zajeto v skupnih delih",{"v":1,"d":"1.00"},null,{"$f":"D6*E6","v":{"v":0,"d":"0.00"}}]
[]
["A2.","RUŠITVENA DELA"]
[]
["2.","Demontaža vhodnih vrat velikosti 90x260 z nadsvetlobo, z izbijanjem podboja in odstranitvijo vseh elementov. Prenos, nakladanje in odvoz na trajno deponijo s plačilom takse.","kos",{"v":2,"d":"2.00"},null,{"$f":"D10*E10","v":{"v":0,"d":"0.00"}}]
[]
["3.","Odstranitev elektro instalacij, vsa nadometna napeljava, NIK kanali 7 m1, 5x stropne svetilke, vsa stikala in vtičnice ter ostali razvod. Prenos, nakladanje in odvoz na trajno deponijo s plačilom takse.","kpl",{"v":1,"d":"1.00"},null,{"$f":"D12*E12","v":{"v":0,"d":"0.00"}}]
[]
["4.","Demontaža in odstranitev pohištva ni definirana","kpl",{"v":0,"d":"0.00"},null,{"$f":"D14*E14","v":{"v":0,"d":"0.00"}}]
[]
["5.","Odstranitev notranjih in zunanjih enot klime z razvodom. Prenos, nakladanje in odvoz na trajno deponijo s plačilom takse.","kos",{"v":2,"d":"2.00"},null,{"$f":"D16*E16","v":{"v":0,"d":"0.00"}}]
[]
["6.","Rušenje parapetne stene debeline 25 cm višine 95 cm dolžine 145 cm. Prenos, nakladanje in odvoz na trajno deponijo s plačilom takse.","m3",0.36,null,{"$f":"D18*E18","v":{"v":0,"d":"0.00"}}]
[]
["7.","Dolbljenje  utorov v zidovih, za razvod instalacij, preseka do 6x6 cm, prenos, nalaganje, z odvozom ruševin na trajno deponijo s plačilom takse.","m1",{"v":35,"d":"35.00"},null,{"$f":"D20*E20","v":{"v":0,"d":"0.00"}}]
[]
["8.","Dolbljenje utorov v stropu, za razvod instalacij, preseka do 6x6 cm, prenos, nalaganje, z odvozom ruševin na trajno deponijo s plačilom takse.","m1",{"v":15,"d":"15.00"},null,{"$f":"D22*E22","v":{"v":0,"d":"0.00"}}]
[]
["9.","Dolbljenje  v zidovih, za razvod instalacij, preseka do 15x12 cm, prenos, nalaganje, z odvozom ruševin na trajno deponijo s plačilom takse.","m1",{"v":19,"d":"19.00"},null,{"$f":"D24*E24","v":{"v":0,"d":"0.00"}}]
[null," - za inštalacijo klime","m1",{"v":11,"d":"11.00"},null,{"$f":"D25*E25","v":{"v":0,"d":"0.00"}}]
["10.","Dolbljenje  v stropu, za razvod instalacij, preseka do 15x6 cm, prenos, nalaganje, z odvozom ruševin na trajno deponijo s plačilom takse.","m1",{"v":20,"d":"20.00"},null,{"$f":"D26*E26","v":{"v":0,"d":"0.00"}}]
[]
["12.","Izdelava preboja velikosti fi 12 cm v zidu debeline 30 cm. Prenos, nakladanje in odvoz na trajno deponijo s plačilom takse.","kos",{"v":2,"d":"2.00"},null,{"$f":"D28*E28","v":{"v":0,"d":"0.00"}}]
[null," - za inštalacijo klime","kos",{"v":2,"d":"2.00"},null,{"$f":"D29*E29","v":{"v":0,"d":"0.00"}}]
[]
["A3.","ZIDARSKA DELA"]
[]
[]
["13.","Krpanje utorov v zidovih, na mestu porušenih zidov, pas širine do 25 cm, z uskladitvijo ravnine obstoječih ometov","m1",{"v":1,"d":"1.00"},null,{"$f":"D34*E34","v":{"v":0,"d":"0.00"}}]
[]
["14.","Krpanje utorov v zidovih, za razvod instalacij, preseka do 6x6 cm","m1",{"v":35,"d":"35.00"},null,{"$f":"D36*E36","v":{"v":0,"d":"0.00"}}]
[]
["15.","Krpanje utorov v stropu, za razvod instalacij, preseka do 6x6 cm","m1",{"v":15,"d":"15.00"},null,{"$f":"D38*E38","v":{"v":0,"d":"0.00"}}]
[]
["16.","Krpanje utorov v zidovih, za razvod instalacij, preseka do 15x12 cm","m1",{"v":19,"d":"19.00"},null,{"$f":"D40*E40","v":{"v":0,"d":"0.00"}}]
[null," - za inštalacijo klime","m1",{"v":11,"d":"11.00"},null,{"$f":"D41*E41","v":{"v":0,"d":"0.00"}}]
[]
["17.","Krpanje utorov v stropu, za razvod instalacij, preseka do 15x6 cm","m1",{"v":20,"d":"20.00"},null,{"$f":"D43*E43","v":{"v":0,"d":"0.00"}}]
[]
["18.","Obzidava instalacij na prehodu skozi zid in tla ter  krpanje ometov","kos",{"v":2,"d":"2.00"},null,{"$f":"D45*E45","v":{"v":0,"d":"0.00"}}]
[null," - za inštalacijo klime","kos",{"v":2,"d":"2.00"},null,{"$f":"D46*E46","v":{"v":0,"d":"0.00"}}]
[]
["19.","Razna manjša in nepredvidena dela, pomoč obrnikom in instalaterjem. Z naročilom in potrditvijo s strani nadzora in gradbenem dnevniku","ur",{"v":10,"d":"10.00"},null,{"$f":"D48*E48","v":{"v":0,"d":"0.00"}}]
[]
[null,"Skupaj gradbena dela :",{"$nulls":3},{"$f":"SUM(F6:F49)","v":{"v":0,"d":"0.00"}}]
[]
[]
["B.","OBRTNIŠKA DELA"]
[]
["B1.","STAVBNO POHIŠTVO"]
[]
["1.","Izdelava, dobava in montaža novih vrat VhN po shemi projektanta dimenzije 101 x 260 skupaj s podbojem. ","kos",{"v":2,"d":"2.00"},null,{"$f":"D57*E57","v":{"v":0,"d":"0.00"}}]
[]
["2.","Po potrebi servis zunanjih senčil, ","kos",{"v":2,"d":"2.00"},null,{"$f":"D59*E59","v":{"v":0,"d":"0.00"}}]
[]
[]
["B2.","SLIKOPLESKARSKA DELA"]
[]
["3.","Delno struganje površine, nanos emulzije, kitanje, brušenje in pleskanje sten z poldisperzijsko belo barvo ","m2",{"v":118.4,"d":"118.40"},null,{"$f":"D64*E64","v":{"v":0,"d":"0.00"}}]
[]
["4.","Kitanje, brušenje in pleskanje  stropov s poldisperzijsko belo barvo  ","m2",{"v":56.2,"d":"56.20"},null,{"$f":"D66*E66","v":{"v":0,"d":"0.00"}}]
[]
["5.","Dobava in montaža alu vogalnikov ","m1",{"v":14,"d":"14.00"},null,{"$f":"D68*E68","v":{"v":0,"d":"0.00"}}]
[]
["6.","Zaščita prostora in elementov med deli","kpl",{"v":1,"d":"1.00"},null,{"$f":"D70*E70","v":{"v":0,"d":"0.00"}}]
[]
["B3.","TERACERSKA DELA"]
[]
["7.","Čiščenje in brušenje površine in premaz notranje okenske police in špalete iz umetnega kamna s predhodno zaščito obstoječega okna","m2",{"v":7.5,"d":"7.50"},null,{"$f":"D74*E74","v":{"v":0,"d":"0.00"}}]
[]
["B4.","PODOPOLAGALSKA DELA"]
[]
["8.","Dobava in polaganje izgotovljenega parketa, debeline 15 mm, širine 8 cm, hrast natur, lakiran, s polaganjem na obstoječ klasični parket. Po potrjenem vzorcu s strani arhitektke.","m2",{"v":56.2,"d":"56.20"},null,{"$f":"D78*E78","v":{"v":0,"d":"0.00"}}]
[]
["9.","Izenačitev višine tal v sobi 63 za 20 mm za poravnavo s sobo 62 - OSB plošče pritrjene na obstoječ parket","m2",{"v":38.6,"d":"38.60"},null,{"$f":"D80*E80","v":{"v":0,"d":"0.00"}}]
[]
["10.","Dobava in montaža nizkih lesenih stenskih letvic, hrast lakirano.","m1",{"v":38,"d":"38.00"},null,{"$f":"D82*E82","v":{"v":0,"d":"0.00"}}]
[]
["11.","Dobava in montaža alu profila pri stiku tlakov na vhodu v prostor cca 110 cm","kos",{"v":2,"d":"2.00"},null,{"$f":"D84*E84","v":{"v":0,"d":"0.00"}}]
[]
[null,"Skupaj obrtniška dela :",{"$nulls":3},{"$f":"SUM(F55:F85)","v":{"v":0,"d":"0.00"}}]
[]
[]
["C.","INSTALACIJSKA DELA"]
[]
["C1.","STROJNE INSTALACIJE"]
[]
["1.","Dobava in montaža popdpultnega grelnika vode ter kuhinjske izlivne  armature, kpl z ventili in odtočnega sifona.","kpl",{"v":1,"d":"1.00"},null,{"$f":"D93*E93","v":{"v":0,"d":"0.00"}}]
[]
["2.","Dobava in montaža nove split klimatske naprave srednjega razreda v prostoru","kpl",{"v":2,"d":"2.00"},null,{"$f":"D95*E95","v":{"v":0,"d":"0.00"}}]
[]
["3.","Inštalacija za klimatsko napravo podometno","m1",{"v":11,"d":"11.00"},null,{"$f":"D97*E97","v":{"v":0,"d":"0.00"}}]
[]
["4.","Demontaža ltž radiatorja in obstoječih ventilov, čiščenje radiatorja in ponovna montaža z dobavo in montažo novih ventilov ter termostatske glave ","kpl",{"v":2,"d":"2.00"},null,{"$f":"D99*E99","v":{"v":0,"d":"0.00"}}]
[]
["5.","Samo montaža  ltž radiatorja z dobavo in montažo novih ventilov ter termostatske glave ","kpl",{"v":1,"d":"1.00"},null,{"$f":"D101*E101","v":{"v":0,"d":"0.00"}}]
[]
[null,"Skupaj strojne inštalacije :",{"$nulls":3},{"$f":"SUM(F93:F102)","v":{"v":0,"d":"0.00"}}]
[]
[]
["D.","OSTALO"]
[]
["D1.","ČIŠČENJE"]
[]
["1.","Čiščenje prostorov po končanih delih - vse površine, elementi oprema.","m2",{"v":56.2,"d":"56.20"},null,{"$f":"D110*E110","v":{"v":0,"d":"0.00"}}]
[]
["2.","Čiščenje oken, steklenih površin","m2",{"v":26,"d":"26.00"},null,{"$f":"D112*E112","v":{"v":0,"d":"0.00"}}]
[]
[null,"Skupaj čiščenje:",{"$nulls":3},{"$f":"SUM(F110:F113)","v":{"v":0,"d":"0.00"}}]

{"sheet":"S-Sanitarije","index":18,"n_rows":179,"n_cols":6,"rows_kept":179}
[null,null,"m.e.","količina ","cena na enoto","znesek"]
["A.","GRADBENA DELA"]
[]
["A1.","PRIPRAVLJALNA DELA"]
[]
["1.","Izpraznitev prostorov (kar ni zajeto v postavkah v nadaljevanju), z odvozom. Priprava in ureditev gradbišča z ureditvijo gradbiščnih priključkov, vsakodnevno čiščenje skupnih prostorov in stopnišč, izvedba fizičnih zapor za preprečitev dostopa do gradbišča, postavitev gradbiščnih vrat, gradbiščne table in opozorilnih oznak, premični odri za izvajanje del ter druga pripravljalna in zaključna dela. V ceni zajeti tudi stroške deponije, prevozov in parkirnin glede na lokacijo objekta. V ceni zajeti tudi odstranitev vsega po zaključku del.","zajeto v skupnih delih",{"v":1,"d":"1.00"},null,{"$f":"D6*E6","v":{"v":0,"d":"0.00"}}]
[]
["A2.","RUŠITVENA DELA"]
[]
["2.","Vhodna vrata se ohranijo, zaščita med deli.","kos",{"v":2,"d":"2.00"},null,{"$f":"D10*E10","v":{"v":0,"d":"0.00"}}]
[]
["3.","Demontaža notranjih vrat velikosti 70 x 210 cm, z izbijanjem podboja in odstranitvijo vseh elementov. Prenos, nakladanje in odvoz na trajno deponijo s plačilom takse.","kpl",{"v":1,"d":"1.00"},null,{"$f":"D12*E12","v":{"v":0,"d":"0.00"}}]
[]
["5.","Odstranitev elektro instalacij,  6x stropne svetilke, vsa stikala in vtičnice. Prenos, nakladanje in odvoz na trajno deponijo s plačilom takse.","kpl",{"v":1,"d":"1.00"},null,{"$f":"D14*E14","v":{"v":0,"d":"0.00"}}]
[]
["4.","Odstranitev in demontaža umivalnika 2x, izlivne armature2x, in sifona 2x, pisoar 1x, wc školka 2x wc kotliček 2x z vsemi ostalimi elementi. Prenos, nakladanje in odvoz na trajno deponijo s plačilom takse.","kpl",{"v":1,"d":"1.00"},null,{"$f":"D16*E16","v":{"v":0,"d":"0.00"}}]
[]
["6.","Odstranitev radiatorjev z vsemi elementi. Prenos, nakladanje in odvoz na trajno deponijo s plačilom takse.","kos",{"v":2,"d":"2.00"},null,{"$f":"D18*E18","v":{"v":0,"d":"0.00"}}]
[]
["7.","Demontaža podajalnikov-v skladišče, ogledal 2x in poličk 2x.  Prenos, nakladanje in odvoz na trajno deponijo s plačilom takse.","kpl",{"v":1,"d":"1.00"},null,{"$f":"D20*E20","v":{"v":0,"d":"0.00"}}]
[]
["8.","Odbijanje stenske in talne keramike. Prenos, nakladanje in odvoz na trajno deponijo s plačilom takse.","m2",{"v":62,"d":"62.00"},null,{"$f":"D22*E22","v":{"v":0,"d":"0.00"}}]
["9.","Rušenje montažne stene iz mavčnih plošč deb.10 cm s podkonstrukcijo. Prenos, nakladanje in odvoz na trajno deponijo s plačilom takse.","m2",{"v":10.4,"d":"10.40"},null,{"$f":"D23*E23","v":{"v":0,"d":"0.00"}}]
[]
["10.","Rušenje opečnih sten (stene wc kabin) debeline 15 cm, Prenos, nakladanje in odvoz na trajno deponijo s plačilom takse.","m2",{"v":14.1,"d":"14.10"},null,{"$f":"D25*E25","v":{"v":0,"d":"0.00 €"}}]
[]
["11.","Rušenje celotne sestave tlaka do talne plošče debeline 14 cm estrih 6 cm gramozno nasutje 8 cm. Prenos, nakladanje in odvoz na trajno deponijo s plačilom takse.","m2",{"v":17.5,"d":"17.50"},null,{"$f":"D27*E27","v":{"v":0,"d":"0.00"}}]
[]
["12.","Odstranitev cevnega razvoda vodovodnih cevi v celoti do vertikalnih vhišnih vodov. Prenos, nakladanje in odvoz na trajno deponijo s plačilom takse.","m1",{"v":20,"d":"20.00"},null,{"$f":"D29*E29","v":{"v":0,"d":"0.00"}}]
[]
["13.","Odstranitev cevnega razvoda odtočnih PVC cevi, talnih sifonov, v celoti do vertikalne hišne kanalizacije. Prenos, nakladanje in odvoz na trajno deponijo s plačilom takse.","m1",{"v":15,"d":"15.00"},null,{"$f":"D31*E31","v":{"v":0,"d":"0.00"}}]
[]
["14.","Dolbljenje  za vzidavo geberit kotlička v opečni zid globina 25cm, višina 110 cm, širina 80 cm, prenos, nalaganje, z odvozom ruševin na trajno deponijo s plačilom takse.","kpl",{"v":1,"d":"1.00"},null,{"$f":"D33*E33","v":{"v":0,"d":"0.00"}}]
[]
["15.","Dolbljenje  utorov v zidovih, za razvod instalacij, preseka do 6x6 cm, prenos, nalaganje, z odvozom ruševin na trajno deponijo s plačilom takse.","m1",{"v":12,"d":"12.00"},null,{"$f":"D35*E35","v":{"v":0,"d":"0.00"}}]
[]
["16.","Dolbljenje utorov v stropu, za razvod instalacij, preseka do 6x6 cm, prenos, nalaganje, z odvozom ruševin na trajno deponijo s plačilom takse.","m1",{"v":8,"d":"8.00"},null,{"$f":"D37*E37","v":{"v":0,"d":"0.00"}}]
[]
["17.","Dolbljenje  v zidovih, za razvod instalacij, preseka do 15x15 cm, prenos, nalaganje, z odvozom ruševin na trajno deponijo s plačilom takse.","m1",{"v":15,"d":"15.00"},null,{"$f":"D39*E39","v":{"v":0,"d":"0.00"}}]
[]
["18.","Dolbljenje  v stropu, za razvod instalacij, preseka do 15x6 cm, prenos, nalaganje, z odvozom ruševin na trajno deponijo s plačilom takse.","m1",{"v":4,"d":"4.00"},null,{"$f":"D41*E41","v":{"v":0,"d":"0.00"}}]
[]
[]
["A3.","ZIDARSKA DELA"]
[]
["19.","Krpanje utorov v zidovih, za razvod instalacij, preseka do 6x6 cm","m1",{"v":12,"d":"12.00"},null,{"$f":"D46*E46","v":{"v":0,"d":"0.00"}}]
[]
["20.","Krpanje utorov v stropu, za razvod instalacij, preseka do 6x6 cm","m1",{"v":8,"d":"8.00"},null,{"$f":"D48*E48","v":{"v":0,"d":"0.00"}}]
[]
["21.","Krpanje utorov v zidovih, za razvod instalacij, preseka do 15x15 cm","m1",{"v":15,"d":"15.00"},null,{"$f":"D50*E50","v":{"v":0,"d":"0.00"}}]
[]
["22.","Krpanje utorov v stropu, za razvod instalacij, preseka do 15x6 cm","m1",{"v":4,"d":"4.00"},null,{"$f":"D52*E52","v":{"v":0,"d":"0.00"}}]
[]
["23.","Pozidava niš pod okni - izravnava s steno, s siporex bloki debeline 10 cm dim 120x 87 cm z izdelavo ometa","kpl",{"v":2,"d":"2.00"},null,{"$f":"D54*E54","v":{"v":0,"d":"0.00"}}]
[]
["24.","Popravilo obstoječih površin po odstranitvi keramične stenske obloge  s predhodno pripravo podlage za obdelavo s pranjem , izdelavo grobega in finega apneno cementnega ometa.","m2",{"v":18,"d":"18.00"},null,{"$f":"D56*E56","v":{"v":0,"d":"0.00 €"}}]
[]
["25.","Dobava in izdelava hidroizolacije na pripravljeno podlago s hidroizolacijskim premazom s predhodno dobavo in vgradnjo tesnilnih trakov na mestih prebojev in robovih tlakov na predhodno izvedene zaokrožnice, kot proizvajalca Mapei ali Kema","m2",{"v":17.2,"d":"17.20"},null,{"$f":"D58*E58","v":{"v":0,"d":"0.00 €"}}]
[]
["26.","Izdelava plavajočega mikroarmiranega betonskega estriha deb.6 cm, PE folija, 8 cm TI, ","m2",{"v":17.2,"d":"17.20"},null,{"$f":"D60*E60","v":{"v":0,"d":"0.00"}}]
[]
["27.","Pozidava geberit kotličkov s siporexom , višine do 100 cm, širine do 120 cm, vključno z obdelavo siporex blokov z lepilom in mrežico","kpl",{"v":3,"d":"3.00"},null,{"$f":"D62*E62","v":{"v":0,"d":"0.00 €"}}]
[]
["28.","Razna manjša in nepredvidena dela, pomoč obrnikom in instalaterjem. Z naročilom in potrditvijo s strani nadzora in gradbenem dnevniku","ur",{"v":5,"d":"5.00"},null,{"$f":"D64*E64","v":{"v":0,"d":"0.00"}}]
[]
[null,"Skupaj gradbena dela :",{"$nulls":3},{"$f":"SUM(F6:F65)","v":{"v":0,"d":"0.00"}}]
[]
[]
["B.","OBRTNIŠKA DELA"]
[]
["B1.","MAVČNOKARTONSKA DELA"]
[]
["1.","Dobava in izdelava knauf stene W112 s s podkonstrukcijo, stena debeline 12,5 cm z bandažiranjem.","m2",10.86,null,{"$f":"D73*E73","v":{"v":0,"d":"0.00"}}]
[]
["B2.","KERAMIČARSKA DELA"]
[]
["2.","Dobava stenske keramike  Florgres ali podobno, dimenzije 60x60 cm - vzorec potrdi projektantka"]
[null,"samo dobava","m2",{"v":29,"d":"29.00"},null,{"$f":"D78*E78","v":{"v":0,"d":"0.00 €"}}]
[null,"delo","m2",{"v":27.8,"d":"27.80"},null,{"$f":"D79*E79","v":{"v":0,"d":"0.00 €"}}]
[]
["3.","Dobava  talne keramike  Florgres ali podobno, dimenzije 60x60 cm - vzorec potrdi projektantka"]
[null,"samo dobava","m2",{"v":18,"d":"18.00"},null,{"$f":"D82*E82","v":{"v":0,"d":"0.00 €"}}]
[null,"delo","m2",{"v":16.7,"d":"16.70"},null,{"$f":"D83*E83","v":{"v":0,"d":"0.00 €"}}]
[]
[]
["B3.","SLIKOPLESKARSKA DELA"]
[]
["4.","Delno struganje površine, nanos emulzije, kitanje, brušenje ","m2",{"v":28.1,"d":"28.10"},null,{"$f":"D88*E88","v":{"v":0,"d":"0.00"}}]
[]
["5.","Kitanje, brušenje mavčnih sten  ","m2",{"v":8.5,"d":"8.50"},null,{"$f":"D90*E90","v":{"v":0,"d":"0.00"}}]
[]
[null,"Beljenje sten z latex mat belo barvo","m2",{"v":36.6,"d":"36.60"},null,{"$f":"D92*E92","v":{"v":0,"d":"0.00"}}]
[]
["6.","Kitanje, brušenje in pleskanje  stropov s poldisperzijsko belo barvo  ","m2",{"v":18.9,"d":"18.90"},null,{"$f":"D94*E94","v":{"v":0,"d":"0.00"}}]
[]
["7.","Brušenje, kitanje, in 2x lakiranje vrat dimenzije 95x210 s podbojem","m2",{"v":12,"d":"12.00"},null,{"$f":"D96*E96","v":{"v":0,"d":"0.00"}}]
[]
["8.","Zaščita prostora in elementov med deli","kpl",{"v":1,"d":"1.00"},null,{"$f":"D98*E98","v":{"v":0,"d":"0.00"}}]
[]
[null,"Skupaj obrtniška dela :",{"$nulls":3},{"$f":"SUM(F73:F99)","v":{"v":0,"d":"0.00"}}]
[]
[]
["C.","INSTALACIJSKA DELA"]
[]
["C1.","STROJNE INSTALACIJE"]
[]
["1.","Zaprtje vode , obveščanje strank","kpl",{"v":1,"d":"1.00"},null,{"$f":"D107*E107","v":{"v":0,"d":"0.00"}}]
[]
["2.","Izdelava priključka nove vodovodne inštalacije na obstoječ glavni vodovodni vod, topla hladna voda","kpl",{"v":2,"d":"2.00"},null,{"$f":"D109*E109","v":{"v":0,"d":"0.00"}}]
[]
[null,"Izvedba vodovodne inštalacije do mest priključkov iz cevi PE-X/alu kompletno s fazonskimi kosi"]
[null,"fi 16x2","m1",{"v":12,"d":"12.00"},null,{"$f":"D112*E112","v":{"v":0,"d":"0.00"}}]
[null,"fi 20x2","m3",{"v":10,"d":"10.00"},null,{"$f":"D113*E113","v":{"v":0,"d":"0.00"}}]
["3.","fi 25x2","m4",{"v":8,"d":"8.00"},null,{"$f":"D114*E114","v":{"v":0,"d":"0.00"}}]
[]
["4.","Izdelava priključka nove inštalacije centralnega gretja na obstoječe vode 1/2\" ","kpl",{"v":2,"d":"2.00"},null,{"$f":"D116*E116","v":{"v":0,"d":"0.00"}}]
[]
[null,"Izvedba cevne inštalacije do mest priključkov novih radiatorjev iz cevi PE-X/alu z izolacijo kompletno s fazonskimi kosi"]
["5.","fi 16x2","m1",{"v":28.4,"d":"28.40"},null,{"$f":"D119*E119","v":{"v":0,"d":"0.00"}}]
[]
[null,"Izvedba odtočne kanalizacije iz PP cevi kompletno fazonskimi kosi tesnili in pritrditvijo  ter priklopom na obstoječo kanalizacijo"]
[null,"fi 50","m1",{"v":9,"d":"9.00"},null,{"$f":"D122*E122","v":{"v":0,"d":"0.00"}}]
[null,"fi 75","m2",{"v":12,"d":"12.00"},null,{"$f":"D123*E123","v":{"v":0,"d":"0.00"}}]
["6.","fi 100","m3",{"v":6,"d":"6.00"},null,{"$f":"D124*E124","v":{"v":0,"d":"0.00"}}]
[]
["7.","Dobava in montaža radiatorja velikosti 600/900/22 sredinski priklop komplet z ventili, montažo termostatske glave in z nosilci radiatorjev. ","kos",{"v":2,"d":"2.00"},null,{"$f":"D126*E126","v":{"v":0,"d":"0.00"}}]
[]
["8.","Montaža dvojnega umivalnika, priklop umivalniške armature 2x z ventili in odtočnega sifona 2x","kpl",{"v":2,"d":"2.00"},null,{"$f":"D128*E128","v":{"v":0,"d":"0.00"}}]
[]
["9.","Dobava, montaža in priklop Geberit Duofix Basic, podometnega splakovalnega kotlička in tipke ","kom",{"v":3,"d":"3.00"},null,{"v":0,"d":"0.00"}]
[]
["10.","Montaža in priklop stenske WC školjke in WC deske","kom",{"v":3,"d":"3.00"},null,{"v":0,"d":"0.00"}]
[]
["11.","Montaža in priklop pisoarja ter senzorskega ventila in sifona","kom",{"v":2,"d":"2.00"},null,{"v":0,"d":"0.00"}]
[]
["12.","Montaža ogledal dimenzije 125X90","kom",{"v":2,"d":"2.00"},null,{"v":0,"d":"0.00"}]
[]
["13.","Montaža podajalnikov, wc papir, milo, papirne brisače,","kom",{"v":8,"d":"8.00"},null,{"v":0,"d":"0.00"}]
[]
["14.","Tlačni preizkus vodovodne inštalacije","kpl",{"v":1,"d":"1.00"},null,{"v":0,"d":"0.00"}]
[]
["15.","Drobni material in manipulativni stroški","%",{"v":5,"d":"5.00"},null,{"$f":"5/100*E142","v":{"v":0,"d":"0.00"}}]
[]
[null,"Skupaj strojne inštalacije :",{"$nulls":3},{"$f":"SUM(F107:F143)","v":{"v":0,"d":"0.00"}}]
[]
[]
["D.","OSTALO"]
[]
["D1.","ČIŠČENJE"]
[]
["1.","Čiščenje prostorov po končanih delih - vse površine, elementi oprema.","m2",{"v":16.7,"d":"16.70"},null,{"$f":"D151*E151","v":{"v":0,"d":"0.00"}}]
[]
["2.","Čiščenje oken, steklenih površin","m2",7.95,null,{"$f":"D153*E153","v":{"v":0,"d":"0.00"}}]
[]
[null,"Skupaj čiščenje:",{"$nulls":3},{"$f":"SUM(F151:F154)","v":{"v":0,"d":"0.00"}}]
[]
[]
["E.","OPREMA"]
[]
["E1.","SANITARNA KERAMIKA samo dobava"]
[]
["1.","Catalano dvojni stenski umivalnik ZERO 125 (1125ZE00)","kom",{"v":2,"d":"2.00"},null,{"$f":"D162*E162","v":{"v":0,"d":"0.00"}}]
[]
["2.","Catalano Viseča wc školjka ZERO 55 Sospeso 1VS55N00","kom",{"v":3,"d":"3.00"},null,{"$f":"D164*E164","v":{"v":0,"d":"0.00"}}]
[]
["3.","Catalano WC deska s počasnim zapiranjem 5SCSTF000","kom",{"v":3,"d":"3.00"},null,{"$f":"D166*E166","v":{"v":0,"d":"0.00"}}]
[]
["4.","Pisoar HATRIA FUSION YXC301","kom",{"v":2,"d":"2.00"},null,{"$f":"D168*E168","v":{"v":0,"d":"0.00"}}]
[]
["5.","Armatura za umivalnik HANSGROHE FOCUS 100  (31607000)","kom",{"v":4,"d":"4.00"},null,{"$f":"D170*E170","v":{"v":0,"d":"0.00"}}]
[null,"Spodnji del sifona za umivalnik HANSGROHE (52105000)","kom",{"v":4,"d":"4.00"},null,{"$f":"D171*E171","v":{"v":0,"d":"0.00"}}]
[]
["6.","Tipka za splakovalnik Geberit DELTA 20, bela","kom",{"v":3,"d":"3.00"},null,{"$f":"D173*E173","v":{"v":0,"d":"0.00"}}]
[]
["7."," Vgradni senzor za pisoar Elmer ES 1024 INOX","kos",{"v":2,"d":"2.00"},null,{"$f":"D175*E175","v":{"v":0,"d":"0.00"}}]
[]
["8.","Ogledalo brušen rob 125x90 cm x 4mm","kos",{"v":2,"d":"2.00"},null,{"$f":"D177*E177","v":{"v":0,"d":"0.00"}}]
[]
[null,"Skupaj strojne inštalacije :",{"$nulls":3},{"$f":"SUM(F162:F177)","v":{"v":0,"d":"0.00"}}]

{"sheet":"S-Hodnik","index":19,"n_rows":91,"n_cols":6,"rows_kept":91}
[null,null,"m.e.","količina ","cena na enoto","znesek"]
["A.","GRADBENA DELA"]
[]
["A1.","PRIPRAVLJALNA DELA"]
[]
["1.","Izpraznitev prostorov (kar ni zajeto v postavkah v popisih del), z odvozom. Priprava in ureditev gradbišča z ureditvijo gradbiščnih priključkov, vsakodnevno čiščenje skupnih prostorov in stopnišč, zaščita z začasnimi protiprašnimi pregradami, zaščita obstoječih tal (parketov ki se obnavljajo med deli, zaščita oken) in  izvedba fizičnih zapor za preprečitev dostopa do gradbišča, postavitev gradbiščnih vrat, gradbiščne table in opozorilnih oznak, premični odri za izvajanje del ter druga pripravljalna in zaključna dela. V ceni zajeti tudi stroške deponije, prevozov in parkirnin glede na lokacijo objekta. V ceni zajeti tudi odstranitev vsega po zaključku del.","pavšal za celotno adaptacijo prostorov",{"v":1,"d":"1.00"},null,{"$f":"D6*E6","v":{"v":0,"d":"0.00"}}]
[]
["A2.","RUŠITVENA DELA"]
[]
["2.","Rušitev spuščenega stropa iz mineralnih plošč 60x60 cm kompletno s podkonstrukcijo. Prenos, nakladanje in odvoz na trajno deponijo s plačilom takse.","m2",{"v":176.4,"d":"176.40"},null,{"$f":"D10*E10","v":{"v":0,"d":"0.00"}}]
[]
["3.","Rušitev tlaka barvan beton 2 cm do estriha. Prenos, nakladanje in odvoz na trajno deponijo s plačilom takse.","m2",{"v":176.4,"d":"176.40"},null,{"$f":"D12*E12","v":{"v":0,"d":"0.00"}}]
[]
["4.","Dolbenje utora v steni in v estrihu pri vhodu št. 70 čez celo širino hodnika za napeljavo vodovodne inštalacije 10x10 cm. Prenos, nakladanje in odvoz na trajno deponijo s plačilom takse. ","m1",{"v":4,"d":"4.00"},null,{"$f":"D14*E14","v":{"v":0,"d":"0.00"}}]
[]
["5.","Demontaža dvokrilnih nihajnih vrat s stranskimi svetlobami in nadsvetlobo velikosti 2,95x3,30 m, z izbijanjem podboja in odstranitvijo vseh elementov. Prenos, nakladanje in odvoz na trajno deponijo s plačilom takse.","kom",{"v":2,"d":"2.00"},null,{"$f":"D16*E16","v":{"v":0,"d":"0.00"}}]
[]
["6.","Demontaža rasterskih luči 60/60 cm v stropu. Prenos, nakladanje in odvoz na trajno deponijo s plačilom takse.  ","kom",{"v":17,"d":"17.00"},null,{"$f":"D18*E18","v":{"v":0,"d":"0.00"}}]
[]
["7.","Dolbljenje  utorov v zidovih, za razvod instalacij, preseka do 6x6 cm, z odvozom ruševin","m1",{"v":25,"d":"25.00"},null,{"$f":"D20*E20","v":{"v":0,"d":"0.00"}}]
[]
[]
["A3.","ZIDARSKA DELA"]
[]
["8.","Krpanje utorov v stenah, za razvod instalacij, preseka do 6x6 cm","m1",{"v":25,"d":"25.00"},null,{"$f":"D25*E25","v":{"v":0,"d":"0.00"}}]
[]
["9.","Krpanje utorov v tleh, za razvod instalacij, preseka do 10x10cm","m1",{"v":3,"d":"3.00"},null,{"$f":"D27*E27","v":{"v":0,"d":"0.00"}}]
[]
["10.","Krpanje utorov v steni, za razvod instalacij, preseka do 10x10cm","m1",{"v":1,"d":"1.00"},null,{"$f":"D29*E29","v":{"v":0,"d":"0.00"}}]
[]
["11.","Popravila estriha po odstranitvi podbojev vrat 22 kom  v prostore in vrat hodnika 2 kom","kpl",{"v":1,"d":"1.00"},null,{"$f":"D31*E31","v":{"v":0,"d":"0.00"}}]
[]
["12.","Razna manjša in nepredvidena dela, pomoč obrnikom in instalaterjem. Z naročilom in potrditvijo s strani nadzora in gradbenem dnevniku","ur",{"v":5,"d":"5.00"},null,{"$f":"D33*E33","v":{"v":0,"d":"0.00"}}]
[]
[null,"Skupaj gradbena dela :",{"$nulls":3},{"$f":"SUM(F6:F34)","v":{"v":0,"d":"0.00"}}]
[]
[]
["B.","OBRTNIŠKA DELA"]
[]
["B1.","MAVČNOKARTONSKA DELA"]
[]
["1.","Dobava in izdelava spuščenega Armstrong stropa PERLA 600x600 , višina spuščanja 30 cm komplet s pokonstrukcijo in obešali, sidranje v monta strop","m2",{"v":176.4,"d":"176.40"},null,{"$f":"D42*E42","v":{"v":0,"d":"0.00"}}]
[]
["2.","Dobava in montaža revizijskih vratc v vetrikalno škatlo pri vhodu 69 dimenzije 25x25 cm","kom",{"v":1,"d":"1.00"},null,{"$f":"D44*E44","v":{"v":0,"d":"0.00"}}]
[]
[]
["B2.","SLIKOPLESKARSKA DELA"]
[]
["3.","Delno struganje površine, nanos emulzije, kitanje, brušenje in pleskanje sten  z poldisperzijsko belo barvo ","m2",{"v":387.2,"d":"387.20"},null,{"$f":"D49*E49","v":{"v":0,"d":"0.00"}}]
[]
["4.","Brušenje, grundiranje in lakiranje z belo barvo kovinskih okvirjev in vrat elektro omaric in hidrantnih omaric                        dimenzije 70x70 cm","kom",{"v":3,"d":"3.00"},null,{"$f":"D51*E51","v":{"v":0,"d":"0.00"}}]
[null,"dimenzije 120X80 cm","kom",{"v":2,"d":"2.00"},null,{"$f":"D52*E52","v":{"v":0,"d":"0.00"}}]
[]
["5.","Čiščenje in lakiranje radiatorjev z belo radiatorsko barvo","kom",{"v":2,"d":"2.00"},null,{"$f":"D54*E54","v":{"v":0,"d":"0.00"}}]
[]
["6.","Dobava in vgradnja alu vogalnikov","m1",{"v":3,"d":"3.00"},null,{"$f":"D56*E56","v":{"v":0,"d":"0.00"}}]
[]
["B3.","TERACERSKA DELA"]
[]
["7.","Dobava in izdelava teraca debeline 2 cm z brušenjem, zrnavost in barvi potrdi projektantka.","m2",{"v":176.4,"d":"176.40"},null,{"$f":"D60*E60","v":{"v":0,"d":"0.00"}}]
[]
["B4.","PODOPOLAGALSKA DELA"]
[]
["3.","Odstranitev pasu obstoječih vinil plošč ob steni  z odvozom na deponijo, ročna odstranitev lepila in priprava podlage ter montaža novih vinil plošč na zaokrožnico - pas širine 27 cm ter opasovanje ob vratih 5x","m1",{"v":18.5,"d":"18.50"},null,{"$f":"D64*E64","v":{"v":0,"d":"0.00"}}]
[]
["2.","Dobava  vinil plošč 50x50 po izboru projektantke pas ob steni na hodniku","m2",9.25,null,{"$f":"D66*E66","v":{"v":0,"d":"0.00"}}]
[]
[]
[null,"Skupaj obrtniška dela :",{"$nulls":3},{"$f":"SUM(F42:F68)","v":{"v":0,"d":"0.00"}}]
[]
[]
["C.","INSTALACIJSKA DELA"]
[]
["C1.","STROJNE INSTALACIJE"]
[]
["1.","Praznenje in polnjenje cenega sistema centralnega ogrevanja celotnega objekta","kpl",{"v":1,"d":"1.00"},null,{"$f":"D76*E76","v":{"v":0,"d":"0.00"}}]
[]
["2.","Tlačni preizkus novih in popravljenih inštalacij centralnega ogrevanja","kpl",{"v":1,"d":"1.00"},null,{"$f":"D78*E78","v":{"v":0,"d":"0.00"}}]
[]
["3.","Demontaža in ponovna montaža radiatorjev na hodniku zaradi barvanja ","kom",{"v":2,"d":"2.00"},null,{"$f":"D80*E80","v":{"v":0,"d":"0.00"}}]
[]
[null,"Skupaj strojne inštalacije :",{"$nulls":3},{"$f":"SUM(F76:F81)","v":{"v":0,"d":"0.00"}}]
[]
[]
["D.","OSTALO"]
[]
["D1.","ČIŠČENJE"]
[]
["1.","Čiščenje prostorov po končanih delih - vse površine, elementi oprema.","m2",{"v":176.4,"d":"176.40"},null,{"$f":"D89*E89","v":{"v":0,"d":"0.00"}}]
[]
[null,"Skupaj čiščenje:",{"$nulls":3},{"$f":"SUM(F89:F90)","v":{"v":0,"d":"0.00"}}]